Workbook

Sheet Kalkulator
B1: Uruchomienie kredytu | E1: Stan aktualny | H1: Saldo kapitału w PLN
B2: Kwota kredytu PLN | C2: 300000 | E2: Rok | F2: 2015 | H2: Kurs otwarcia
B3: Okres kredytowania | C3: 360 | E3: Miesiąc | F3: grudzień | H3: =F7*C7 -> 236047.0127 | I3: =H3/F7 -> 2.274031818
B4: Rok | C4: 2007 | E4: Data | F4: =DATE(F2,VLOOKUP(F3,BAZA_LIBOR_WIBOR_KURS!I2:J13,2,FALSE),1) -> 2015-12-01 | H4: Kalkulator
B5: Miesiąc | C5: lipiec | E5: Saldo kapitału PLN | F5: =VLOOKUP(F4,B11:N490,13,FALSE) -> 290959.9357 | H5: =F5 -> 290959.9357 | I5: =H5/F7 -> 2.803052427
B6: Data uruchomienia | C6: =DATE(C4,VLOOKUP(C5,BAZA_LIBOR_WIBOR_KURS!I2:J13,2,FALSE),1) -> 2007-07-01 | E6: Kurs CHF | F6: =VLOOKUP(F4,BAZA_LIBOR_WIBOR_KURS!C2:F145,4,FALSE) -> 3.914 | H6: Kurs aktualny
B7: Kurs CHF | C7: =VLOOKUP(C6,BAZA_LIBOR_WIBOR_KURS!C2:F145,4,FALSE) -> 2.274031818 | E7: Saldo kapitału CHF | F7: =VLOOKUP(F4,B11:G490,6,FALSE) -> 103801.1037 | H7: =F7*F6 -> 406277.52 | I7: =H7/F7 -> 3.914
B8: Kwota kredytu CHF | C8: =ROUND(C2/C7,2) -> 131924.28
A10: Nr raty | B10: Data | C10: LIBOR_3M_CHF | D10: Marża | E10: odsetki_CHF | F10: kapitał_CHF | G10: Saldo kapitału_CHF | H10: kurs_CHF | I10: WIBOR_3M | J10: Marża | K10: Wpłata w PLN | L10: Odsetki_PLN | M10: Kapitał_PLN | N10: Saldo kapitału_PLN
A11: 1 | B11: =DATE(C4,VLOOKUP(C5,BAZA_LIBOR_WIBOR_KURS!I2:J13,2,FALSE)+1,1) -> 2007-08-01 | C11: =VLOOKUP(B11,BAZA_LIBOR_WIBOR_KURS!$C$2:$F$145,2,FALSE) -> 0.02796 | D11: 0.02 | E11: =IPMT((C11+D11)/12,1,$C$3,-C8) -> 527.2573724 | F11: =PPMT((C11+D11)/12,1,$C$3,-C8) -> 164.5846877 | G11: =$C$8-SUM($F$11:F11) -> 131759.6953 | H11: =VLOOKUP(B11,BAZA_LIBOR_WIBOR_KURS!$C$2:$F$145,4,FALSE) -> 2.327372727 | I11: =VLOOKUP(B11,BAZA_LIBOR_WIBOR_KURS!$C$2:$F$145,3,FALSE) -> 0.04908636364 | J11: 0.02 | K11: =IF(A11>$C$3,"_",IF(B11>$F$4,0,H11*(E11+F11))) -> 1610.174342 | L11: =ROUND(C2*(I11+J11)/12,2) -> 1727.16 | M11: =IFERROR(K11-L11,"_") -> -116.9856576 | N11: =IF(A11>$C$3,"_",$C$2-SUM($M$11:M11)) -> 300116.9857
A12: =A11+1 -> 2 | B12: =IF(A12>$C$3,"_",DATE(YEAR(B11),MONTH(B11)+1,1)) -> 2007-09-01 | C12: =IF(A12>$C$3,"_",IFERROR(VLOOKUP(B12,BAZA_LIBOR_WIBOR_KURS!$C$2:$F$145,2,FALSE),C11)) -> 0.02824 | D12: =IF(A12>$C$3,"_",D11) -> 0.02 | E12: =IF(A12>$C$3,"_",IPMT((C12+D12)/12,1,$C$3-A11,-G11)) -> 529.6739752 | F12: =IF(A12>$C$3,"_",PPMT((C12+D12)/12,1,$C$3-A11,-G11)) -> 164.3976531 | G12: =IF(A12>$C$3,"_",$C$8-SUM($F$11:F12)) -> 131595.2977 | H12: =IF(A12>$C$3,"_",IFERROR(VLOOKUP(B12,BAZA_LIBOR_WIBOR_KURS!$C$2:$F$145,4,FALSE),H11)) -> 2.299725 | I12: =IF(A12>$C$3,"_",IFERROR(VLOOKUP(B12,BAZA_LIBOR_WIBOR_KURS!$C$2:$F$145,3,FALSE),I11)) -> 0.05091 | J12: =IF(A12>$C$3,"_",J11) -> 0.02 | K12: 1596.173875 | L12: =IF(A12>$C$3,"_",IF(N11<0,0,ROUND(N11*(I12+J12)/12,2))) -> 1773.44 | M12: =IFERROR(K12-L12,"_") -> -177.2661247 | N12: =IF(A12>$C$3,"_",$C$2-SUM($M$11:M12)) -> 300294.2518
A13: =A12+1 -> 3 | B13: 2007-10-01 | C13: =IF(A13>$C$3,"_",IFERROR(VLOOKUP(B13,BAZA_LIBOR_WIBOR_KURS!$C$2:$F$145,2,FALSE),C12)) -> 0.02787 | D13: 0.02 | E13: 524.9555749 | F13: 166.176446 | G13: =IF(A13>$C$3,"_",$C$8-SUM($F$11:F13)) -> 131429.1212 | H13: =IF(A13>$C$3,"_",IFERROR(VLOOKUP(B13,BAZA_LIBOR_WIBOR_KURS!$C$2:$F$145,4,FALSE),H12)) -> 2.218986957 | I13: =IF(A13>$C$3,"_",IFERROR(VLOOKUP(B13,BAZA_LIBOR_WIBOR_KURS!$C$2:$F$145,3,FALSE),I12)) -> 0.05128695652 | J13: 0.02 | K13: 1533.61294 | L13: 1783.92 | M13: -250.3070604 | N13: =IF(A13>$C$3,"_",$C$2-SUM($M$11:M13)) -> 300544.5588
A14: 4 | B14: 2007-11-01 | C14: =IF(A14>$C$3,"_",IFERROR(VLOOKUP(B14,BAZA_LIBOR_WIBOR_KURS!$C$2:$F$145,2,FALSE),C13)) -> 0.02751 | D14: 0.02 | E14: 520.3497957 | F14: 167.9336281 | G14: =IF(A14>$C$3,"_",$C$8-SUM($F$11:F14)) -> 131261.1876 | H14: =IF(A14>$C$3,"_",IFERROR(VLOOKUP(B14,BAZA_LIBOR_WIBOR_KURS!$C$2:$F$145,4,FALSE),H13)) -> 2.220052381 | I14: =IF(A14>$C$3,"_",IFERROR(VLOOKUP(B14,BAZA_LIBOR_WIBOR_KURS!$C$2:$F$145,3,FALSE),I13)) -> 0.05363809524 | J14: 0.02 | K14: 1528.025254 | L14: 1844.29 | M14: -316.264746 | N14: =IF(A14>$C$3,"_",$C$2-SUM($M$11:M14)) -> 300860.8236
A15: 5 | B15: 2007-12-01 | C15: =IF(A15>$C$3,"_",IFERROR(VLOOKUP(B15,BAZA_LIBOR_WIBOR_KURS!$C$2:$F$145,2,FALSE),C14)) -> 0.02774 | D15: 0.02 | E15: 522.2007579 | F15: 167.898261 | G15: =IF(A15>$C$3,"_",$C$8-SUM($F$11:F15)) -> 131093.2893 | H15: =IF(A15>$C$3,"_",IFERROR(VLOOKUP(B15,BAZA_LIBOR_WIBOR_KURS!$C$2:$F$145,4,FALSE),H14)) -> 2.171289474 | I15: =IF(A15>$C$3,"_",IFERROR(VLOOKUP(B15,BAZA_LIBOR_WIBOR_KURS!$C$2:$F$145,3,FALSE),I14)) -> 0.05666842105 | J15: 0.02 | K15: 1498.404736 | L15: 1922.21 | M15: -423.8052643 | N15: =IF(A15>$C$3,"_",$C$2-SUM($M$11:M15)) -> 301284.6289
A16: 6 | B16: 2008-01-01 | C16: =IF(A16>$C$3,"_",IFERROR(VLOOKUP(B16,BAZA_LIBOR_WIBOR_KURS!$C$2:$F$145,2,FALSE),C15)) -> 0.02696 | D16: 0.02 | E16: 513.0117389 | F16: 170.9519886 | G16: =IF(A16>$C$3,"_",$C$8-SUM($F$11:F16)) -> 130922.3373 | H16: =IF(A16>$C$3,"_",IFERROR(VLOOKUP(B16,BAZA_LIBOR_WIBOR_KURS!$C$2:$F$145,4,FALSE),H15)) -> 2.2278 | I16: =IF(A16>$C$3,"_",IFERROR(VLOOKUP(B16,BAZA_LIBOR_WIBOR_KURS!$C$2:$F$145,3,FALSE),I15)) -> 0.05642727273 | J16: 0.02 | K16: 1523.734392 | L16: 1918.86 | M16: -395.125608 | N16: =IF(A16>$C$3,"_",$C$2-SUM($M$11:M16)) -> 301679.7545
A17: 7 | B17: 2008-02-01 | C17: =IF(A17>$C$3,"_",IFERROR(VLOOKUP(B17,BAZA_LIBOR_WIBOR_KURS!$C$2:$F$145,2,FALSE),C16)) -> 0.02745 | D17: 0.02 | E17: 517.6887422 | F17: 170.1181773 | G17: =IF(A17>$C$3,"_",$C$8-SUM($F$11:F17)) -> 130752.2192 | H17: =IF(A17>$C$3,"_",IFERROR(VLOOKUP(B17,BAZA_LIBOR_WIBOR_KURS!$C$2:$F$145,4,FALSE),H16)) -> 2.224019048 | I17: =IF(A17>$C$3,"_",IFERROR(VLOOKUP(B17,BAZA_LIBOR_WIBOR_KURS!$C$2:$F$145,3,FALSE),I16)) -> 0.05742857143 | J17: 0.02 | K17: 1529.69569 | L17: 1946.55 | M17: -416.8543098 | N17: =IF(A17>$C$3,"_",$C$2-SUM($M$11:M17)) -> 302096.6088
A18: 8 | B18: 2008-03-01 | C18: =IF(A18>$C$3,"_",IFERROR(VLOOKUP(B18,BAZA_LIBOR_WIBOR_KURS!$C$2:$F$145,2,FALSE),C17)) -> 0.02829 | D18: 0.02 | E18: 526.1687219 | F18: 168.2375444 | G18: =IF(A18>$C$3,"_",$C$8-SUM($F$11:F18)) -> 130583.9816 | H18: =IF(A18>$C$3,"_",IFERROR(VLOOKUP(B18,BAZA_LIBOR_WIBOR_KURS!$C$2:$F$145,4,FALSE),H17)) -> 2.25202 | I18: =IF(A18>$C$3,"_",IFERROR(VLOOKUP(B18,BAZA_LIBOR_WIBOR_KURS!$C$2:$F$145,3,FALSE),I17)) -> 0.060265 | J18: 0.02 | K18: 1563.8168 | L18: 2020.65 | M18: -456.8332001 | N18: =IF(A18>$C$3,"_",$C$2-SUM($M$11:M18)) -> 302553.442
A19: 9 | B19: 2008-04-01 | C19: =IF(A19>$C$3,"_",IFERROR(VLOOKUP(B19,BAZA_LIBOR_WIBOR_KURS!$C$2:$F$145,2,FALSE),C18)) -> 0.02848 | D19: 0.02 | E19: 527.5592857 | F19: 168.3409082 | G19: =IF(A19>$C$3,"_",$C$8-SUM($F$11:F19)) -> 130415.6407 | H19: =IF(A19>$C$3,"_",IFERROR(VLOOKUP(B19,BAZA_LIBOR_WIBOR_KURS!$C$2:$F$145,4,FALSE),H18)) -> 2.159181818 | I19: =IF(A19>$C$3,"_",IFERROR(VLOOKUP(B19,BAZA_LIBOR_WIBOR_KURS!$C$2:$F$145,3,FALSE),I18)) -> 0.06291363636 | J19: 0.02 | K19: 1502.575046 | L19: 2090.48 | M19: -587.9049541 | N19: =IF(A19>$C$3,"_",$C$2-SUM($M$11:M19)) -> 303141.3469
A20: 10 | B20: 2008-05-01 | C20: =IF(A20>$C$3,"_",IFERROR(VLOOKUP(B20,BAZA_LIBOR_WIBOR_KURS!$C$2:$F$145,2,FALSE),C19)) -> 0.02782 | D20: 0.02 | E20: 519.7063282 | F20: 171.0217689 | G20: =IF(A20>$C$3,"_",$C$8-SUM($F$11:F20)) -> 130244.6189 | H20: =IF(A20>$C$3,"_",IFERROR(VLOOKUP(B20,BAZA_LIBOR_WIBOR_KURS!$C$2:$F$145,4,FALSE),H19)) -> 2.09523 | I20: =IF(A20>$C$3,"_",IFERROR(VLOOKUP(B20,BAZA_LIBOR_WIBOR_KURS!$C$2:$F$145,3,FALSE),I19)) -> 0.064145 | J20: 0.02 | K20: 1447.234231 | L20: 2125.65 | M20: -678.4157691 | N20: =IF(A20>$C$3,"_",$C$2-SUM($M$11:M20)) -> 303819.7627
A21: 11 | B21: 2008-06-01 | C21: =IF(A21>$C$3,"_",IFERROR(VLOOKUP(B21,BAZA_LIBOR_WIBOR_KURS!$C$2:$F$145,2,FALSE),C20)) -> 0.02837 | D21: 0.02 | E21: 524.9943515 | F21: 170.0336106 | G21: =IF(A21>$C$3,"_",$C$8-SUM($F$11:F21)) -> 130074.5853 | H21: =IF(A21>$C$3,"_",IFERROR(VLOOKUP(B21,BAZA_LIBOR_WIBOR_KURS!$C$2:$F$145,4,FALSE),H20)) -> 2.090790476 | I21: =IF(A21>$C$3,"_",IFERROR(VLOOKUP(B21,BAZA_LIBOR_WIBOR_KURS!$C$2:$F$145,3,FALSE),I20)) -> 0.06575714286 | J21: 0.02 | K21: 1453.157844 | L21: 2171.23 | M21: -718.0721563 | N21: =IF(A21>$C$3,"_",$C$2-SUM($M$11:M21)) -> 304537.8349
A22: 12 | B22: 2008-07-01 | C22: =IF(A22>$C$3,"_",IFERROR(VLOOKUP(B22,BAZA_LIBOR_WIBOR_KURS!$C$2:$F$145,2,FALSE),C21)) -> 0.02786 | D22: 0.02 | E22: 518.7808045 | F22: 172.2677916 | G22: =IF(A22>$C$3,"_",$C$8-SUM($F$11:F22)) -> 129902.3175 | H22: =IF(A22>$C$3,"_",IFERROR(VLOOKUP(B22,BAZA_LIBOR_WIBOR_KURS!$C$2:$F$145,4,FALSE),H21)) -> 2.014873913 | I22: =IF(A22>$C$3,"_",IFERROR(VLOOKUP(B22,BAZA_LIBOR_WIBOR_KURS!$C$2:$F$145,3,FALSE),I21)) -> 0.0662 | J22: 0.02 | K22: 1392.375789 | L22: 2187.6 | M22: -795.2242112 | N22: =IF(A22>$C$3,"_",$C$2-SUM($M$11:M22)) -> 305333.0591
A23: 13 | B23: 2008-08-01 | C23: =IF(A23>$C$3,"_",IFERROR(VLOOKUP(B23,BAZA_LIBOR_WIBOR_KURS!$C$2:$F$145,2,FALSE),C22)) -> 0.02748 | D23: 0.02 | E23: 513.9801697 | F23: 174.1168645 | G23: =IF(A23>$C$3,"_",$C$8-SUM($F$11:F23)) -> 129728.2007 | H23: =IF(A23>$C$3,"_",IFERROR(VLOOKUP(B23,BAZA_LIBOR_WIBOR_KURS!$C$2:$F$145,4,FALSE),H22)) -> 2.027765 | I23: =IF(A23>$C$3,"_",IFERROR(VLOOKUP(B23,BAZA_LIBOR_WIBOR_KURS!$C$2:$F$145,3,FALSE),I22)) -> 0.06521 | J23: 0.02 | K23: 1395.299083 | L23: 2168.12 | M23: -772.8209175 | N23: =IF(A23>$C$3,"_",$C$2-SUM($M$11:M23)) -> 306105.88
A24: 14 | B24: 2008-09-01 | C24: =IF(A24>$C$3,"_",IFERROR(VLOOKUP(B24,BAZA_LIBOR_WIBOR_KURS!$C$2:$F$145,2,FALSE),C23)) -> 0.02779 | D24: 0.02 | E24: 516.6425592 | F24: 173.8568121 | G24: =IF(A24>$C$3,"_",$C$8-SUM($F$11:F24)) -> 129554.3439 | H24: =IF(A24>$C$3,"_",IFERROR(VLOOKUP(B24,BAZA_LIBOR_WIBOR_KURS!$C$2:$F$145,4,FALSE),H23)) -> 2.115818182 | I24: =IF(A24>$C$3,"_",IFERROR(VLOOKUP(B24,BAZA_LIBOR_WIBOR_KURS!$C$2:$F$145,3,FALSE),I23)) -> 0.06558181818 | J24: 0.02 | K24: 1460.971124 | L24: 2183.09 | M24: -722.1188758 | N24: =IF(A24>$C$3,"_",$C$2-SUM($M$11:M24)) -> 306827.9989
A25: 15 | B25: 2008-10-01 | C25: =IF(A25>$C$3,"_",IFERROR(VLOOKUP(B25,BAZA_LIBOR_WIBOR_KURS!$C$2:$F$145,2,FALSE),C24)) -> 0.02998 | D25: 0.02 | E25: 539.5938422 | F25: 167.9579376 | G25: =IF(A25>$C$3,"_",$C$8-SUM($F$11:F25)) -> 129386.3859 | H25: =IF(A25>$C$3,"_",IFERROR(VLOOKUP(B25,BAZA_LIBOR_WIBOR_KURS!$C$2:$F$145,4,FALSE),H24)) -> 2.355926087 | I25: =IF(A25>$C$3,"_",IFERROR(VLOOKUP(B25,BAZA_LIBOR_WIBOR_KURS!$C$2:$F$145,3,FALSE),I24)) -> 0.06796956522 | J25: 0.02 | K25: 1666.939696 | L25: 2249.29 | M25: -582.3503041 | N25: =IF(A25>$C$3,"_",$C$2-SUM($M$11:M25)) -> 307410.3492
A26: 16 | B26: 2008-11-01 | C26: =IF(A26>$C$3,"_",IFERROR(VLOOKUP(B26,BAZA_LIBOR_WIBOR_KURS!$C$2:$F$145,2,FALSE),C25)) -> 0.01967 | D26: 0.02 | E26: 427.7298275 | F26: 201.5224475 | G26: =IF(A26>$C$3,"_",$C$8-SUM($F$11:F26)) -> 129184.8635 | H26: =IF(A26>$C$3,"_",IFERROR(VLOOKUP(B26,BAZA_LIBOR_WIBOR_KURS!$C$2:$F$145,4,FALSE),H25)) -> 2.459 | I26: =IF(A26>$C$3,"_",IFERROR(VLOOKUP(B26,BAZA_LIBOR_WIBOR_KURS!$C$2:$F$145,3,FALSE),I25)) -> 0.06739473684 | J26: 0.02 | K26: 1547.331344 | L26: 2238.84 | M26: -691.508656 | N26: =IF(A26>$C$3,"_",$C$2-SUM($M$11:M26)) -> 308101.8578
A27: 17 | B27: 2008-12-01 | C27: =IF(A27>$C$3,"_",IFERROR(VLOOKUP(B27,BAZA_LIBOR_WIBOR_KURS!$C$2:$F$145,2,FALSE),C26)) -> 0.00913 | D27: 0.02 | E27: 313.5962561 | F27: 240.7424967 | G27: =IF(A27>$C$3,"_",$C$8-SUM($F$11:F27)) -> 128944.121 | H27: =IF(A27>$C$3,"_",IFERROR(VLOOKUP(B27,BAZA_LIBOR_WIBOR_KURS!$C$2:$F$145,4,FALSE),H26)) -> 2.605928571 | I27: =IF(A27>$C$3,"_",IFERROR(VLOOKUP(B27,BAZA_LIBOR_WIBOR_KURS!$C$2:$F$145,3,FALSE),I26)) -> 0.06378571429 | J27: 0.02 | K27: 1444.567194 | L27: 2151.21 | M27: -706.6428059 | N27: =IF(A27>$C$3,"_",$C$2-SUM($M$11:M27)) -> 308808.5006
A28: 18 | B28: 2009-01-01 | C28: =IF(A28>$C$3,"_",IFERROR(VLOOKUP(B28,BAZA_LIBOR_WIBOR_KURS!$C$2:$F$145,2,FALSE),C27)) -> 0.00569 | D28: 0.02 | E28: 276.0478723 | F28: 255.0332075 | G28: =IF(A28>$C$3,"_",$C$8-SUM($F$11:F28)) -> 128689.0878 | H28: =IF(A28>$C$3,"_",IFERROR(VLOOKUP(B28,BAZA_LIBOR_WIBOR_KURS!$C$2:$F$145,4,FALSE),H27)) -> 2.82552381 | I28: =IF(A28>$C$3,"_",IFERROR(VLOOKUP(B28,BAZA_LIBOR_WIBOR_KURS!$C$2:$F$145,3,FALSE),I27)) -> 0.05506190476 | J28: 0.02 | K28: 1500.582236 | L28: 1931.65 | M28: -431.0677642 | N28: =IF(A28>$C$3,"_",$C$2-SUM($M$11:M28)) -> 309239.5684
A29: 19 | B29: 2009-02-01 | C29: =IF(A29>$C$3,"_",IFERROR(VLOOKUP(B29,BAZA_LIBOR_WIBOR_KURS!$C$2:$F$145,2,FALSE),C28)) -> 0.00506 | D29: 0.02 | E29: 268.7457116 | F29: 258.1482512 | G29: =IF(A29>$C$3,"_",$C$8-SUM($F$11:F29)) -> 128430.9395 | H29: =IF(A29>$C$3,"_",IFERROR(VLOOKUP(B29,BAZA_LIBOR_WIBOR_KURS!$C$2:$F$145,4,FALSE),H28)) -> 3.119175 | I29: =IF(A29>$C$3,"_",IFERROR(VLOOKUP(B29,BAZA_LIBOR_WIBOR_KURS!$C$2:$F$145,3,FALSE),I28)) -> 0.046875 | J29: 0.02 | K29: 1643.474476 | L29: 1723.37 | M29: -79.89552362 | N29: =IF(A29>$C$3,"_",$C$2-SUM($M$11:M29)) -> 309319.4639
A30: 20 | B30: 2009-03-01 | C30: =IF(A30>$C$3,"_",IFERROR(VLOOKUP(B30,BAZA_LIBOR_WIBOR_KURS!$C$2:$F$145,2,FALSE),C29)) -> 0.00436 | D30: 0.02 | E30: 260.7148072 | F30: 261.5609753 | G30: =IF(A30>$C$3,"_",$C$8-SUM($F$11:F30)) -> 128169.3785 | H30: =IF(A30>$C$3,"_",IFERROR(VLOOKUP(B30,BAZA_LIBOR_WIBOR_KURS!$C$2:$F$145,4,FALSE),H29)) -> 3.071522727 | I30: =IF(A30>$C$3,"_",IFERROR(VLOOKUP(B30,BAZA_LIBOR_WIBOR_KURS!$C$2:$F$145,3,FALSE),I29)) -> 0.04299090909 | J30: 0.02 | K30: 1604.181936 | L30: 1623.69 | M30: -19.50806419 | N30: =IF(A30>$C$3,"_",$C$2-SUM($M$11:M30)) -> 309338.972
A31: 21 | B31: 2009-04-01 | C31: =IF(A31>$C$3,"_",IFERROR(VLOOKUP(B31,BAZA_LIBOR_WIBOR_KURS!$C$2:$F$145,2,FALSE),C30)) -> 0.00401 | D31: 0.02 | E31: 256.4455649 | F31: 263.5358423 | G31: =IF(A31>$C$3,"_",$C$8-SUM($F$11:F31)) -> 127905.8427 | H31: =IF(A31>$C$3,"_",IFERROR(VLOOKUP(B31,BAZA_LIBOR_WIBOR_KURS!$C$2:$F$145,4,FALSE),H30)) -> 2.923585714 | I31: =IF(A31>$C$3,"_",IFERROR(VLOOKUP(B31,BAZA_LIBOR_WIBOR_KURS!$C$2:$F$145,3,FALSE),I30)) -> 0.04204761905 | J31: 0.02 | K31: 1520.210214 | L31: 1599.48 | M31: -79.26978634 | N31: =IF(A31>$C$3,"_",$C$2-SUM($M$11:M31)) -> 309418.2418
A32: 22 | B32: 2009-05-01 | C32: =IF(A32>$C$3,"_",IFERROR(VLOOKUP(B32,BAZA_LIBOR_WIBOR_KURS!$C$2:$F$145,2,FALSE),C31)) -> 0.00402 | D32: 0.02 | E32: 256.0248618 | F32: 264.0218493 | G32: =IF(A32>$C$3,"_",$C$8-SUM($F$11:F32)) -> 127641.8209 | H32: =IF(A32>$C$3,"_",IFERROR(VLOOKUP(B32,BAZA_LIBOR_WIBOR_KURS!$C$2:$F$145,4,FALSE),H31)) -> 2.9162 | I32: =IF(A32>$C$3,"_",IFERROR(VLOOKUP(B32,BAZA_LIBOR_WIBOR_KURS!$C$2:$F$145,3,FALSE),I31)) -> 0.045155 | J32: 0.02 | K32: 1516.560219 | L32: 1680.01 | M32: -163.4497812 | N32: =IF(A32>$C$3,"_",$C$2-SUM($M$11:M32)) -> 309581.6915
A33: 23 | B33: 2009-06-01 | C33: =IF(A33>$C$3,"_",IFERROR(VLOOKUP(B33,BAZA_LIBOR_WIBOR_KURS!$C$2:$F$145,2,FALSE),C32)) -> 0.00395 | D33: 0.02 | E33: 254.7518008 | F33: 264.8390601 | G33: =IF(A33>$C$3,"_",$C$8-SUM($F$11:F33)) -> 127376.9818 | H33: =IF(A33>$C$3,"_",IFERROR(VLOOKUP(B33,BAZA_LIBOR_WIBOR_KURS!$C$2:$F$145,4,FALSE),H32)) -> 2.976942857 | I33: =IF(A33>$C$3,"_",IFERROR(VLOOKUP(B33,BAZA_LIBOR_WIBOR_KURS!$C$2:$F$145,3,FALSE),I32)) -> 0.04598095238 | J33: 0.02 | K33: 1546.792302 | L33: 1702.21 | M33: -155.4176981 | N33: =IF(A33>$C$3,"_",$C$2-SUM($M$11:M33)) -> 309737.1092
A34: 24 | B34: 2009-07-01 | C34: =IF(A34>$C$3,"_",IFERROR(VLOOKUP(B34,BAZA_LIBOR_WIBOR_KURS!$C$2:$F$145,2,FALSE),C33)) -> 0.00373 | D34: 0.02 | E34: 251.8879815 | F34: 266.2754231 | G34: =IF(A34>$C$3,"_",$C$8-SUM($F$11:F34)) -> 127110.7064 | H34: =IF(A34>$C$3,"_",IFERROR(VLOOKUP(B34,BAZA_LIBOR_WIBOR_KURS!$C$2:$F$145,4,FALSE),H33)) -> 2.828847826 | I34: =IF(A34>$C$3,"_",IFERROR(VLOOKUP(B34,BAZA_LIBOR_WIBOR_KURS!$C$2:$F$145,3,FALSE),I33)) -> 0.0425826087 | J34: 0.02 | K34: 1465.805421 | L34: 1615.35 | M34: -149.5445793 | N34: =IF(A34>$C$3,"_",$C$2-SUM($M$11:M34)) -> 309886.6538
A35: 25 | B35: 2009-08-01 | C35: =IF(A35>$C$3,"_",IFERROR(VLOOKUP(B35,BAZA_LIBOR_WIBOR_KURS!$C$2:$F$145,2,FALSE),C34)) -> 0.00343 | D35: 0.02 | E35: 248.1836542 | F35: 268.0419588 | G35: =IF(A35>$C$3,"_",$C$8-SUM($F$11:F35)) -> 126842.6644 | H35: =IF(A35>$C$3,"_",IFERROR(VLOOKUP(B35,BAZA_LIBOR_WIBOR_KURS!$C$2:$F$145,4,FALSE),H34)) -> 2.710380952 | I35: =IF(A35>$C$3,"_",IFERROR(VLOOKUP(B35,BAZA_LIBOR_WIBOR_KURS!$C$2:$F$145,3,FALSE),I34)) -> 0.04159047619 | J35: 0.02 | K35: 1399.168069 | L35: 1590.51 | M35: -191.3419314 | N35: =IF(A35>$C$3,"_",$C$2-SUM($M$11:M35)) -> 310077.9957
A36: 26 | B36: 2009-09-01 | C36: =IF(A36>$C$3,"_",IFERROR(VLOOKUP(B36,BAZA_LIBOR_WIBOR_KURS!$C$2:$F$145,2,FALSE),C35)) -> 0.00301 | D36: 0.02 | E36: 243.220809 | F36: 270.306094 | G36: =IF(A36>$C$3,"_",$C$8-SUM($F$11:F36)) -> 126572.3583 | H36: =IF(A36>$C$3,"_",IFERROR(VLOOKUP(B36,BAZA_LIBOR_WIBOR_KURS!$C$2:$F$145,4,FALSE),H35)) -> 2.748009091 | I36: =IF(A36>$C$3,"_",IFERROR(VLOOKUP(B36,BAZA_LIBOR_WIBOR_KURS!$C$2:$F$145,3,FALSE),I35)) -> 0.04177272727 | J36: 0.02 | K36: 1411.176598 | L36: 1596.2 | M36: -185.0234021 | N36: =IF(A36>$C$3,"_",$C$2-SUM($M$11:M36)) -> 310263.0192
A37: 27 | B37: 2009-10-01 | C37: =IF(A37>$C$3,"_",IFERROR(VLOOKUP(B37,BAZA_LIBOR_WIBOR_KURS!$C$2:$F$145,2,FALSE),C36)) -> 0.00273 | D37: 0.02 | E37: 239.749142 | F37: 271.9879435 | G37: =IF(A37>$C$3,"_",$C$8-SUM($F$11:F37)) -> 126300.3704 | H37: =IF(A37>$C$3,"_",IFERROR(VLOOKUP(B37,BAZA_LIBOR_WIBOR_KURS!$C$2:$F$145,4,FALSE),H36)) -> 2.782645455 | I37: =IF(A37>$C$3,"_",IFERROR(VLOOKUP(B37,BAZA_LIBOR_WIBOR_KURS!$C$2:$F$145,3,FALSE),I36)) -> 0.04183636364 | J37: 0.02 | K37: 1423.982875 | L37: 1598.79 | M37: -174.8071249 | N37: =IF(A37>$C$3,"_",$C$2-SUM($M$11:M37)) -> 310437.8263
A38: 28 | B38: 2009-11-01 | C38: =IF(A38>$C$3,"_",IFERROR(VLOOKUP(B38,BAZA_LIBOR_WIBOR_KURS!$C$2:$F$145,2,FALSE),C37)) -> 0.00255 | D38: 0.02 | E38: 237.339446 | F38: 273.2520153 | G38: =IF(A38>$C$3,"_",$C$8-SUM($F$11:F38)) -> 126027.1184 | H38: =IF(A38>$C$3,"_",IFERROR(VLOOKUP(B38,BAZA_LIBOR_WIBOR_KURS!$C$2:$F$145,4,FALSE),H37)) -> 2.76002 | I38: =IF(A38>$C$3,"_",IFERROR(VLOOKUP(B38,BAZA_LIBOR_WIBOR_KURS!$C$2:$F$145,3,FALSE),I37)) -> 0.041915 | J38: 0.02 | K38: 1409.242645 | L38: 1601.73 | M38: -192.4873551 | N38: =IF(A38>$C$3,"_",$C$2-SUM($M$11:M38)) -> 310630.3136
A39: 29 | B39: 2009-12-01 | C39: =IF(A39>$C$3,"_",IFERROR(VLOOKUP(B39,BAZA_LIBOR_WIBOR_KURS!$C$2:$F$145,2,FALSE),C38)) -> 0.00252 | D39: 0.02 | E39: 236.5108921 | F39: 273.8902849 | G39: =IF(A39>$C$3,"_",$C$8-SUM($F$11:F39)) -> 125753.2281 | H39: =IF(A39>$C$3,"_",IFERROR(VLOOKUP(B39,BAZA_LIBOR_WIBOR_KURS!$C$2:$F$145,4,FALSE),H38)) -> 2.756163636 | I39: =IF(A39>$C$3,"_",IFERROR(VLOOKUP(B39,BAZA_LIBOR_WIBOR_KURS!$C$2:$F$145,3,FALSE),I38)) -> 0.04232272727 | J39: 0.02 | K39: 1406.749164 | L39: 1613.28 | M39: -206.5308361 | N39: =IF(A39>$C$3,"_",$C$2-SUM($M$11:M39)) -> 310836.8445
A40: 30 | B40: 2010-01-01 | C40: =IF(A40>$C$3,"_",IFERROR(VLOOKUP(B40,BAZA_LIBOR_WIBOR_KURS!$C$2:$F$145,2,FALSE),C39)) -> 0.0025 | D40: 0.02 | E40: 235.7873026 | F40: 274.487379 | G40: =IF(A40>$C$3,"_",$C$8-SUM($F$11:F40)) -> 125478.7407 | H40: =IF(A40>$C$3,"_",IFERROR(VLOOKUP(B40,BAZA_LIBOR_WIBOR_KURS!$C$2:$F$145,4,FALSE),H39)) -> 2.754515 | I40: =IF(A40>$C$3,"_",IFERROR(VLOOKUP(B40,BAZA_LIBOR_WIBOR_KURS!$C$2:$F$145,3,FALSE),I39)) -> 0.04237 | J40: 0.02 | K40: 1405.559265 | L40: 1615.57 | M40: -210.0107352 | N40: =IF(A40>$C$3,"_",$C$2-SUM($M$11:M40)) -> 311046.8552
A41: 31 | B41: 2010-02-01 | C41: =IF(A41>$C$3,"_",IFERROR(VLOOKUP(B41,BAZA_LIBOR_WIBOR_KURS!$C$2:$F$145,2,FALSE),C40)) -> 0.00249 | D41: 0.02 | E41: 235.1680732 | F41: 275.0435368 | G41: =IF(A41>$C$3,"_",$C$8-SUM($F$11:F41)) -> 125203.6972 | H41: =IF(A41>$C$3,"_",IFERROR(VLOOKUP(B41,BAZA_LIBOR_WIBOR_KURS!$C$2:$F$145,4,FALSE),H40)) -> 2.73548 | I41: =IF(A41>$C$3,"_",IFERROR(VLOOKUP(B41,BAZA_LIBOR_WIBOR_KURS!$C$2:$F$145,3,FALSE),I40)) -> 0.041725 | J41: 0.02 | K41: 1395.673655 | L41: 1599.95 | M41: -204.2763453 | N41: =IF(A41>$C$3,"_",$C$2-SUM($M$11:M41)) -> 311251.1315
A42: 32 | B42: 2010-03-01 | C42: =IF(A42>$C$3,"_",IFERROR(VLOOKUP(B42,BAZA_LIBOR_WIBOR_KURS!$C$2:$F$145,2,FALSE),C41)) -> 0.00249 | D42: 0.02 | E42: 234.6525958 | F42: 275.5590142 | G42: =IF(A42>$C$3,"_",$C$8-SUM($F$11:F42)) -> 124928.1381 | H42: =IF(A42>$C$3,"_",IFERROR(VLOOKUP(B42,BAZA_LIBOR_WIBOR_KURS!$C$2:$F$145,4,FALSE),H41)) -> 2.6885 | I42: =IF(A42>$C$3,"_",IFERROR(VLOOKUP(B42,BAZA_LIBOR_WIBOR_KURS!$C$2:$F$145,3,FALSE),I41)) -> 0.04129130435 | J42: 0.02 | K42: 1371.703913 | L42: 1589.75 | M42: -218.0460867 | N42: =IF(A42>$C$3,"_",$C$2-SUM($M$11:M42)) -> 311469.1776
A43: 33 | B43: 2010-04-01 | C43: =IF(A43>$C$3,"_",IFERROR(VLOOKUP(B43,BAZA_LIBOR_WIBOR_KURS!$C$2:$F$145,2,FALSE),C42)) -> 0.00244 | D43: 0.02 | E43: 233.6156183 | F43: 276.2823929 | G43: =IF(A43>$C$3,"_",$C$8-SUM($F$11:F43)) -> 124651.8557 | H43: =IF(A43>$C$3,"_",IFERROR(VLOOKUP(B43,BAZA_LIBOR_WIBOR_KURS!$C$2:$F$145,4,FALSE),H42)) -> 2.702438095 | I43: =IF(A43>$C$3,"_",IFERROR(VLOOKUP(B43,BAZA_LIBOR_WIBOR_KURS!$C$2:$F$145,3,FALSE),I42)) -> 0.03921904762 | J43: 0.02 | K43: 1377.96781 | L43: 1537.08 | M43: -159.1121897 | N43: =IF(A43>$C$3,"_",$C$2-SUM($M$11:M43)) -> 311628.2898
A44: 34 | B44: 2010-05-01 | C44: =IF(A44>$C$3,"_",IFERROR(VLOOKUP(B44,BAZA_LIBOR_WIBOR_KURS!$C$2:$F$145,2,FALSE),C43)) -> 0.00194 | D44: 0.02 | E44: 227.9051429 | F44: 278.8715873 | G44: =IF(A44>$C$3,"_",$C$8-SUM($F$11:F44)) -> 124372.9842 | H44: =IF(A44>$C$3,"_",IFERROR(VLOOKUP(B44,BAZA_LIBOR_WIBOR_KURS!$C$2:$F$145,4,FALSE),H43)) -> 2.8604 | I44: =IF(A44>$C$3,"_",IFERROR(VLOOKUP(B44,BAZA_LIBOR_WIBOR_KURS!$C$2:$F$145,3,FALSE),I43)) -> 0.03854 | J44: 0.02 | K44: 1449.584159 | L44: 1520.23 | M44: -70.6458409 | N44: =IF(A44>$C$3,"_",$C$2-SUM($M$11:M44)) -> 311698.9357
A45: 35 | B45: 2010-06-01 | C45: =IF(A45>$C$3,"_",IFERROR(VLOOKUP(B45,BAZA_LIBOR_WIBOR_KURS!$C$2:$F$145,2,FALSE),C44)) -> 0.00097 | D45: 0.02 | E45: 217.3417898 | F45: 283.4283622 | G45: =IF(A45>$C$3,"_",$C$8-SUM($F$11:F45)) -> 124089.5558 | H45: =IF(A45>$C$3,"_",IFERROR(VLOOKUP(B45,BAZA_LIBOR_WIBOR_KURS!$C$2:$F$145,4,FALSE),H44)) -> 2.983728571 | I45: =IF(A45>$C$3,"_",IFERROR(VLOOKUP(B45,BAZA_LIBOR_WIBOR_KURS!$C$2:$F$145,3,FALSE),I44)) -> 0.03855238095 | J45: 0.02 | K45: 1494.16221 | L45: 1520.89 | M45: -26.72778977 | N45: =IF(A45>$C$3,"_",$C$2-SUM($M$11:M45)) -> 311725.6635
A46: 36 | B46: 2010-07-01 | C46: =IF(A46>$C$3,"_",IFERROR(VLOOKUP(B46,BAZA_LIBOR_WIBOR_KURS!$C$2:$F$145,2,FALSE),C45)) -> 0.00132 | D46: 0.02 | E46: 220.4657775 | F46: 282.4608486 | G46: =IF(A46>$C$3,"_",$C$8-SUM($F$11:F46)) -> 123807.095 | H46: =IF(A46>$C$3,"_",IFERROR(VLOOKUP(B46,BAZA_LIBOR_WIBOR_KURS!$C$2:$F$145,4,FALSE),H45)) -> 3.028795455 | I46: =IF(A46>$C$3,"_",IFERROR(VLOOKUP(B46,BAZA_LIBOR_WIBOR_KURS!$C$2:$F$145,3,FALSE),I45)) -> 0.03835454545 | J46: 0.02 | K46: 1523.261879 | L46: 1515.88 | M46: 7.381878899 | N46: =IF(A46>$C$3,"_",$C$2-SUM($M$11:M46)) -> 311718.2816
A47: 37 | B47: 2010-08-01 | C47: =IF(A47>$C$3,"_",IFERROR(VLOOKUP(B47,BAZA_LIBOR_WIBOR_KURS!$C$2:$F$145,2,FALSE),C46)) -> 0.00164 | D47: 0.02 | E47: 223.2654612 | F47: 281.6321915 | G47: =IF(A47>$C$3,"_",$C$8-SUM($F$11:F47)) -> 123525.4628 | H47: =IF(A47>$C$3,"_",IFERROR(VLOOKUP(B47,BAZA_LIBOR_WIBOR_KURS!$C$2:$F$145,4,FALSE),H46)) -> 2.971559091 | I47: =IF(A47>$C$3,"_",IFERROR(VLOOKUP(B47,BAZA_LIBOR_WIBOR_KURS!$C$2:$F$145,3,FALSE),I46)) -> 0.03812272727 | J47: 0.02 | K47: 1500.33321 | L47: 1509.83 | M47: -9.496790052 | N47: =IF(A47>$C$3,"_",$C$2-SUM($M$11:M47)) -> 311727.7784
A48: 38 | B48: 2010-09-01 | C48: =IF(A48>$C$3,"_",IFERROR(VLOOKUP(B48,BAZA_LIBOR_WIBOR_KURS!$C$2:$F$145,2,FALSE),C47)) -> 0.00175 | D48: 0.02 | E48: 223.8899013 | F48: 281.684483 | G48: =IF(A48>$C$3,"_",$C$8-SUM($F$11:F48)) -> 123243.7783 | H48: =IF(A48>$C$3,"_",IFERROR(VLOOKUP(B48,BAZA_LIBOR_WIBOR_KURS!$C$2:$F$145,4,FALSE),H47)) -> 3.022336364 | I48: =IF(A48>$C$3,"_",IFERROR(VLOOKUP(B48,BAZA_LIBOR_WIBOR_KURS!$C$2:$F$145,3,FALSE),I47)) -> 0.03821363636 | J48: 0.02 | K48: 1528.015846 | L48: 1512.23 | M48: 15.78584616 | N48: =IF(A48>$C$3,"_",$C$2-SUM($M$11:M48)) -> 311711.9925
A49: 39 | B49: 2010-10-01 | C49: =IF(A49>$C$3,"_",IFERROR(VLOOKUP(B49,BAZA_LIBOR_WIBOR_KURS!$C$2:$F$145,2,FALSE),C48)) -> 0.00174 | D49: 0.02 | E49: 223.276645 | F49: 282.2363658 | G49: =IF(A49>$C$3,"_",$C$8-SUM($F$11:F49)) -> 122961.5419 | H49: =IF(A49>$C$3,"_",IFERROR(VLOOKUP(B49,BAZA_LIBOR_WIBOR_KURS!$C$2:$F$145,4,FALSE),H48)) -> 2.937495238 | I49: =IF(A49>$C$3,"_",IFERROR(VLOOKUP(B49,BAZA_LIBOR_WIBOR_KURS!$C$2:$F$145,3,FALSE),I48)) -> 0.03832380952 | J49: 0.02 | K49: 1484.942062 | L49: 1515.02 | M49: -30.07793806 | N49: =IF(A49>$C$3,"_",$C$2-SUM($M$11:M49)) -> 311742.0705
A50: 40 | B50: 2010-11-01 | C50: =IF(A50>$C$3,"_",IFERROR(VLOOKUP(B50,BAZA_LIBOR_WIBOR_KURS!$C$2:$F$145,2,FALSE),C49)) -> 0.00169 | D50: 0.02 | E50: 222.252987 | F50: 282.9540719 | G50: =IF(A50>$C$3,"_",$C$8-SUM($F$11:F50)) -> 122678.5878 | H50: =IF(A50>$C$3,"_",IFERROR(VLOOKUP(B50,BAZA_LIBOR_WIBOR_KURS!$C$2:$F$145,4,FALSE),H49)) -> 2.943415 | I50: =IF(A50>$C$3,"_",IFERROR(VLOOKUP(B50,BAZA_LIBOR_WIBOR_KURS!$C$2:$F$145,3,FALSE),I49)) -> 0.03855 | J50: 0.02 | K50: 1487.034035 | L50: 1521.04 | M50: -34.00596467 | N50: =IF(A50>$C$3,"_",$C$2-SUM($M$11:M50)) -> 311776.0764
A51: 41 | B51: 2010-12-01 | C51: =IF(A51>$C$3,"_",IFERROR(VLOOKUP(B51,BAZA_LIBOR_WIBOR_KURS!$C$2:$F$145,2,FALSE),C50)) -> 0.0017 | D51: 0.02 | E51: 221.8437797 | F51: 283.4242908 | G51: =IF(A51>$C$3,"_",$C$8-SUM($F$11:F51)) -> 122395.1635 | H51: =IF(A51>$C$3,"_",IFERROR(VLOOKUP(B51,BAZA_LIBOR_WIBOR_KURS!$C$2:$F$145,4,FALSE),H50)) -> 3.120078261 | I51: =IF(A51>$C$3,"_",IFERROR(VLOOKUP(B51,BAZA_LIBOR_WIBOR_KURS!$C$2:$F$145,3,FALSE),I50)) -> 0.03915217391 | J51: 0.02 | K51: 1576.475922 | L51: 1536.85 | M51: 39.62592248 | N51: =IF(A51>$C$3,"_",$C$2-SUM($M$11:M51)) -> 311736.4505
A52: 42 | B52: 2011-01-01 | C52: =IF(A52>$C$3,"_",IFERROR(VLOOKUP(B52,BAZA_LIBOR_WIBOR_KURS!$C$2:$F$145,2,FALSE),C51)) -> 0.00169 | D52: 0.02 | E52: 221.2292581 | F52: 283.977971 | G52: =IF(A52>$C$3,"_",$C$8-SUM($F$11:F52)) -> 122111.1856 | H52: =IF(A52>$C$3,"_",IFERROR(VLOOKUP(B52,BAZA_LIBOR_WIBOR_KURS!$C$2:$F$145,4,FALSE),H51)) -> 3.045505 | I52: =IF(A52>$C$3,"_",IFERROR(VLOOKUP(B52,BAZA_LIBOR_WIBOR_KURS!$C$2:$F$145,3,FALSE),I51)) -> 0.040105 | J52: 0.02 | K52: 1538.611142 | L52: 1561.41 | M52: -22.79885784 | N52: =IF(A52>$C$3,"_",$C$2-SUM($M$11:M52)) -> 311759.2494
A53: 43 | B53: 2011-02-01 | C53: =IF(A53>$C$3,"_",IFERROR(VLOOKUP(B53,BAZA_LIBOR_WIBOR_KURS!$C$2:$F$145,2,FALSE),C52)) -> 0.0017 | D53: 0.02 | E53: 220.8177273 | F53: 284.4501729 | G53: =IF(A53>$C$3,"_",$C$8-SUM($F$11:F53)) -> 121826.7354 | H53: =IF(A53>$C$3,"_",IFERROR(VLOOKUP(B53,BAZA_LIBOR_WIBOR_KURS!$C$2:$F$145,4,FALSE),H52)) -> 3.028785 | I53: =IF(A53>$C$3,"_",IFERROR(VLOOKUP(B53,BAZA_LIBOR_WIBOR_KURS!$C$2:$F$145,3,FALSE),I52)) -> 0.04114 | J53: 0.02 | K53: 1530.347837 | L53: 1588.41 | M53: -58.06216305 | N53: =IF(A53>$C$3,"_",$C$2-SUM($M$11:M53)) -> 311817.3115
A54: 44 | B54: 2011-03-01 | C54: =IF(A54>$C$3,"_",IFERROR(VLOOKUP(B54,BAZA_LIBOR_WIBOR_KURS!$C$2:$F$145,2,FALSE),C53)) -> 0.00178 | D54: 0.02 | E54: 221.1155248 | F54: 284.6365362 | G54: =IF(A54>$C$3,"_",$C$8-SUM($F$11:F54)) -> 121542.0989 | H54: =IF(A54>$C$3,"_",IFERROR(VLOOKUP(B54,BAZA_LIBOR_WIBOR_KURS!$C$2:$F$145,4,FALSE),H53)) -> 3.116013043 | I54: =IF(A54>$C$3,"_",IFERROR(VLOOKUP(B54,BAZA_LIBOR_WIBOR_KURS!$C$2:$F$145,3,FALSE),I53)) -> 0.04178695652 | J54: 0.02 | K54: 1575.930019 | L54: 1605.52 | M54: -29.58998121 | N54: =IF(A54>$C$3,"_",$C$2-SUM($M$11:M54)) -> 311846.9015
A55: 45 | B55: 2011-04-01 | C55: =IF(A55>$C$3,"_",IFERROR(VLOOKUP(B55,BAZA_LIBOR_WIBOR_KURS!$C$2:$F$145,2,FALSE),C54)) -> 0.00184 | D55: 0.02 | E55: 221.2066199 | F55: 284.9077192 | G55: =IF(A55>$C$3,"_",$C$8-SUM($F$11:F55)) -> 121257.1911 | H55: =IF(A55>$C$3,"_",IFERROR(VLOOKUP(B55,BAZA_LIBOR_WIBOR_KURS!$C$2:$F$145,4,FALSE),H54)) -> 3.06101 | I55: =IF(A55>$C$3,"_",IFERROR(VLOOKUP(B55,BAZA_LIBOR_WIBOR_KURS!$C$2:$F$145,3,FALSE),I54)) -> 0.042705 | J55: 0.02 | K55: 1549.221053 | L55: 1629.53 | M55: -80.30894688 | N55: =IF(A55>$C$3,"_",$C$2-SUM($M$11:M55)) -> 311927.2104
A56: 46 | B56: 2011-05-01 | C56: =IF(A56>$C$3,"_",IFERROR(VLOOKUP(B56,BAZA_LIBOR_WIBOR_KURS!$C$2:$F$145,2,FALSE),C55)) -> 0.00179 | D56: 0.02 | E56: 220.1828496 | F56: 285.6304335 | G56: =IF(A56>$C$3,"_",$C$8-SUM($F$11:F56)) -> 120971.5607 | H56: =IF(A56>$C$3,"_",IFERROR(VLOOKUP(B56,BAZA_LIBOR_WIBOR_KURS!$C$2:$F$145,4,FALSE),H55)) -> 3.144947619 | I56: =IF(A56>$C$3,"_",IFERROR(VLOOKUP(B56,BAZA_LIBOR_WIBOR_KURS!$C$2:$F$145,3,FALSE),I55)) -> 0.044 | J56: 0.02 | K56: 1590.75628 | L56: 1663.61 | M56: -72.85371974 | N56: =IF(A56>$C$3,"_",$C$2-SUM($M$11:M56)) -> 312000.0642
A57: 47 | B57: 2011-06-01 | C57: =IF(A57>$C$3,"_",IFERROR(VLOOKUP(B57,BAZA_LIBOR_WIBOR_KURS!$C$2:$F$145,2,FALSE),C56)) -> 0.00175 | D57: 0.02 | E57: 219.2609538 | F57: 286.3122442 | G57: =IF(A57>$C$3,"_",$C$8-SUM($F$11:F57)) -> 120685.2485 | H57: =IF(A57>$C$3,"_",IFERROR(VLOOKUP(B57,BAZA_LIBOR_WIBOR_KURS!$C$2:$F$145,4,FALSE),H56)) -> 3.279057143 | I57: =IF(A57>$C$3,"_",IFERROR(VLOOKUP(B57,BAZA_LIBOR_WIBOR_KURS!$C$2:$F$145,3,FALSE),I56)) -> 0.04610952381 | J57: 0.02 | K57: 1657.803406 | L57: 1718.85 | M57: -61.04659372 | N57: =IF(A57>$C$3,"_",$C$2-SUM($M$11:M57)) -> 312061.1108
A58: 48 | B58: 2011-07-01 | C58: =IF(A58>$C$3,"_",IFERROR(VLOOKUP(B58,BAZA_LIBOR_WIBOR_KURS!$C$2:$F$145,2,FALSE),C57)) -> 0.00175 | D58: 0.02 | E58: 218.7420129 | F58: 286.8311852 | G58: =IF(A58>$C$3,"_",$C$8-SUM($F$11:F58)) -> 120398.4173 | H58: =IF(A58>$C$3,"_",IFERROR(VLOOKUP(B58,BAZA_LIBOR_WIBOR_KURS!$C$2:$F$145,4,FALSE),H57)) -> 3.391385714 | I58: =IF(A58>$C$3,"_",IFERROR(VLOOKUP(B58,BAZA_LIBOR_WIBOR_KURS!$C$2:$F$145,3,FALSE),I57)) -> 0.04700952381 | J58: 0.02 | K58: 1714.593721 | L58: 1742.59 | M58: -27.99627864 | N58: =IF(A58>$C$3,"_",$C$2-SUM($M$11:M58)) -> 312089.107
A59: 49 | B59: 2011-08-01 | C59: =IF(A59>$C$3,"_",IFERROR(VLOOKUP(B59,BAZA_LIBOR_WIBOR_KURS!$C$2:$F$145,2,FALSE),C58)) -> 0.00058 | D59: 0.02 | E59: 206.4832856 | F59: 292.1372062 | G59: =IF(A59>$C$3,"_",$C$8-SUM($F$11:F59)) -> 120106.2801 | H59: =IF(A59>$C$3,"_",IFERROR(VLOOKUP(B59,BAZA_LIBOR_WIBOR_KURS!$C$2:$F$145,4,FALSE),H58)) -> 3.677213636 | I59: =IF(A59>$C$3,"_",IFERROR(VLOOKUP(B59,BAZA_LIBOR_WIBOR_KURS!$C$2:$F$145,3,FALSE),I58)) -> 0.04716363636 | J59: 0.02 | K59: 1833.534072 | L59: 1746.75 | M59: 86.78407206 | N59: =IF(A59>$C$3,"_",$C$2-SUM($M$11:M59)) -> 312002.323
A60: 50 | B60: 2011-09-01 | C60: =IF(A60>$C$3,"_",IFERROR(VLOOKUP(B60,BAZA_LIBOR_WIBOR_KURS!$C$2:$F$145,2,FALSE),C59)) -> 9e-05 | D60: 0.02 | E60: 201.0779306 | F60: 294.6562178 | G60: =IF(A60>$C$3,"_",$C$8-SUM($F$11:F60)) -> 119811.6239 | H60: =IF(A60>$C$3,"_",IFERROR(VLOOKUP(B60,BAZA_LIBOR_WIBOR_KURS!$C$2:$F$145,4,FALSE),H59)) -> 3.610309091 | I60: =IF(A60>$C$3,"_",IFERROR(VLOOKUP(B60,BAZA_LIBOR_WIBOR_KURS!$C$2:$F$145,3,FALSE),I59)) -> 0.04745909091 | J60: 0.02 | K60: 1789.753502 | L60: 1753.95 | M60: 35.80350243 | N60: =IF(A60>$C$3,"_",$C$2-SUM($M$11:M60)) -> 311966.5195
A61: 51 | B61: 2011-10-01 | C61: =IF(A61>$C$3,"_",IFERROR(VLOOKUP(B61,BAZA_LIBOR_WIBOR_KURS!$C$2:$F$145,2,FALSE),C60)) -> 0.00037 | D61: 0.02 | E61: 203.3802315 | F61: 293.9972306 | G61: =IF(A61>$C$3,"_",$C$8-SUM($F$11:F61)) -> 119517.6266 | H61: =IF(A61>$C$3,"_",IFERROR(VLOOKUP(B61,BAZA_LIBOR_WIBOR_KURS!$C$2:$F$145,4,FALSE),H60)) -> 3.541433333 | I61: =IF(A61>$C$3,"_",IFERROR(VLOOKUP(B61,BAZA_LIBOR_WIBOR_KURS!$C$2:$F$145,3,FALSE),I60)) -> 0.04802380952 | J61: 0.02 | K61: 1761.429124 | L61: 1768.43 | M61: -7.000876364 | N61: =IF(A61>$C$3,"_",$C$2-SUM($M$11:M61)) -> 311973.5203
A62: 52 | B62: 2011-11-01 | C62: =IF(A62>$C$3,"_",IFERROR(VLOOKUP(B62,BAZA_LIBOR_WIBOR_KURS!$C$2:$F$145,2,FALSE),C61)) -> 0.00047 | D62: 0.02 | E62: 203.8771514 | F62: 294.0862898 | G62: =IF(A62>$C$3,"_",$C$8-SUM($F$11:F62)) -> 119223.5403 | H62: =IF(A62>$C$3,"_",IFERROR(VLOOKUP(B62,BAZA_LIBOR_WIBOR_KURS!$C$2:$F$145,4,FALSE),H61)) -> 3.59795 | I62: =IF(A62>$C$3,"_",IFERROR(VLOOKUP(B62,BAZA_LIBOR_WIBOR_KURS!$C$2:$F$145,3,FALSE),I61)) -> 0.049395 | J62: 0.02 | K62: 1791.647563 | L62: 1804.12 | M62: -12.47243654 | N62: =IF(A62>$C$3,"_",$C$2-SUM($M$11:M62)) -> 311985.9928
A63: 53 | B63: 2011-12-01 | C63: =IF(A63>$C$3,"_",IFERROR(VLOOKUP(B63,BAZA_LIBOR_WIBOR_KURS!$C$2:$F$145,2,FALSE),C62)) -> 0.00052 | D63: 0.02 | E63: 203.872254 | F63: 294.3834763 | G63: =IF(A63>$C$3,"_",$C$8-SUM($F$11:F63)) -> 118929.1569 | H63: =IF(A63>$C$3,"_",IFERROR(VLOOKUP(B63,BAZA_LIBOR_WIBOR_KURS!$C$2:$F$145,4,FALSE),H62)) -> 3.646366667 | I63: =IF(A63>$C$3,"_",IFERROR(VLOOKUP(B63,BAZA_LIBOR_WIBOR_KURS!$C$2:$F$145,3,FALSE),I62)) -> 0.04982380952 | J63: 0.02 | K63: 1816.823086 | L63: 1815.34 | M63: 1.483086287 | N63: =IF(A63>$C$3,"_",$C$2-SUM($M$11:M63)) -> 311984.5097
A64: 54 | B64: 2012-01-01 | C64: =IF(A64>$C$3,"_",IFERROR(VLOOKUP(B64,BAZA_LIBOR_WIBOR_KURS!$C$2:$F$145,2,FALSE),C63)) -> 0.0006 | D64: 0.02 | E64: 204.1617193 | F64: 294.5605168 | G64: =IF(A64>$C$3,"_",$C$8-SUM($F$11:F64)) -> 118634.5963 | H64: =IF(A64>$C$3,"_",IFERROR(VLOOKUP(B64,BAZA_LIBOR_WIBOR_KURS!$C$2:$F$145,4,FALSE),H63)) -> 3.611480952 | I64: =IF(A64>$C$3,"_",IFERROR(VLOOKUP(B64,BAZA_LIBOR_WIBOR_KURS!$C$2:$F$145,3,FALSE),I63)) -> 0.04985714286 | J64: 0.02 | K64: 1801.125856 | L64: 1816.2 | M64: -15.07414395 | N64: =IF(A64>$C$3,"_",$C$2-SUM($M$11:M64)) -> 311999.5838
A65: 55 | B65: 2012-02-01 | C65: =IF(A65>$C$3,"_",IFERROR(VLOOKUP(B65,BAZA_LIBOR_WIBOR_KURS!$C$2:$F$145,2,FALSE),C64)) -> 0.00082 | D65: 0.02 | E65: 205.8310247 | F65: 294.1716783 | G65: =IF(A65>$C$3,"_",$C$8-SUM($F$11:F65)) -> 118340.4247 | H65: =IF(A65>$C$3,"_",IFERROR(VLOOKUP(B65,BAZA_LIBOR_WIBOR_KURS!$C$2:$F$145,4,FALSE),H64)) -> 3.465052381 | I65: =IF(A65>$C$3,"_",IFERROR(VLOOKUP(B65,BAZA_LIBOR_WIBOR_KURS!$C$2:$F$145,3,FALSE),I64)) -> 0.04974761905 | J65: 0.02 | K65: 1732.535556 | L65: 1813.44 | M65: -80.90444356 | N65: =IF(A65>$C$3,"_",$C$2-SUM($M$11:M65)) -> 312080.4883
A66: 56 | B66: 2012-03-01 | C66: =IF(A66>$C$3,"_",IFERROR(VLOOKUP(B66,BAZA_LIBOR_WIBOR_KURS!$C$2:$F$145,2,FALSE),C65)) -> 0.001 | D66: 0.02 | E66: 207.0957432 | F66: 293.952989 | G66: =IF(A66>$C$3,"_",$C$8-SUM($F$11:F66)) -> 118046.4717 | H66: =IF(A66>$C$3,"_",IFERROR(VLOOKUP(B66,BAZA_LIBOR_WIBOR_KURS!$C$2:$F$145,4,FALSE),H65)) -> 3.430236364 | I66: =IF(A66>$C$3,"_",IFERROR(VLOOKUP(B66,BAZA_LIBOR_WIBOR_KURS!$C$2:$F$145,3,FALSE),I65)) -> 0.04947727273 | J66: 0.02 | K66: 1718.715581 | L66: 1806.88 | M66: -88.16441881 | N66: =IF(A66>$C$3,"_",$C$2-SUM($M$11:M66)) -> 312168.6527
A67: 57 | B67: 2012-04-01 | C67: =IF(A67>$C$3,"_",IFERROR(VLOOKUP(B67,BAZA_LIBOR_WIBOR_KURS!$C$2:$F$145,2,FALSE),C66)) -> 0.00112 | D67: 0.02 | E67: 207.7617902 | F67: 293.9829611 | G67: =IF(A67>$C$3,"_",$C$8-SUM($F$11:F67)) -> 117752.4887 | H67: =IF(A67>$C$3,"_",IFERROR(VLOOKUP(B67,BAZA_LIBOR_WIBOR_KURS!$C$2:$F$145,4,FALSE),H66)) -> 3.47455 | I67: =IF(A67>$C$3,"_",IFERROR(VLOOKUP(B67,BAZA_LIBOR_WIBOR_KURS!$C$2:$F$145,3,FALSE),I66)) -> 0.049435 | J67: 0.02 | K67: 1743.337226 | L67: 1806.29 | M67: -62.95277449 | N67: =IF(A67>$C$3,"_",$C$2-SUM($M$11:M67)) -> 312231.6055
A68: 58 | B68: 2012-05-01 | C68: =IF(A68>$C$3,"_",IFERROR(VLOOKUP(B68,BAZA_LIBOR_WIBOR_KURS!$C$2:$F$145,2,FALSE),C67)) -> 0.00111 | D68: 0.02 | E68: 207.1462531 | F68: 294.5406464 | G68: =IF(A68>$C$3,"_",$C$8-SUM($F$11:F68)) -> 117457.9481 | H68: =IF(A68>$C$3,"_",IFERROR(VLOOKUP(B68,BAZA_LIBOR_WIBOR_KURS!$C$2:$F$145,4,FALSE),H67)) -> 3.580266667 | I68: =IF(A68>$C$3,"_",IFERROR(VLOOKUP(B68,BAZA_LIBOR_WIBOR_KURS!$C$2:$F$145,3,FALSE),I67)) -> 0.05047142857 | J68: 0.02 | K68: 1796.172883 | L68: 1833.62 | M68: -37.44711684 | N68: =IF(A68>$C$3,"_",$C$2-SUM($M$11:M68)) -> 312269.0526
A69: 59 | B69: 2012-06-01 | C69: =IF(A69>$C$3,"_",IFERROR(VLOOKUP(B69,BAZA_LIBOR_WIBOR_KURS!$C$2:$F$145,2,FALSE),C68)) -> 0.00093 | D69: 0.02 | E69: 204.8662378 | F69: 295.7831064 | G69: =IF(A69>$C$3,"_",$C$8-SUM($F$11:F69)) -> 117162.165 | H69: =IF(A69>$C$3,"_",IFERROR(VLOOKUP(B69,BAZA_LIBOR_WIBOR_KURS!$C$2:$F$145,4,FALSE),H68)) -> 3.582365 | I69: =IF(A69>$C$3,"_",IFERROR(VLOOKUP(B69,BAZA_LIBOR_WIBOR_KURS!$C$2:$F$145,3,FALSE),I68)) -> 0.0512 | J69: 0.02 | K69: 1793.508688 | L69: 1852.8 | M69: -59.29131206 | N69: =IF(A69>$C$3,"_",$C$2-SUM($M$11:M69)) -> 312328.3439
A70: 60 | B70: 2012-07-01 | C70: =IF(A70>$C$3,"_",IFERROR(VLOOKUP(B70,BAZA_LIBOR_WIBOR_KURS!$C$2:$F$145,2,FALSE),C69)) -> 0.00073 | D70: 0.02 | E70: 202.39764 | F70: 297.1038163 | G70: =IF(A70>$C$3,"_",$C$8-SUM($F$11:F70)) -> 116865.0611 | H70: =IF(A70>$C$3,"_",IFERROR(VLOOKUP(B70,BAZA_LIBOR_WIBOR_KURS!$C$2:$F$145,4,FALSE),H69)) -> 3.487627273 | I70: =IF(A70>$C$3,"_",IFERROR(VLOOKUP(B70,BAZA_LIBOR_WIBOR_KURS!$C$2:$F$145,3,FALSE),I69)) -> 0.05126818182 | J70: 0.02 | K70: 1742.074902 | L70: 1854.92 | M70: -112.8450983 | N70: =IF(A70>$C$3,"_",$C$2-SUM($M$11:M70)) -> 312441.189
A71: 61 | B71: 2012-08-01 | C71: =IF(A71>$C$3,"_",IFERROR(VLOOKUP(B71,BAZA_LIBOR_WIBOR_KURS!$C$2:$F$145,2,FALSE),C70)) -> 0.00051 | D71: 0.02 | E71: 199.741867 | F71: 298.5025256 | G71: =IF(A71>$C$3,"_",$C$8-SUM($F$11:F71)) -> 116566.5586 | H71: =IF(A71>$C$3,"_",IFERROR(VLOOKUP(B71,BAZA_LIBOR_WIBOR_KURS!$C$2:$F$145,4,FALSE),H70)) -> 3.408086364 | I71: =IF(A71>$C$3,"_",IFERROR(VLOOKUP(B71,BAZA_LIBOR_WIBOR_KURS!$C$2:$F$145,3,FALSE),I70)) -> 0.05101818182 | J71: 0.02 | K71: 1698.05992 | L71: 1849.08 | M71: -151.0200796 | N71: =IF(A71>$C$3,"_",$C$2-SUM($M$11:M71)) -> 312592.2091
A72: 62 | B72: 2012-09-01 | C72: =IF(A72>$C$3,"_",IFERROR(VLOOKUP(B72,BAZA_LIBOR_WIBOR_KURS!$C$2:$F$145,2,FALSE),C71)) -> 0.00046 | D72: 0.02 | E72: 198.7459825 | F72: 299.2138408 | G72: =IF(A72>$C$3,"_",$C$8-SUM($F$11:F72)) -> 116267.3448 | H72: =IF(A72>$C$3,"_",IFERROR(VLOOKUP(B72,BAZA_LIBOR_WIBOR_KURS!$C$2:$F$145,4,FALSE),H71)) -> 3.420915 | I72: =IF(A72>$C$3,"_",IFERROR(VLOOKUP(B72,BAZA_LIBOR_WIBOR_KURS!$C$2:$F$145,3,FALSE),I71)) -> 0.04951 | J72: 0.02 | K72: 1703.478229 | L72: 1810.69 | M72: -107.2117711 | N72: =IF(A72>$C$3,"_",$C$2-SUM($M$11:M72)) -> 312699.4209
A73: 63 | B73: 2012-10-01 | C73: =IF(A73>$C$3,"_",IFERROR(VLOOKUP(B73,BAZA_LIBOR_WIBOR_KURS!$C$2:$F$145,2,FALSE),C72)) -> 0.00037 | D73: 0.02 | E73: 197.3638178 | F73: 300.0855777 | G73: =IF(A73>$C$3,"_",$C$8-SUM($F$11:F73)) -> 115967.2592 | H73: =IF(A73>$C$3,"_",IFERROR(VLOOKUP(B73,BAZA_LIBOR_WIBOR_KURS!$C$2:$F$145,4,FALSE),H72)) -> 3.396634783 | I73: =IF(A73>$C$3,"_",IFERROR(VLOOKUP(B73,BAZA_LIBOR_WIBOR_KURS!$C$2:$F$145,3,FALSE),I72)) -> 0.04823043478 | J73: 0.02 | K73: 1689.653919 | L73: 1777.97 | M73: -88.31608083 | N73: =IF(A73>$C$3,"_",$C$2-SUM($M$11:M73)) -> 312787.7369
A74: 64 | B74: 2012-11-01 | C74: =IF(A74>$C$3,"_",IFERROR(VLOOKUP(B74,BAZA_LIBOR_WIBOR_KURS!$C$2:$F$145,2,FALSE),C73)) -> 0.00031 | D74: 0.02 | E74: 196.2745862 | F74: 300.8357335 | G74: =IF(A74>$C$3,"_",$C$8-SUM($F$11:F74)) -> 115666.4235 | H74: =IF(A74>$C$3,"_",IFERROR(VLOOKUP(B74,BAZA_LIBOR_WIBOR_KURS!$C$2:$F$145,4,FALSE),H73)) -> 3.430614286 | I74: =IF(A74>$C$3,"_",IFERROR(VLOOKUP(B74,BAZA_LIBOR_WIBOR_KURS!$C$2:$F$145,3,FALSE),I73)) -> 0.0461952381 | J74: 0.02 | K74: 1705.393764 | L74: 1725.42 | M74: -20.02623555 | N74: =IF(A74>$C$3,"_",$C$2-SUM($M$11:M74)) -> 312807.7632
A75: 65 | B75: 2012-12-01 | C75: =IF(A75>$C$3,"_",IFERROR(VLOOKUP(B75,BAZA_LIBOR_WIBOR_KURS!$C$2:$F$145,2,FALSE),C74)) -> 0.00015 | D75: 0.02 | E75: 194.2232027 | F75: 301.9863548 | G75: =IF(A75>$C$3,"_",$C$8-SUM($F$11:F75)) -> 115364.4371 | H75: =IF(A75>$C$3,"_",IFERROR(VLOOKUP(B75,BAZA_LIBOR_WIBOR_KURS!$C$2:$F$145,4,FALSE),H74)) -> 3.387452632 | I75: =IF(A75>$C$3,"_",IFERROR(VLOOKUP(B75,BAZA_LIBOR_WIBOR_KURS!$C$2:$F$145,3,FALSE),I74)) -> 0.04257894737 | J75: 0.02 | K75: =IF(A75>$C$3,"_",IF(B75>$F$4,0,H75*(E75+F75))) -> 1680.886372 | L75: 1631.27 | M75: 49.61637151 | N75: =IF(A75>$C$3,"_",$C$2-SUM($M$11:M75)) -> 312758.1468
A76: 66 | B76: =IF(A76>$C$3,"_",DATE(YEAR(B75),MONTH(B75)+1,1)) -> 2013-01-01 | C76: =IF(A76>$C$3,"_",IFERROR(VLOOKUP(B76,BAZA_LIBOR_WIBOR_KURS!$C$2:$F$145,2,FALSE),C75)) -> 0.00017 | D76: =IF(A76>$C$3,"_",D75) -> 0.02 | E76: =IF(A76>$C$3,"_",IPMT((C76+D76)/12,1,$C$3-A75,-G75)) -> 193.9083914 | F76: =IF(A76>$C$3,"_",PPMT((C76+D76)/12,1,$C$3-A75,-G75)) -> 302.4133623 | G76: =IF(A76>$C$3,"_",$C$8-SUM($F$11:F76)) -> 115062.0238 | H76: =IF(A76>$C$3,"_",IFERROR(VLOOKUP(B76,BAZA_LIBOR_WIBOR_KURS!$C$2:$F$145,4,FALSE),H75)) -> 3.368563636 | I76: =IF(A76>$C$3,"_",IFERROR(VLOOKUP(B76,BAZA_LIBOR_WIBOR_KURS!$C$2:$F$145,3,FALSE),I75)) -> 0.04029545455 | J76: =IF(A76>$C$3,"_",J75) -> 0.02 | K76: 1671.891411 | L76: =IF(A76>$C$3,"_",IF(N75<0,0,ROUND(N75*(I76+J76)/12,2))) -> 1571.49 | M76: =IFERROR(K76-L76,"_") -> 100.4014112 | N76: =IF(A76>$C$3,"_",$C$2-SUM($M$11:M76)) -> 312657.7454
A77: =A76+1 -> 67 | B77: 2013-02-01 | C77: =IF(A77>$C$3,"_",IFERROR(VLOOKUP(B77,BAZA_LIBOR_WIBOR_KURS!$C$2:$F$145,2,FALSE),C76)) -> 0.00024 | D77: 0.02 | E77: 194.0712801 | F77: 302.6420713 | G77: =IF(A77>$C$3,"_",$C$8-SUM($F$11:F77)) -> 114759.3817 | H77: =IF(A77>$C$3,"_",IFERROR(VLOOKUP(B77,BAZA_LIBOR_WIBOR_KURS!$C$2:$F$145,4,FALSE),H76)) -> 3.39208 | I77: =IF(A77>$C$3,"_",IFERROR(VLOOKUP(B77,BAZA_LIBOR_WIBOR_KURS!$C$2:$F$145,3,FALSE),I76)) -> 0.03804761905 | J77: 0.02 | K77: 1684.891425 | L77: 1512.42 | M77: 172.4714249 | N77: =IF(A77>$C$3,"_",$C$2-SUM($M$11:M77)) -> 312485.274
A78: 68 | B78: 2013-03-01 | C78: =IF(A78>$C$3,"_",IFERROR(VLOOKUP(B78,BAZA_LIBOR_WIBOR_KURS!$C$2:$F$145,2,FALSE),C77)) -> 0.00022 | D78: 0.02 | E78: 193.3695581 | F78: 303.2322347 | G78: =IF(A78>$C$3,"_",$C$8-SUM($F$11:F78)) -> 114456.1494 | H78: =IF(A78>$C$3,"_",IFERROR(VLOOKUP(B78,BAZA_LIBOR_WIBOR_KURS!$C$2:$F$145,4,FALSE),H77)) -> 3.388528571 | I78: =IF(A78>$C$3,"_",IFERROR(VLOOKUP(B78,BAZA_LIBOR_WIBOR_KURS!$C$2:$F$145,3,FALSE),I77)) -> 0.03475238095 | J78: 0.02 | K78: 1682.749364 | L78: 1425.78 | M78: 256.9693637 | N78: =IF(A78>$C$3,"_",$C$2-SUM($M$11:M78)) -> 312228.3046
A79: 69 | B79: 2013-04-01 | C79: =IF(A79>$C$3,"_",IFERROR(VLOOKUP(B79,BAZA_LIBOR_WIBOR_KURS!$C$2:$F$145,2,FALSE),C78)) -> 0.0002 | D79: 0.02 | E79: 192.6678516 | F79: 303.8227437 | G79: =IF(A79>$C$3,"_",$C$8-SUM($F$11:F79)) -> 114152.3267 | H79: =IF(A79>$C$3,"_",IFERROR(VLOOKUP(B79,BAZA_LIBOR_WIBOR_KURS!$C$2:$F$145,4,FALSE),H78)) -> 3.392185714 | I79: =IF(A79>$C$3,"_",IFERROR(VLOOKUP(B79,BAZA_LIBOR_WIBOR_KURS!$C$2:$F$145,3,FALSE),I78)) -> 0.03285238095 | J79: 0.02 | K79: 1684.188305 | L79: 1375.17 | M79: 309.0183047 | N79: =IF(A79>$C$3,"_",$C$2-SUM($M$11:M79)) -> 311919.2863
A80: 70 | B80: 2013-05-01 | C80: =IF(A80>$C$3,"_",IFERROR(VLOOKUP(B80,BAZA_LIBOR_WIBOR_KURS!$C$2:$F$145,2,FALSE),C79)) -> 0.00018 | D80: 0.02 | E80: 191.9661627 | F80: 304.4135961 | G80: =IF(A80>$C$3,"_",$C$8-SUM($F$11:F80)) -> 113847.9131 | H80: =IF(A80>$C$3,"_",IFERROR(VLOOKUP(B80,BAZA_LIBOR_WIBOR_KURS!$C$2:$F$145,4,FALSE),H79)) -> 3.36413 | I80: =IF(A80>$C$3,"_",IFERROR(VLOOKUP(B80,BAZA_LIBOR_WIBOR_KURS!$C$2:$F$145,3,FALSE),I79)) -> 0.02863 | J80: 0.02 | K80: 1669.886038 | L80: 1264.05 | M80: 405.8360382 | N80: =IF(A80>$C$3,"_",$C$2-SUM($M$11:M80)) -> 311513.4503
A81: 71 | B81: 2013-06-01 | C81: =IF(A81>$C$3,"_",IFERROR(VLOOKUP(B81,BAZA_LIBOR_WIBOR_KURS!$C$2:$F$145,2,FALSE),C80)) -> 0.00018 | D81: 0.02 | E81: 191.4542405 | F81: 304.9255183 | G81: =IF(A81>$C$3,"_",$C$8-SUM($F$11:F81)) -> 113542.9876 | H81: =IF(A81>$C$3,"_",IFERROR(VLOOKUP(B81,BAZA_LIBOR_WIBOR_KURS!$C$2:$F$145,4,FALSE),H80)) -> 3.474505 | I81: =IF(A81>$C$3,"_",IFERROR(VLOOKUP(B81,BAZA_LIBOR_WIBOR_KURS!$C$2:$F$145,3,FALSE),I80)) -> 0.027445 | J81: 0.02 | K81: 1724.673954 | L81: 1231.65 | M81: 493.0239541 | N81: =IF(A81>$C$3,"_",$C$2-SUM($M$11:M81)) -> 311020.4263
A82: 72 | B82: 2013-07-01 | C82: =IF(A82>$C$3,"_",IFERROR(VLOOKUP(B82,BAZA_LIBOR_WIBOR_KURS!$C$2:$F$145,2,FALSE),C81)) -> 0.0002 | D82: 0.02 | E82: 191.1306958 | F82: 305.3592066 | G82: =IF(A82>$C$3,"_",$C$8-SUM($F$11:F82)) -> 113237.6284 | H82: =IF(A82>$C$3,"_",IFERROR(VLOOKUP(B82,BAZA_LIBOR_WIBOR_KURS!$C$2:$F$145,4,FALSE),H81)) -> 3.458934783 | I82: =IF(A82>$C$3,"_",IFERROR(VLOOKUP(B82,BAZA_LIBOR_WIBOR_KURS!$C$2:$F$145,3,FALSE),I81)) -> 0.02697391304 | J82: 0.02 | K82: 1717.326193 | L82: 1217.49 | M82: 499.8361926 | N82: =IF(A82>$C$3,"_",$C$2-SUM($M$11:M82)) -> 310520.5901
A83: 73 | B83: 2013-08-01 | C83: =IF(A83>$C$3,"_",IFERROR(VLOOKUP(B83,BAZA_LIBOR_WIBOR_KURS!$C$2:$F$145,2,FALSE),C82)) -> 0.00018 | D83: 0.02 | E83: 190.4279451 | F83: 305.9521605 | G83: =IF(A83>$C$3,"_",$C$8-SUM($F$11:F83)) -> 112931.6762 | H83: =IF(A83>$C$3,"_",IFERROR(VLOOKUP(B83,BAZA_LIBOR_WIBOR_KURS!$C$2:$F$145,4,FALSE),H82)) -> 3.430614286 | I83: =IF(A83>$C$3,"_",IFERROR(VLOOKUP(B83,BAZA_LIBOR_WIBOR_KURS!$C$2:$F$145,3,FALSE),I82)) -> 0.02701428571 | J83: 0.02 | K83: 1702.888681 | L83: 1216.58 | M83: 486.3086814 | N83: =IF(A83>$C$3,"_",$C$2-SUM($M$11:M83)) -> 310034.2814
A84: 74 | B84: 2013-09-01 | C84: =IF(A84>$C$3,"_",IFERROR(VLOOKUP(B84,BAZA_LIBOR_WIBOR_KURS!$C$2:$F$145,2,FALSE),C83)) -> 0.0002 | D84: 0.02 | E84: 190.101655 | F84: 306.3879004 | G84: =IF(A84>$C$3,"_",$C$8-SUM($F$11:F84)) -> 112625.2883 | H84: =IF(A84>$C$3,"_",IFERROR(VLOOKUP(B84,BAZA_LIBOR_WIBOR_KURS!$C$2:$F$145,4,FALSE),H83)) -> 3.433409524 | I84: =IF(A84>$C$3,"_",IFERROR(VLOOKUP(B84,BAZA_LIBOR_WIBOR_KURS!$C$2:$F$145,3,FALSE),I83)) -> 0.02690952381 | J84: 0.02 | K84: 1704.651968 | L84: 1211.96 | M84: 492.6919679 | N84: =IF(A84>$C$3,"_",$C$2-SUM($M$11:M84)) -> 309541.5895
A85: 75 | B85: 2013-10-01 | C85: =IF(A85>$C$3,"_",IFERROR(VLOOKUP(B85,BAZA_LIBOR_WIBOR_KURS!$C$2:$F$145,2,FALSE),C84)) -> 0.0002 | D85: 0.02 | E85: 189.585902 | F85: 306.9036534 | G85: =IF(A85>$C$3,"_",$C$8-SUM($F$11:F85)) -> 112318.3847 | H85: =IF(A85>$C$3,"_",IFERROR(VLOOKUP(B85,BAZA_LIBOR_WIBOR_KURS!$C$2:$F$145,4,FALSE),H84)) -> 3.403413043 | I85: =IF(A85>$C$3,"_",IFERROR(VLOOKUP(B85,BAZA_LIBOR_WIBOR_KURS!$C$2:$F$145,3,FALSE),I84)) -> 0.02670869565 | J85: 0.02 | K85: 1689.759029 | L85: 1204.86 | M85: 484.8990288 | N85: =IF(A85>$C$3,"_",$C$2-SUM($M$11:M85)) -> 309056.6904
A86: 76 | B86: 2013-11-01 | C86: =IF(A86>$C$3,"_",IFERROR(VLOOKUP(B86,BAZA_LIBOR_WIBOR_KURS!$C$2:$F$145,2,FALSE),C85)) -> 0.0002 | D86: 0.02 | E86: 189.0692809 | F86: 307.4202745 | G86: =IF(A86>$C$3,"_",$C$8-SUM($F$11:F86)) -> 112010.9644 | H86: =IF(A86>$C$3,"_",IFERROR(VLOOKUP(B86,BAZA_LIBOR_WIBOR_KURS!$C$2:$F$145,4,FALSE),H85)) -> 3.400884211 | I86: =IF(A86>$C$3,"_",IFERROR(VLOOKUP(B86,BAZA_LIBOR_WIBOR_KURS!$C$2:$F$145,3,FALSE),I85)) -> 0.02653684211 | J86: 0.02 | K86: 1688.50349 | L86: 1198.54 | M86: 489.9634896 | N86: =IF(A86>$C$3,"_",$C$2-SUM($M$11:M86)) -> 308566.7269
A87: 77 | B87: 2013-12-01 | C87: =IF(A87>$C$3,"_",IFERROR(VLOOKUP(B87,BAZA_LIBOR_WIBOR_KURS!$C$2:$F$145,2,FALSE),C86)) -> 0.0002 | D87: 0.02 | E87: 188.5517901 | F87: 307.9377653 | G87: =IF(A87>$C$3,"_",$C$8-SUM($F$11:F87)) -> 111703.0266 | H87: =IF(A87>$C$3,"_",IFERROR(VLOOKUP(B87,BAZA_LIBOR_WIBOR_KURS!$C$2:$F$145,4,FALSE),H86)) -> 3.41053 | I87: =IF(A87>$C$3,"_",IFERROR(VLOOKUP(B87,BAZA_LIBOR_WIBOR_KURS!$C$2:$F$145,3,FALSE),I86)) -> 0.02671 | J87: 0.02 | K87: 1693.292523 | L87: 1201.1 | M87: 492.1925233 | N87: =IF(A87>$C$3,"_",$C$2-SUM($M$11:M87)) -> 308074.5344
A88: 78 | B88: 2014-01-01 | C88: =IF(A88>$C$3,"_",IFERROR(VLOOKUP(B88,BAZA_LIBOR_WIBOR_KURS!$C$2:$F$145,2,FALSE),C87)) -> 0.00022 | D88: 0.02 | E88: 188.2195999 | F88: 308.3780296 | G88: =IF(A88>$C$3,"_",$C$8-SUM($F$11:F88)) -> 111394.6486 | H88: =IF(A88>$C$3,"_",IFERROR(VLOOKUP(B88,BAZA_LIBOR_WIBOR_KURS!$C$2:$F$145,4,FALSE),H87)) -> 3.394814286 | I88: =IF(A88>$C$3,"_",IFERROR(VLOOKUP(B88,BAZA_LIBOR_WIBOR_KURS!$C$2:$F$145,3,FALSE),I87)) -> 0.0270047619 | J88: 0.02 | K88: 1685.856727 | L88: 1206.75 | M88: 479.1067266 | N88: =IF(A88>$C$3,"_",$C$2-SUM($M$11:M88)) -> 307595.4277
A89: 79 | B89: 2014-02-01 | C89: =IF(A89>$C$3,"_",IFERROR(VLOOKUP(B89,BAZA_LIBOR_WIBOR_KURS!$C$2:$F$145,2,FALSE),C88)) -> 0.00018 | D89: 0.02 | E89: 187.3286674 | F89: 309.0535243 | G89: =IF(A89>$C$3,"_",$C$8-SUM($F$11:F89)) -> 111085.5951 | H89: =IF(A89>$C$3,"_",IFERROR(VLOOKUP(B89,BAZA_LIBOR_WIBOR_KURS!$C$2:$F$145,4,FALSE),H88)) -> 3.418755 | I89: =IF(A89>$C$3,"_",IFERROR(VLOOKUP(B89,BAZA_LIBOR_WIBOR_KURS!$C$2:$F$145,3,FALSE),I88)) -> 0.0271 | J89: 0.02 | K89: 1697.0091 | L89: 1207.31 | M89: 489.6990998 | N89: =IF(A89>$C$3,"_",$C$2-SUM($M$11:M89)) -> 307105.7286
A90: 80 | B90: 2014-03-01 | C90: =IF(A90>$C$3,"_",IFERROR(VLOOKUP(B90,BAZA_LIBOR_WIBOR_KURS!$C$2:$F$145,2,FALSE),C89)) -> 0.00021 | D90: 0.02 | E90: 187.0866564 | F90: 309.4565857 | G90: =IF(A90>$C$3,"_",$C$8-SUM($F$11:F90)) -> 110776.1385 | H90: =IF(A90>$C$3,"_",IFERROR(VLOOKUP(B90,BAZA_LIBOR_WIBOR_KURS!$C$2:$F$145,4,FALSE),H89)) -> 3.449533333 | I90: =IF(A90>$C$3,"_",IFERROR(VLOOKUP(B90,BAZA_LIBOR_WIBOR_KURS!$C$2:$F$145,3,FALSE),I89)) -> 0.0271 | J90: 0.02 | K90: 1712.842465 | L90: 1205.39 | M90: 507.452465 | N90: =IF(A90>$C$3,"_",$C$2-SUM($M$11:M90)) -> 306598.2761
A91: 81 | B91: 2014-04-01 | C91: =IF(A91>$C$3,"_",IFERROR(VLOOKUP(B91,BAZA_LIBOR_WIBOR_KURS!$C$2:$F$145,2,FALSE),C90)) -> 0.00017 | D91: 0.02 | E91: 186.1962261 | F91: 310.1329861 | G91: =IF(A91>$C$3,"_",$C$8-SUM($F$11:F91)) -> 110466.0055 | H91: =IF(A91>$C$3,"_",IFERROR(VLOOKUP(B91,BAZA_LIBOR_WIBOR_KURS!$C$2:$F$145,4,FALSE),H90)) -> 3.43292381 | I91: =IF(A91>$C$3,"_",IFERROR(VLOOKUP(B91,BAZA_LIBOR_WIBOR_KURS!$C$2:$F$145,3,FALSE),I90)) -> 0.02719047619 | J91: 0.02 | K91: 1703.86037 | L91: 1205.71 | M91: 498.1503701 | N91: =IF(A91>$C$3,"_",$C$2-SUM($M$11:M91)) -> 306100.1258
A92: 82 | B92: 2014-05-01 | C92: =IF(A92>$C$3,"_",IFERROR(VLOOKUP(B92,BAZA_LIBOR_WIBOR_KURS!$C$2:$F$145,2,FALSE),C91)) -> 0.00016 | D92: 0.02 | E92: 185.5828892 | F92: 310.6929987 | G92: =IF(A92>$C$3,"_",$C$8-SUM($F$11:F92)) -> 110155.3125 | H92: =IF(A92>$C$3,"_",IFERROR(VLOOKUP(B92,BAZA_LIBOR_WIBOR_KURS!$C$2:$F$145,4,FALSE),H91)) -> 3.424142857 | I92: =IF(A92>$C$3,"_",IFERROR(VLOOKUP(B92,BAZA_LIBOR_WIBOR_KURS!$C$2:$F$145,3,FALSE),I91)) -> 0.0272 | J92: 0.02 | K92: 1699.319537 | L92: 1203.99 | M92: 495.3295368 | N92: =IF(A92>$C$3,"_",$C$2-SUM($M$11:M92)) -> 305604.7962
A93: 83 | B93: 2014-06-01 | C93: =IF(A93>$C$3,"_",IFERROR(VLOOKUP(B93,BAZA_LIBOR_WIBOR_KURS!$C$2:$F$145,2,FALSE),C92)) -> 0.00012 | D93: 0.02 | E93: 184.6937406 | F93: 311.3695826 | G93: =IF(A93>$C$3,"_",$C$8-SUM($F$11:F93)) -> 109843.9429 | H93: =IF(A93>$C$3,"_",IFERROR(VLOOKUP(B93,BAZA_LIBOR_WIBOR_KURS!$C$2:$F$145,4,FALSE),H92)) -> 3.39526 | I93: =IF(A93>$C$3,"_",IFERROR(VLOOKUP(B93,BAZA_LIBOR_WIBOR_KURS!$C$2:$F$145,3,FALSE),I92)) -> 0.02688 | J93: 0.02 | K93: 1684.263959 | L93: 1193.9 | M93: 490.363959 | N93: =IF(A93>$C$3,"_",$C$2-SUM($M$11:M93)) -> 305114.4323
A94: 84 | B94: 2014-07-01 | C94: =IF(A94>$C$3,"_",IFERROR(VLOOKUP(B94,BAZA_LIBOR_WIBOR_KURS!$C$2:$F$145,2,FALSE),C93)) -> 0.00013 | D94: 0.02 | E94: 184.2632143 | F94: 311.8530704 | G94: =IF(A94>$C$3,"_",$C$8-SUM($F$11:F94)) -> 109532.0899 | H94: =IF(A94>$C$3,"_",IFERROR(VLOOKUP(B94,BAZA_LIBOR_WIBOR_KURS!$C$2:$F$145,4,FALSE),H93)) -> 3.411265217 | I94: =IF(A94>$C$3,"_",IFERROR(VLOOKUP(B94,BAZA_LIBOR_WIBOR_KURS!$C$2:$F$145,3,FALSE),I93)) -> 0.02676956522 | J94: 0.02 | K94: 1692.384226 | L94: 1189.17 | M94: 503.2142256 | N94: =IF(A94>$C$3,"_",$C$2-SUM($M$11:M94)) -> 304611.218
A95: 85 | B95: 2014-08-01 | C95: =IF(A95>$C$3,"_",IFERROR(VLOOKUP(B95,BAZA_LIBOR_WIBOR_KURS!$C$2:$F$145,2,FALSE),C94)) -> 0.00021 | D95: 0.02 | E95: 184.4702947 | F95: 312.0684062 | G95: =IF(A95>$C$3,"_",$C$8-SUM($F$11:F95)) -> 109220.0214 | H95: =IF(A95>$C$3,"_",IFERROR(VLOOKUP(B95,BAZA_LIBOR_WIBOR_KURS!$C$2:$F$145,4,FALSE),H94)) -> 3.45886 | I95: =IF(A95>$C$3,"_",IFERROR(VLOOKUP(B95,BAZA_LIBOR_WIBOR_KURS!$C$2:$F$145,3,FALSE),I94)) -> 0.02649 | J95: 0.02 | K95: 1717.457851 | L95: 1180.11 | M95: 537.347851 | N95: =IF(A95>$C$3,"_",$C$2-SUM($M$11:M95)) -> 304073.8702
A96: 86 | B96: 2014-09-01 | C96: =IF(A96>$C$3,"_",IFERROR(VLOOKUP(B96,BAZA_LIBOR_WIBOR_KURS!$C$2:$F$145,2,FALSE),C95)) -> 8e-05 | D96: 0.02 | E96: 182.7615026 | F96: 313.0931542 | G96: =IF(A96>$C$3,"_",$C$8-SUM($F$11:F96)) -> 108906.9283 | H96: =IF(A96>$C$3,"_",IFERROR(VLOOKUP(B96,BAZA_LIBOR_WIBOR_KURS!$C$2:$F$145,4,FALSE),H95)) -> 3.470031818 | I96: =IF(A96>$C$3,"_",IFERROR(VLOOKUP(B96,BAZA_LIBOR_WIBOR_KURS!$C$2:$F$145,3,FALSE),I95)) -> 0.02448181818 | J96: 0.02 | K96: 1720.631436 | L96: 1127.15 | M96: 593.4814362 | N96: =IF(A96>$C$3,"_",$C$2-SUM($M$11:M96)) -> 303480.3887
A97: 87 | B97: 2014-10-01 | C97: =IF(A97>$C$3,"_",IFERROR(VLOOKUP(B97,BAZA_LIBOR_WIBOR_KURS!$C$2:$F$145,2,FALSE),C96)) -> 8e-05 | D97: 0.02 | E97: 182.2375933 | F97: 313.6170634 | G97: =IF(A97>$C$3,"_",$C$8-SUM($F$11:F97)) -> 108593.3112 | H97: =IF(A97>$C$3,"_",IFERROR(VLOOKUP(B97,BAZA_LIBOR_WIBOR_KURS!$C$2:$F$145,4,FALSE),H96)) -> 3.482269565 | I97: =IF(A97>$C$3,"_",IFERROR(VLOOKUP(B97,BAZA_LIBOR_WIBOR_KURS!$C$2:$F$145,3,FALSE),I96)) -> 0.02072608696 | J97: 0.02 | K97: 1726.69958 | L97: 1029.96 | M97: 696.73958 | N97: =IF(A97>$C$3,"_",$C$2-SUM($M$11:M97)) -> 302783.6492
A98: 88 | B98: 2014-11-01 | C98: =IF(A98>$C$3,"_",IFERROR(VLOOKUP(B98,BAZA_LIBOR_WIBOR_KURS!$C$2:$F$145,2,FALSE),C97)) -> 6e-05 | D98: 0.02 | E98: 181.5318186 | F98: 314.2183514 | G98: =IF(A98>$C$3,"_",$C$8-SUM($F$11:F98)) -> 108279.0929 | H98: =IF(A98>$C$3,"_",IFERROR(VLOOKUP(B98,BAZA_LIBOR_WIBOR_KURS!$C$2:$F$145,4,FALSE),H97)) -> 3.502352632 | I98: =IF(A98>$C$3,"_",IFERROR(VLOOKUP(B98,BAZA_LIBOR_WIBOR_KURS!$C$2:$F$145,3,FALSE),I97)) -> 0.02033684211 | J98: 0.02 | K98: 1736.291912 | L98: 1017.78 | M98: 718.5119124 | N98: =IF(A98>$C$3,"_",$C$2-SUM($M$11:M98)) -> 302065.1373
A99: 89 | B99: 2014-12-01 | C99: =IF(A99>$C$3,"_",IFERROR(VLOOKUP(B99,BAZA_LIBOR_WIBOR_KURS!$C$2:$F$145,2,FALSE),C98)) -> -0.0002 | D99: 0.02 | E99: 178.6605032 | F99: 315.7371055 | G99: =IF(A99>$C$3,"_",$C$8-SUM($F$11:F99)) -> 107963.3558 | H99: =IF(A99>$C$3,"_",IFERROR(VLOOKUP(B99,BAZA_LIBOR_WIBOR_KURS!$C$2:$F$145,4,FALSE),H98)) -> 3.503809524 | I99: =IF(A99>$C$3,"_",IFERROR(VLOOKUP(B99,BAZA_LIBOR_WIBOR_KURS!$C$2:$F$145,3,FALSE),I98)) -> 0.0206 | J99: 0.02 | K99: 1732.27505 | L99: 1021.99 | M99: 710.28505 | N99: =IF(A99>$C$3,"_",$C$2-SUM($M$11:M99)) -> 301354.8522
A100: 90 | B100: 2015-01-01 | C100: =IF(A100>$C$3,"_",IFERROR(VLOOKUP(B100,BAZA_LIBOR_WIBOR_KURS!$C$2:$F$145,2,FALSE),C99)) -> -0.00466 | D100: 0.02 | E100: 138.0131565 | F100: 333.6106007 | G100: =IF(A100>$C$3,"_",$C$8-SUM($F$11:F100)) -> 107629.7452 | H100: =IF(A100>$C$3,"_",IFERROR(VLOOKUP(B100,BAZA_LIBOR_WIBOR_KURS!$C$2:$F$145,4,FALSE),H99)) -> 3.95756 | I100: =IF(A100>$C$3,"_",IFERROR(VLOOKUP(B100,BAZA_LIBOR_WIBOR_KURS!$C$2:$F$145,3,FALSE),I99)) -> 0.020305 | J100: 0.02 | K100: 1866.479316 | L100: 1012.18 | M100: 854.2993163 | N100: =IF(A100>$C$3,"_",$C$2-SUM($M$11:M100)) -> 300500.5529
A101: 91 | B101: 2015-02-01 | C101: =IF(A101>$C$3,"_",IFERROR(VLOOKUP(B101,BAZA_LIBOR_WIBOR_KURS!$C$2:$F$145,2,FALSE),C100)) -> -0.00889 | D101: 0.02 | E101: 99.64720574 | F101: 351.0622463 | G101: =IF(A101>$C$3,"_",$C$8-SUM($F$11:F101)) -> 107278.6829 | H101: =IF(A101>$C$3,"_",IFERROR(VLOOKUP(B101,BAZA_LIBOR_WIBOR_KURS!$C$2:$F$145,4,FALSE),H100)) -> 3.932525 | I101: =IF(A101>$C$3,"_",IFERROR(VLOOKUP(B101,BAZA_LIBOR_WIBOR_KURS!$C$2:$F$145,3,FALSE),I100)) -> 0.01917 | J101: 0.02 | K101: 1772.426188 | L101: 980.88 | M101: 791.5461877 | N101: =IF(A101>$C$3,"_",$C$2-SUM($M$11:M101)) -> 299709.0067
A102: 92 | B102: 2015-03-01 | C102: =IF(A102>$C$3,"_",IFERROR(VLOOKUP(B102,BAZA_LIBOR_WIBOR_KURS!$C$2:$F$145,2,FALSE),C101)) -> -0.00802 | D102: 0.02 | E102: 107.0998851 | F102: 347.8473612 | G102: =IF(A102>$C$3,"_",$C$8-SUM($F$11:F102)) -> 106930.8356 | H102: =IF(A102>$C$3,"_",IFERROR(VLOOKUP(B102,BAZA_LIBOR_WIBOR_KURS!$C$2:$F$145,4,FALSE),H101)) -> 3.890177273 | I102: =IF(A102>$C$3,"_",IFERROR(VLOOKUP(B102,BAZA_LIBOR_WIBOR_KURS!$C$2:$F$145,3,FALSE),I101)) -> 0.01671818182 | J102: 0.02 | K102: 1769.825438 | L102: 917.06 | M102: 852.7654378 | N102: =IF(A102>$C$3,"_",$C$2-SUM($M$11:M102)) -> 298856.2413
A103: 93 | B103: 2015-04-01 | C103: =IF(A103>$C$3,"_",IFERROR(VLOOKUP(B103,BAZA_LIBOR_WIBOR_KURS!$C$2:$F$145,2,FALSE),C102)) -> -0.00812 | D103: 0.02 | E103: 105.8615272 | F103: 348.5990649 | G103: =IF(A103>$C$3,"_",$C$8-SUM($F$11:F103)) -> 106582.2365 | H103: =IF(A103>$C$3,"_",IFERROR(VLOOKUP(B103,BAZA_LIBOR_WIBOR_KURS!$C$2:$F$145,4,FALSE),H102)) -> 3.877147619 | I103: =IF(A103>$C$3,"_",IFERROR(VLOOKUP(B103,BAZA_LIBOR_WIBOR_KURS!$C$2:$F$145,3,FALSE),I102)) -> 0.0165 | J103: 0.02 | K103: 1762.010802 | L103: 909.02 | M103: 852.9908025 | N103: =IF(A103>$C$3,"_",$C$2-SUM($M$11:M103)) -> 298003.2505
A104: 94 | B104: 2015-05-01 | C104: =IF(A104>$C$3,"_",IFERROR(VLOOKUP(B104,BAZA_LIBOR_WIBOR_KURS!$C$2:$F$145,2,FALSE),C103)) -> -0.00791 | D104: 0.02 | E104: 107.3816033 | F104: 348.0977145 | G104: =IF(A104>$C$3,"_",$C$8-SUM($F$11:F104)) -> 106234.1388 | H104: =IF(A104>$C$3,"_",IFERROR(VLOOKUP(B104,BAZA_LIBOR_WIBOR_KURS!$C$2:$F$145,4,FALSE),H103)) -> 3.927305 | I104: =IF(A104>$C$3,"_",IFERROR(VLOOKUP(B104,BAZA_LIBOR_WIBOR_KURS!$C$2:$F$145,3,FALSE),I103)) -> 0.0167 | J104: 0.02 | K104: 1788.806202 | L104: 911.39 | M104: 877.4162022 | N104: =IF(A104>$C$3,"_",$C$2-SUM($M$11:M104)) -> 297125.8343
A105: 95 | B105: 2015-06-01 | C105: =IF(A105>$C$3,"_",IFERROR(VLOOKUP(B105,BAZA_LIBOR_WIBOR_KURS!$C$2:$F$145,2,FALSE),C104)) -> -0.00782 | D105: 0.02 | E105: 107.8276509 | F105: 348.0871495 | G105: =IF(A105>$C$3,"_",$C$8-SUM($F$11:F105)) -> 105886.0516 | H105: =IF(A105>$C$3,"_",IFERROR(VLOOKUP(B105,BAZA_LIBOR_WIBOR_KURS!$C$2:$F$145,4,FALSE),H104)) -> 3.983695238 | I105: =IF(A105>$C$3,"_",IFERROR(VLOOKUP(B105,BAZA_LIBOR_WIBOR_KURS!$C$2:$F$145,3,FALSE),I104)) -> 0.01704761905 | J105: 0.02 | K105: 1816.225619 | L105: 917.32 | M105: 898.9056193 | N105: =IF(A105>$C$3,"_",$C$2-SUM($M$11:M105)) -> 296226.9286
A106: 96 | B106: 2015-07-01 | C106: =IF(A106>$C$3,"_",IFERROR(VLOOKUP(B106,BAZA_LIBOR_WIBOR_KURS!$C$2:$F$145,2,FALSE),C105)) -> -0.00762 | D106: 0.02 | E106: 109.2391099 | F106: 347.6409096 | G106: =IF(A106>$C$3,"_",$C$8-SUM($F$11:F106)) -> 105538.4107 | H106: =IF(A106>$C$3,"_",IFERROR(VLOOKUP(B106,BAZA_LIBOR_WIBOR_KURS!$C$2:$F$145,4,FALSE),H105)) -> 3.961795652 | I106: =IF(A106>$C$3,"_",IFERROR(VLOOKUP(B106,BAZA_LIBOR_WIBOR_KURS!$C$2:$F$145,3,FALSE),I105)) -> 0.0172 | J106: 0.02 | K106: 1810.065275 | L106: 918.3 | M106: 891.765275 | N106: =IF(A106>$C$3,"_",$C$2-SUM($M$11:M106)) -> 295335.1634
A107: 97 | B107: 2015-08-01 | C107: =IF(A107>$C$3,"_",IFERROR(VLOOKUP(B107,BAZA_LIBOR_WIBOR_KURS!$C$2:$F$145,2,FALSE),C106)) -> -0.00729 | D107: 0.02 | E107: 111.7827667 | F107: 346.6869601 | G107: =IF(A107>$C$3,"_",$C$8-SUM($F$11:F107)) -> 105191.7238 | H107: =IF(A107>$C$3,"_",IFERROR(VLOOKUP(B107,BAZA_LIBOR_WIBOR_KURS!$C$2:$F$145,4,FALSE),H106)) -> 3.890952381 | I107: =IF(A107>$C$3,"_",IFERROR(VLOOKUP(B107,BAZA_LIBOR_WIBOR_KURS!$C$2:$F$145,3,FALSE),I106)) -> 0.0172 | J107: 0.02 | K107: 1783.883875 | L107: 915.54 | M107: 868.3438751 | N107: =IF(A107>$C$3,"_",$C$2-SUM($M$11:M107)) -> 294466.8195
A108: 98 | B108: 2015-09-01 | C108: =IF(A108>$C$3,"_",IFERROR(VLOOKUP(B108,BAZA_LIBOR_WIBOR_KURS!$C$2:$F$145,2,FALSE),C107)) -> -0.00729 | D108: 0.02 | E108: 111.4155674 | F108: 347.0541594 | G108: =IF(A108>$C$3,"_",$C$8-SUM($F$11:F108)) -> 104844.6696 | H108: =IF(A108>$C$3,"_",IFERROR(VLOOKUP(B108,BAZA_LIBOR_WIBOR_KURS!$C$2:$F$145,4,FALSE),H107)) -> 3.863313636 | I108: =IF(A108>$C$3,"_",IFERROR(VLOOKUP(B108,BAZA_LIBOR_WIBOR_KURS!$C$2:$F$145,3,FALSE),I107)) -> 0.01721363636 | J108: 0.02 | K108: 1771.212347 | L108: 913.18 | M108: 858.0323474 | N108: =IF(A108>$C$3,"_",$C$2-SUM($M$11:M108)) -> 293608.7871
A109: 99 | B109: 2015-10-01 | C109: =IF(A109>$C$3,"_",IFERROR(VLOOKUP(B109,BAZA_LIBOR_WIBOR_KURS!$C$2:$F$145,2,FALSE),C108)) -> -0.00728 | D109: 0.02 | E109: 111.1353498 | F109: 347.3822579 | G109: =IF(A109>$C$3,"_",$C$8-SUM($F$11:F109)) -> 104497.2873 | H109: =IF(A109>$C$3,"_",IFERROR(VLOOKUP(B109,BAZA_LIBOR_WIBOR_KURS!$C$2:$F$145,4,FALSE),H108)) -> 3.905540909 | I109: =IF(A109>$C$3,"_",IFERROR(VLOOKUP(B109,BAZA_LIBOR_WIBOR_KURS!$C$2:$F$145,3,FALSE),I108)) -> 0.0173 | J109: 0.02 | K109: 1790.759274 | L109: 912.63 | M109: 878.1292745 | N109: =IF(A109>$C$3,"_",$C$2-SUM($M$11:M109)) -> 292730.6579
A110: 100 | B110: 2015-11-01 | C110: =IF(A110>$C$3,"_",IFERROR(VLOOKUP(B110,BAZA_LIBOR_WIBOR_KURS!$C$2:$F$145,2,FALSE),C109)) -> -0.00732 | D110: 0.02 | E110: 110.4188003 | F110: 347.9079955 | G110: =IF(A110>$C$3,"_",$C$8-SUM($F$11:F110)) -> 104149.3794 | H110: =IF(A110>$C$3,"_",IFERROR(VLOOKUP(B110,BAZA_LIBOR_WIBOR_KURS!$C$2:$F$145,4,FALSE),H109)) -> 3.914 | I110: =IF(A110>$C$3,"_",IFERROR(VLOOKUP(B110,BAZA_LIBOR_WIBOR_KURS!$C$2:$F$145,3,FALSE),I109)) -> 0.0173 | J110: 0.02 | K110: 1793.891079 | L110: 909.9 | M110: 883.9910789 | N110: =IF(A110>$C$3,"_",$C$2-SUM($M$11:M110)) -> 291846.6668
A111: 101 | B111: 2015-12-01 | C111: =IF(A111>$C$3,"_",IFERROR(VLOOKUP(B111,BAZA_LIBOR_WIBOR_KURS!$C$2:$F$145,2,FALSE),C110)) -> -0.00732 | D111: 0.02 | E111: 110.0511775 | F111: 348.2756183 | G111: =IF(A111>$C$3,"_",$C$8-SUM($F$11:F111)) -> 103801.1037 | H111: =IF(A111>$C$3,"_",IFERROR(VLOOKUP(B111,BAZA_LIBOR_WIBOR_KURS!$C$2:$F$145,4,FALSE),H110)) -> 3.914 | I111: =IF(A111>$C$3,"_",IFERROR(VLOOKUP(B111,BAZA_LIBOR_WIBOR_KURS!$C$2:$F$145,3,FALSE),I110)) -> 0.0173 | J111: 0.02 | K111: 1793.891079 | L111: 907.16 | M111: 886.7310789 | N111: =IF(A111>$C$3,"_",$C$2-SUM($M$11:M111)) -> 290959.9357
A112: 102 | B112: 2016-01-01 | C112: =IF(A112>$C$3,"_",IFERROR(VLOOKUP(B112,BAZA_LIBOR_WIBOR_KURS!$C$2:$F$145,2,FALSE),C111)) -> -0.00732 | D112: 0.02 | E112: 109.6831663 | F112: 348.6436296 | G112: =IF(A112>$C$3,"_",$C$8-SUM($F$11:F112)) -> 103452.4601 | H112: =IF(A112>$C$3,"_",IFERROR(VLOOKUP(B112,BAZA_LIBOR_WIBOR_KURS!$C$2:$F$145,4,FALSE),H111)) -> 3.914 | I112: =IF(A112>$C$3,"_",IFERROR(VLOOKUP(B112,BAZA_LIBOR_WIBOR_KURS!$C$2:$F$145,3,FALSE),I111)) -> 0.0173 | J112: 0.02 | K112: 0 | L112: 904.4 | M112: -904.4 | N112: =IF(A112>$C$3,"_",$C$2-SUM($M$11:M112)) -> 291864.3357
A113: 103 | B113: 2016-02-01 | C113: =IF(A113>$C$3,"_",IFERROR(VLOOKUP(B113,BAZA_LIBOR_WIBOR_KURS!$C$2:$F$145,2,FALSE),C112)) -> -0.00732 | D113: 0.02 | E113: 109.3147662 | F113: 349.0120297 | G113: =IF(A113>$C$3,"_",$C$8-SUM($F$11:F113)) -> 103103.4481 | H113: =IF(A113>$C$3,"_",IFERROR(VLOOKUP(B113,BAZA_LIBOR_WIBOR_KURS!$C$2:$F$145,4,FALSE),H112)) -> 3.914 | I113: =IF(A113>$C$3,"_",IFERROR(VLOOKUP(B113,BAZA_LIBOR_WIBOR_KURS!$C$2:$F$145,3,FALSE),I112)) -> 0.0173 | J113: 0.02 | K113: 0 | L113: 907.21 | M113: -907.21 | N113: =IF(A113>$C$3,"_",$C$2-SUM($M$11:M113)) -> 292771.5457
A114: 104 | B114: 2016-03-01 | C114: =IF(A114>$C$3,"_",IFERROR(VLOOKUP(B114,BAZA_LIBOR_WIBOR_KURS!$C$2:$F$145,2,FALSE),C113)) -> -0.00732 | D114: 0.02 | E114: 108.9459768 | F114: 349.380819 | G114: =IF(A114>$C$3,"_",$C$8-SUM($F$11:F114)) -> 102754.0673 | H114: =IF(A114>$C$3,"_",IFERROR(VLOOKUP(B114,BAZA_LIBOR_WIBOR_KURS!$C$2:$F$145,4,FALSE),H113)) -> 3.914 | I114: =IF(A114>$C$3,"_",IFERROR(VLOOKUP(B114,BAZA_LIBOR_WIBOR_KURS!$C$2:$F$145,3,FALSE),I113)) -> 0.0173 | J114: 0.02 | K114: 0 | L114: 910.03 | M114: -910.03 | N114: =IF(A114>$C$3,"_",$C$2-SUM($M$11:M114)) -> 293681.5757
A115: 105 | B115: 2016-04-01 | C115: =IF(A115>$C$3,"_",IFERROR(VLOOKUP(B115,BAZA_LIBOR_WIBOR_KURS!$C$2:$F$145,2,FALSE),C114)) -> -0.00732 | D115: 0.02 | E115: 108.5767977 | F115: 349.7499981 | G115: =IF(A115>$C$3,"_",$C$8-SUM($F$11:F115)) -> 102404.3173 | H115: =IF(A115>$C$3,"_",IFERROR(VLOOKUP(B115,BAZA_LIBOR_WIBOR_KURS!$C$2:$F$145,4,FALSE),H114)) -> 3.914 | I115: =IF(A115>$C$3,"_",IFERROR(VLOOKUP(B115,BAZA_LIBOR_WIBOR_KURS!$C$2:$F$145,3,FALSE),I114)) -> 0.0173 | J115: 0.02 | K115: 0 | L115: 912.86 | M115: -912.86 | N115: =IF(A115>$C$3,"_",$C$2-SUM($M$11:M115)) -> 294594.4357
A116: 106 | B116: 2016-05-01 | C116: =IF(A116>$C$3,"_",IFERROR(VLOOKUP(B116,BAZA_LIBOR_WIBOR_KURS!$C$2:$F$145,2,FALSE),C115)) -> -0.00732 | D116: 0.02 | E116: 108.2072286 | F116: 350.1195673 | G116: =IF(A116>$C$3,"_",$C$8-SUM($F$11:F116)) -> 102054.1977 | H116: =IF(A116>$C$3,"_",IFERROR(VLOOKUP(B116,BAZA_LIBOR_WIBOR_KURS!$C$2:$F$145,4,FALSE),H115)) -> 3.914 | I116: =IF(A116>$C$3,"_",IFERROR(VLOOKUP(B116,BAZA_LIBOR_WIBOR_KURS!$C$2:$F$145,3,FALSE),I115)) -> 0.0173 | J116: 0.02 | K116: 0 | L116: 915.7 | M116: -915.7 | N116: =IF(A116>$C$3,"_",$C$2-SUM($M$11:M116)) -> 295510.1357
A117: 107 | B117: 2016-06-01 | C117: =IF(A117>$C$3,"_",IFERROR(VLOOKUP(B117,BAZA_LIBOR_WIBOR_KURS!$C$2:$F$145,2,FALSE),C116)) -> -0.00732 | D117: 0.02 | E117: 107.8372689 | F117: 350.489527 | G117: =IF(A117>$C$3,"_",$C$8-SUM($F$11:F117)) -> 101703.7082 | H117: =IF(A117>$C$3,"_",IFERROR(VLOOKUP(B117,BAZA_LIBOR_WIBOR_KURS!$C$2:$F$145,4,FALSE),H116)) -> 3.914 | I117: =IF(A117>$C$3,"_",IFERROR(VLOOKUP(B117,BAZA_LIBOR_WIBOR_KURS!$C$2:$F$145,3,FALSE),I116)) -> 0.0173 | J117: 0.02 | K117: 0 | L117: 918.54 | M117: -918.54 | N117: =IF(A117>$C$3,"_",$C$2-SUM($M$11:M117)) -> 296428.6757
A118: 108 | B118: 2016-07-01 | C118: =IF(A118>$C$3,"_",IFERROR(VLOOKUP(B118,BAZA_LIBOR_WIBOR_KURS!$C$2:$F$145,2,FALSE),C117)) -> -0.00732 | D118: 0.02 | E118: 107.4669183 | F118: 350.8598776 | G118: =IF(A118>$C$3,"_",$C$8-SUM($F$11:F118)) -> 101352.8483 | H118: =IF(A118>$C$3,"_",IFERROR(VLOOKUP(B118,BAZA_LIBOR_WIBOR_KURS!$C$2:$F$145,4,FALSE),H117)) -> 3.914 | I118: =IF(A118>$C$3,"_",IFERROR(VLOOKUP(B118,BAZA_LIBOR_WIBOR_KURS!$C$2:$F$145,3,FALSE),I117)) -> 0.0173 | J118: 0.02 | K118: 0 | L118: 921.4 | M118: -921.4 | N118: =IF(A118>$C$3,"_",$C$2-SUM($M$11:M118)) -> 297350.0757
A119: 109 | B119: 2016-08-01 | C119: =IF(A119>$C$3,"_",IFERROR(VLOOKUP(B119,BAZA_LIBOR_WIBOR_KURS!$C$2:$F$145,2,FALSE),C118)) -> -0.00732 | D119: 0.02 | E119: 107.0961764 | F119: 351.2306195 | G119: =IF(A119>$C$3,"_",$C$8-SUM($F$11:F119)) -> 101001.6177 | H119: =IF(A119>$C$3,"_",IFERROR(VLOOKUP(B119,BAZA_LIBOR_WIBOR_KURS!$C$2:$F$145,4,FALSE),H118)) -> 3.914 | I119: =IF(A119>$C$3,"_",IFERROR(VLOOKUP(B119,BAZA_LIBOR_WIBOR_KURS!$C$2:$F$145,3,FALSE),I118)) -> 0.0173 | J119: 0.02 | K119: 0 | L119: 924.26 | M119: -924.26 | N119: =IF(A119>$C$3,"_",$C$2-SUM($M$11:M119)) -> 298274.3357
A120: 110 | B120: 2016-09-01 | C120: =IF(A120>$C$3,"_",IFERROR(VLOOKUP(B120,BAZA_LIBOR_WIBOR_KURS!$C$2:$F$145,2,FALSE),C119)) -> -0.00732 | D120: 0.02 | E120: 106.7250427 | F120: 351.6017532 | G120: =IF(A120>$C$3,"_",$C$8-SUM($F$11:F120)) -> 100650.0159 | H120: =IF(A120>$C$3,"_",IFERROR(VLOOKUP(B120,BAZA_LIBOR_WIBOR_KURS!$C$2:$F$145,4,FALSE),H119)) -> 3.914 | I120: =IF(A120>$C$3,"_",IFERROR(VLOOKUP(B120,BAZA_LIBOR_WIBOR_KURS!$C$2:$F$145,3,FALSE),I119)) -> 0.0173 | J120: 0.02 | K120: 0 | L120: 927.14 | M120: -927.14 | N120: =IF(A120>$C$3,"_",$C$2-SUM($M$11:M120)) -> 299201.4757
A121: 111 | B121: 2016-10-01 | C121: =IF(A121>$C$3,"_",IFERROR(VLOOKUP(B121,BAZA_LIBOR_WIBOR_KURS!$C$2:$F$145,2,FALSE),C120)) -> -0.00732 | D121: 0.02 | E121: 106.3535168 | F121: 351.973279 | G121: =IF(A121>$C$3,"_",$C$8-SUM($F$11:F121)) -> 100298.0426 | H121: =IF(A121>$C$3,"_",IFERROR(VLOOKUP(B121,BAZA_LIBOR_WIBOR_KURS!$C$2:$F$145,4,FALSE),H120)) -> 3.914 | I121: =IF(A121>$C$3,"_",IFERROR(VLOOKUP(B121,BAZA_LIBOR_WIBOR_KURS!$C$2:$F$145,3,FALSE),I120)) -> 0.0173 | J121: 0.02 | K121: 0 | L121: 930.02 | M121: -930.02 | N121: =IF(A121>$C$3,"_",$C$2-SUM($M$11:M121)) -> 300131.4957
A122: 112 | B122: 2016-11-01 | C122: =IF(A122>$C$3,"_",IFERROR(VLOOKUP(B122,BAZA_LIBOR_WIBOR_KURS!$C$2:$F$145,2,FALSE),C121)) -> -0.00732 | D122: 0.02 | E122: 105.9815984 | F122: 352.3451975 | G122: =IF(A122>$C$3,"_",$C$8-SUM($F$11:F122)) -> 99945.69744 | H122: =IF(A122>$C$3,"_",IFERROR(VLOOKUP(B122,BAZA_LIBOR_WIBOR_KURS!$C$2:$F$145,4,FALSE),H121)) -> 3.914 | I122: =IF(A122>$C$3,"_",IFERROR(VLOOKUP(B122,BAZA_LIBOR_WIBOR_KURS!$C$2:$F$145,3,FALSE),I121)) -> 0.0173 | J122: 0.02 | K122: 0 | L122: 932.91 | M122: -932.91 | N122: =IF(A122>$C$3,"_",$C$2-SUM($M$11:M122)) -> 301064.4057
A123: 113 | B123: 2016-12-01 | C123: =IF(A123>$C$3,"_",IFERROR(VLOOKUP(B123,BAZA_LIBOR_WIBOR_KURS!$C$2:$F$145,2,FALSE),C122)) -> -0.00732 | D123: 0.02 | E123: 105.609287 | F123: 352.7175089 | G123: =IF(A123>$C$3,"_",$C$8-SUM($F$11:F123)) -> 99592.97993 | H123: =IF(A123>$C$3,"_",IFERROR(VLOOKUP(B123,BAZA_LIBOR_WIBOR_KURS!$C$2:$F$145,4,FALSE),H122)) -> 3.914 | I123: =IF(A123>$C$3,"_",IFERROR(VLOOKUP(B123,BAZA_LIBOR_WIBOR_KURS!$C$2:$F$145,3,FALSE),I122)) -> 0.0173 | J123: 0.02 | K123: 0 | L123: 935.81 | M123: -935.81 | N123: =IF(A123>$C$3,"_",$C$2-SUM($M$11:M123)) -> 302000.2157
A124: 114 | B124: 2017-01-01 | C124: =IF(A124>$C$3,"_",IFERROR(VLOOKUP(B124,BAZA_LIBOR_WIBOR_KURS!$C$2:$F$145,2,FALSE),C123)) -> -0.00732 | D124: 0.02 | E124: 105.2365821 | F124: 353.0902137 | G124: =IF(A124>$C$3,"_",$C$8-SUM($F$11:F124)) -> 99239.88971 | H124: =IF(A124>$C$3,"_",IFERROR(VLOOKUP(B124,BAZA_LIBOR_WIBOR_KURS!$C$2:$F$145,4,FALSE),H123)) -> 3.914 | I124: =IF(A124>$C$3,"_",IFERROR(VLOOKUP(B124,BAZA_LIBOR_WIBOR_KURS!$C$2:$F$145,3,FALSE),I123)) -> 0.0173 | J124: 0.02 | K124: 0 | L124: 938.72 | M124: -938.72 | N124: =IF(A124>$C$3,"_",$C$2-SUM($M$11:M124)) -> 302938.9357
A125: 115 | B125: 2017-02-01 | C125: =IF(A125>$C$3,"_",IFERROR(VLOOKUP(B125,BAZA_LIBOR_WIBOR_KURS!$C$2:$F$145,2,FALSE),C124)) -> -0.00732 | D125: 0.02 | E125: 104.8634835 | F125: 353.4633124 | G125: =IF(A125>$C$3,"_",$C$8-SUM($F$11:F125)) -> 98886.4264 | H125: =IF(A125>$C$3,"_",IFERROR(VLOOKUP(B125,BAZA_LIBOR_WIBOR_KURS!$C$2:$F$145,4,FALSE),H124)) -> 3.914 | I125: =IF(A125>$C$3,"_",IFERROR(VLOOKUP(B125,BAZA_LIBOR_WIBOR_KURS!$C$2:$F$145,3,FALSE),I124)) -> 0.0173 | J125: 0.02 | K125: 0 | L125: 941.64 | M125: -941.64 | N125: =IF(A125>$C$3,"_",$C$2-SUM($M$11:M125)) -> 303880.5757
A126: 116 | B126: 2017-03-01 | C126: =IF(A126>$C$3,"_",IFERROR(VLOOKUP(B126,BAZA_LIBOR_WIBOR_KURS!$C$2:$F$145,2,FALSE),C125)) -> -0.00732 | D126: 0.02 | E126: 104.4899906 | F126: 353.8368053 | G126: =IF(A126>$C$3,"_",$C$8-SUM($F$11:F126)) -> 98532.5896 | H126: =IF(A126>$C$3,"_",IFERROR(VLOOKUP(B126,BAZA_LIBOR_WIBOR_KURS!$C$2:$F$145,4,FALSE),H125)) -> 3.914 | I126: =IF(A126>$C$3,"_",IFERROR(VLOOKUP(B126,BAZA_LIBOR_WIBOR_KURS!$C$2:$F$145,3,FALSE),I125)) -> 0.0173 | J126: 0.02 | K126: 0 | L126: 944.56 | M126: -944.56 | N126: =IF(A126>$C$3,"_",$C$2-SUM($M$11:M126)) -> 304825.1357
A127: 117 | B127: 2017-04-01 | C127: =IF(A127>$C$3,"_",IFERROR(VLOOKUP(B127,BAZA_LIBOR_WIBOR_KURS!$C$2:$F$145,2,FALSE),C126)) -> -0.00732 | D127: 0.02 | E127: 104.116103 | F127: 354.2106928 | G127: =IF(A127>$C$3,"_",$C$8-SUM($F$11:F127)) -> 98178.3789 | H127: =IF(A127>$C$3,"_",IFERROR(VLOOKUP(B127,BAZA_LIBOR_WIBOR_KURS!$C$2:$F$145,4,FALSE),H126)) -> 3.914 | I127: =IF(A127>$C$3,"_",IFERROR(VLOOKUP(B127,BAZA_LIBOR_WIBOR_KURS!$C$2:$F$145,3,FALSE),I126)) -> 0.0173 | J127: 0.02 | K127: 0 | L127: 947.5 | M127: -947.5 | N127: =IF(A127>$C$3,"_",$C$2-SUM($M$11:M127)) -> 305772.6357
A128: 118 | B128: 2017-05-01 | C128: =IF(A128>$C$3,"_",IFERROR(VLOOKUP(B128,BAZA_LIBOR_WIBOR_KURS!$C$2:$F$145,2,FALSE),C127)) -> -0.00732 | D128: 0.02 | E128: 103.7418204 | F128: 354.5849755 | G128: =IF(A128>$C$3,"_",$C$8-SUM($F$11:F128)) -> 97823.79393 | H128: =IF(A128>$C$3,"_",IFERROR(VLOOKUP(B128,BAZA_LIBOR_WIBOR_KURS!$C$2:$F$145,4,FALSE),H127)) -> 3.914 | I128: =IF(A128>$C$3,"_",IFERROR(VLOOKUP(B128,BAZA_LIBOR_WIBOR_KURS!$C$2:$F$145,3,FALSE),I127)) -> 0.0173 | J128: 0.02 | K128: 0 | L128: 950.44 | M128: -950.44 | N128: =IF(A128>$C$3,"_",$C$2-SUM($M$11:M128)) -> 306723.0757
A129: 119 | B129: 2017-06-01 | C129: =IF(A129>$C$3,"_",IFERROR(VLOOKUP(B129,BAZA_LIBOR_WIBOR_KURS!$C$2:$F$145,2,FALSE),C128)) -> -0.00732 | D129: 0.02 | E129: 103.3671423 | F129: 354.9596536 | G129: =IF(A129>$C$3,"_",$C$8-SUM($F$11:F129)) -> 97468.83427 | H129: =IF(A129>$C$3,"_",IFERROR(VLOOKUP(B129,BAZA_LIBOR_WIBOR_KURS!$C$2:$F$145,4,FALSE),H128)) -> 3.914 | I129: =IF(A129>$C$3,"_",IFERROR(VLOOKUP(B129,BAZA_LIBOR_WIBOR_KURS!$C$2:$F$145,3,FALSE),I128)) -> 0.0173 | J129: 0.02 | K129: 0 | L129: 953.4 | M129: -953.4 | N129: =IF(A129>$C$3,"_",$C$2-SUM($M$11:M129)) -> 307676.4757
A130: 120 | B130: 2017-07-01 | C130: =IF(A130>$C$3,"_",IFERROR(VLOOKUP(B130,BAZA_LIBOR_WIBOR_KURS!$C$2:$F$145,2,FALSE),C129)) -> -0.00732 | D130: 0.02 | E130: 102.9920682 | F130: 355.3347276 | G130: =IF(A130>$C$3,"_",$C$8-SUM($F$11:F130)) -> 97113.49955 | H130: =IF(A130>$C$3,"_",IFERROR(VLOOKUP(B130,BAZA_LIBOR_WIBOR_KURS!$C$2:$F$145,4,FALSE),H129)) -> 3.914 | I130: =IF(A130>$C$3,"_",IFERROR(VLOOKUP(B130,BAZA_LIBOR_WIBOR_KURS!$C$2:$F$145,3,FALSE),I129)) -> 0.0173 | J130: 0.02 | K130: 0 | L130: 956.36 | M130: -956.36 | N130: =IF(A130>$C$3,"_",$C$2-SUM($M$11:M130)) -> 308632.8357
A131: 121 | B131: 2017-08-01 | C131: =IF(A131>$C$3,"_",IFERROR(VLOOKUP(B131,BAZA_LIBOR_WIBOR_KURS!$C$2:$F$145,2,FALSE),C130)) -> -0.00732 | D131: 0.02 | E131: 102.6165979 | F131: 355.710198 | G131: =IF(A131>$C$3,"_",$C$8-SUM($F$11:F131)) -> 96757.78935 | H131: =IF(A131>$C$3,"_",IFERROR(VLOOKUP(B131,BAZA_LIBOR_WIBOR_KURS!$C$2:$F$145,4,FALSE),H130)) -> 3.914 | I131: =IF(A131>$C$3,"_",IFERROR(VLOOKUP(B131,BAZA_LIBOR_WIBOR_KURS!$C$2:$F$145,3,FALSE),I130)) -> 0.0173 | J131: 0.02 | K131: 0 | L131: 959.33 | M131: -959.33 | N131: =IF(A131>$C$3,"_",$C$2-SUM($M$11:M131)) -> 309592.1657
A132: 122 | B132: 2017-09-01 | C132: =IF(A132>$C$3,"_",IFERROR(VLOOKUP(B132,BAZA_LIBOR_WIBOR_KURS!$C$2:$F$145,2,FALSE),C131)) -> -0.00732 | D132: 0.02 | E132: 102.2407307 | F132: 356.0860651 | G132: =IF(A132>$C$3,"_",$C$8-SUM($F$11:F132)) -> 96401.70328 | H132: =IF(A132>$C$3,"_",IFERROR(VLOOKUP(B132,BAZA_LIBOR_WIBOR_KURS!$C$2:$F$145,4,FALSE),H131)) -> 3.914 | I132: =IF(A132>$C$3,"_",IFERROR(VLOOKUP(B132,BAZA_LIBOR_WIBOR_KURS!$C$2:$F$145,3,FALSE),I131)) -> 0.0173 | J132: 0.02 | K132: 0 | L132: 962.32 | M132: -962.32 | N132: =IF(A132>$C$3,"_",$C$2-SUM($M$11:M132)) -> 310554.4857
A133: 123 | B133: 2017-10-01 | C133: =IF(A133>$C$3,"_",IFERROR(VLOOKUP(B133,BAZA_LIBOR_WIBOR_KURS!$C$2:$F$145,2,FALSE),C132)) -> -0.00732 | D133: 0.02 | E133: 101.8644665 | F133: 356.4623294 | G133: =IF(A133>$C$3,"_",$C$8-SUM($F$11:F133)) -> 96045.24095 | H133: =IF(A133>$C$3,"_",IFERROR(VLOOKUP(B133,BAZA_LIBOR_WIBOR_KURS!$C$2:$F$145,4,FALSE),H132)) -> 3.914 | I133: =IF(A133>$C$3,"_",IFERROR(VLOOKUP(B133,BAZA_LIBOR_WIBOR_KURS!$C$2:$F$145,3,FALSE),I132)) -> 0.0173 | J133: 0.02 | K133: 0 | L133: 965.31 | M133: -965.31 | N133: =IF(A133>$C$3,"_",$C$2-SUM($M$11:M133)) -> 311519.7957
A134: 124 | B134: 2017-11-01 | C134: =IF(A134>$C$3,"_",IFERROR(VLOOKUP(B134,BAZA_LIBOR_WIBOR_KURS!$C$2:$F$145,2,FALSE),C133)) -> -0.00732 | D134: 0.02 | E134: 101.4878046 | F134: 356.8389912 | G134: =IF(A134>$C$3,"_",$C$8-SUM($F$11:F134)) -> 95688.40196 | H134: =IF(A134>$C$3,"_",IFERROR(VLOOKUP(B134,BAZA_LIBOR_WIBOR_KURS!$C$2:$F$145,4,FALSE),H133)) -> 3.914 | I134: =IF(A134>$C$3,"_",IFERROR(VLOOKUP(B134,BAZA_LIBOR_WIBOR_KURS!$C$2:$F$145,3,FALSE),I133)) -> 0.0173 | J134: 0.02 | K134: 0 | L134: 968.31 | M134: -968.31 | N134: =IF(A134>$C$3,"_",$C$2-SUM($M$11:M134)) -> 312488.1057
A135: 125 | B135: 2017-12-01 | C135: =IF(A135>$C$3,"_",IFERROR(VLOOKUP(B135,BAZA_LIBOR_WIBOR_KURS!$C$2:$F$145,2,FALSE),C134)) -> -0.00732 | D135: 0.02 | E135: 101.1107447 | F135: 357.2160511 | G135: =IF(A135>$C$3,"_",$C$8-SUM($F$11:F135)) -> 95331.18591 | H135: =IF(A135>$C$3,"_",IFERROR(VLOOKUP(B135,BAZA_LIBOR_WIBOR_KURS!$C$2:$F$145,4,FALSE),H134)) -> 3.914 | I135: =IF(A135>$C$3,"_",IFERROR(VLOOKUP(B135,BAZA_LIBOR_WIBOR_KURS!$C$2:$F$145,3,FALSE),I134)) -> 0.0173 | J135: 0.02 | K135: 0 | L135: 971.32 | M135: -971.32 | N135: =IF(A135>$C$3,"_",$C$2-SUM($M$11:M135)) -> 313459.4257
A136: 126 | B136: 2018-01-01 | C136: =IF(A136>$C$3,"_",IFERROR(VLOOKUP(B136,BAZA_LIBOR_WIBOR_KURS!$C$2:$F$145,2,FALSE),C135)) -> -0.00732 | D136: 0.02 | E136: 100.7332864 | F136: 357.5935094 | G136: =IF(A136>$C$3,"_",$C$8-SUM($F$11:F136)) -> 94973.5924 | H136: =IF(A136>$C$3,"_",IFERROR(VLOOKUP(B136,BAZA_LIBOR_WIBOR_KURS!$C$2:$F$145,4,FALSE),H135)) -> 3.914 | I136: =IF(A136>$C$3,"_",IFERROR(VLOOKUP(B136,BAZA_LIBOR_WIBOR_KURS!$C$2:$F$145,3,FALSE),I135)) -> 0.0173 | J136: 0.02 | K136: 0 | L136: 974.34 | M136: -974.34 | N136: =IF(A136>$C$3,"_",$C$2-SUM($M$11:M136)) -> 314433.7657
A137: 127 | B137: 2018-02-01 | C137: =IF(A137>$C$3,"_",IFERROR(VLOOKUP(B137,BAZA_LIBOR_WIBOR_KURS!$C$2:$F$145,2,FALSE),C136)) -> -0.00732 | D137: 0.02 | E137: 100.3554293 | F137: 357.9713665 | G137: =IF(A137>$C$3,"_",$C$8-SUM($F$11:F137)) -> 94615.62104 | H137: =IF(A137>$C$3,"_",IFERROR(VLOOKUP(B137,BAZA_LIBOR_WIBOR_KURS!$C$2:$F$145,4,FALSE),H136)) -> 3.914 | I137: =IF(A137>$C$3,"_",IFERROR(VLOOKUP(B137,BAZA_LIBOR_WIBOR_KURS!$C$2:$F$145,3,FALSE),I136)) -> 0.0173 | J137: 0.02 | K137: 0 | L137: 977.36 | M137: -977.36 | N137: =IF(A137>$C$3,"_",$C$2-SUM($M$11:M137)) -> 315411.1257
A138: 128 | B138: 2018-03-01 | C138: =IF(A138>$C$3,"_",IFERROR(VLOOKUP(B138,BAZA_LIBOR_WIBOR_KURS!$C$2:$F$145,2,FALSE),C137)) -> -0.00732 | D138: 0.02 | E138: 99.9771729 | F138: 358.3496229 | G138: =IF(A138>$C$3,"_",$C$8-SUM($F$11:F138)) -> 94257.27141 | H138: =IF(A138>$C$3,"_",IFERROR(VLOOKUP(B138,BAZA_LIBOR_WIBOR_KURS!$C$2:$F$145,4,FALSE),H137)) -> 3.914 | I138: =IF(A138>$C$3,"_",IFERROR(VLOOKUP(B138,BAZA_LIBOR_WIBOR_KURS!$C$2:$F$145,3,FALSE),I137)) -> 0.0173 | J138: 0.02 | K138: 0 | L138: 980.4 | M138: -980.4 | N138: =IF(A138>$C$3,"_",$C$2-SUM($M$11:M138)) -> 316391.5257
A139: 129 | B139: 2018-04-01 | C139: =IF(A139>$C$3,"_",IFERROR(VLOOKUP(B139,BAZA_LIBOR_WIBOR_KURS!$C$2:$F$145,2,FALSE),C138)) -> -0.00732 | D139: 0.02 | E139: 99.59851679 | F139: 358.728279 | G139: =IF(A139>$C$3,"_",$C$8-SUM($F$11:F139)) -> 93898.54313 | H139: =IF(A139>$C$3,"_",IFERROR(VLOOKUP(B139,BAZA_LIBOR_WIBOR_KURS!$C$2:$F$145,4,FALSE),H138)) -> 3.914 | I139: =IF(A139>$C$3,"_",IFERROR(VLOOKUP(B139,BAZA_LIBOR_WIBOR_KURS!$C$2:$F$145,3,FALSE),I138)) -> 0.0173 | J139: 0.02 | K139: =IF(A139>$C$3,"_",IF(B139>$F$4,0,H139*(E139+F139))) -> 0 | L139: 983.45 | M139: -983.45 | N139: =IF(A139>$C$3,"_",$C$2-SUM($M$11:M139)) -> 317374.9757
A140: 130 | B140: =IF(A140>$C$3,"_",DATE(YEAR(B139),MONTH(B139)+1,1)) -> 2018-05-01 | C140: =IF(A140>$C$3,"_",IFERROR(VLOOKUP(B140,BAZA_LIBOR_WIBOR_KURS!$C$2:$F$145,2,FALSE),C139)) -> -0.00732 | D140: =IF(A140>$C$3,"_",D139) -> 0.02 | E140: =IF(A140>$C$3,"_",IPMT((C140+D140)/12,1,$C$3-A139,-G139)) -> 99.21946058 | F140: =IF(A140>$C$3,"_",PPMT((C140+D140)/12,1,$C$3-A139,-G139)) -> 359.1073353 | G140: =IF(A140>$C$3,"_",$C$8-SUM($F$11:F140)) -> 93539.4358 | H140: =IF(A140>$C$3,"_",IFERROR(VLOOKUP(B140,BAZA_LIBOR_WIBOR_KURS!$C$2:$F$145,4,FALSE),H139)) -> 3.914 | I140: =IF(A140>$C$3,"_",IFERROR(VLOOKUP(B140,BAZA_LIBOR_WIBOR_KURS!$C$2:$F$145,3,FALSE),I139)) -> 0.0173 | J140: =IF(A140>$C$3,"_",J139) -> 0.02 | K140: 0 | L140: =IF(A140>$C$3,"_",IF(N139<0,0,ROUND(N139*(I140+J140)/12,2))) -> 986.51 | M140: =IFERROR(K140-L140,"_") -> -986.51 | N140: =IF(A140>$C$3,"_",$C$2-SUM($M$11:M140)) -> 318361.4857
A141: =A140+1 -> 131 | B141: 2018-06-01 | C141: =IF(A141>$C$3,"_",IFERROR(VLOOKUP(B141,BAZA_LIBOR_WIBOR_KURS!$C$2:$F$145,2,FALSE),C140)) -> -0.00732 | D141: 0.02 | E141: 98.84000383 | F141: 359.486792 | G141: =IF(A141>$C$3,"_",$C$8-SUM($F$11:F141)) -> 93179.94901 | H141: =IF(A141>$C$3,"_",IFERROR(VLOOKUP(B141,BAZA_LIBOR_WIBOR_KURS!$C$2:$F$145,4,FALSE),H140)) -> 3.914 | I141: =IF(A141>$C$3,"_",IFERROR(VLOOKUP(B141,BAZA_LIBOR_WIBOR_KURS!$C$2:$F$145,3,FALSE),I140)) -> 0.0173 | J141: 0.02 | K141: 0 | L141: 989.57 | M141: -989.57 | N141: =IF(A141>$C$3,"_",$C$2-SUM($M$11:M141)) -> 319351.0557
A142: 132 | B142: 2018-07-01 | C142: =IF(A142>$C$3,"_",IFERROR(VLOOKUP(B142,BAZA_LIBOR_WIBOR_KURS!$C$2:$F$145,2,FALSE),C141)) -> -0.00732 | D142: 0.02 | E142: 98.46014612 | F142: 359.8666497 | G142: =IF(A142>$C$3,"_",$C$8-SUM($F$11:F142)) -> 92820.08236 | H142: =IF(A142>$C$3,"_",IFERROR(VLOOKUP(B142,BAZA_LIBOR_WIBOR_KURS!$C$2:$F$145,4,FALSE),H141)) -> 3.914 | I142: =IF(A142>$C$3,"_",IFERROR(VLOOKUP(B142,BAZA_LIBOR_WIBOR_KURS!$C$2:$F$145,3,FALSE),I141)) -> 0.0173 | J142: 0.02 | K142: 0 | L142: 992.65 | M142: -992.65 | N142: =IF(A142>$C$3,"_",$C$2-SUM($M$11:M142)) -> 320343.7057
A143: 133 | B143: 2018-08-01 | C143: =IF(A143>$C$3,"_",IFERROR(VLOOKUP(B143,BAZA_LIBOR_WIBOR_KURS!$C$2:$F$145,2,FALSE),C142)) -> -0.00732 | D143: 0.02 | E143: 98.07988702 | F143: 360.2469088 | G143: =IF(A143>$C$3,"_",$C$8-SUM($F$11:F143)) -> 92459.83545 | H143: =IF(A143>$C$3,"_",IFERROR(VLOOKUP(B143,BAZA_LIBOR_WIBOR_KURS!$C$2:$F$145,4,FALSE),H142)) -> 3.914 | I143: =IF(A143>$C$3,"_",IFERROR(VLOOKUP(B143,BAZA_LIBOR_WIBOR_KURS!$C$2:$F$145,3,FALSE),I142)) -> 0.0173 | J143: 0.02 | K143: 0 | L143: 995.74 | M143: -995.74 | N143: =IF(A143>$C$3,"_",$C$2-SUM($M$11:M143)) -> 321339.4457
A144: 134 | B144: 2018-09-01 | C144: =IF(A144>$C$3,"_",IFERROR(VLOOKUP(B144,BAZA_LIBOR_WIBOR_KURS!$C$2:$F$145,2,FALSE),C143)) -> -0.00732 | D144: 0.02 | E144: 97.69922612 | F144: 360.6275697 | G144: =IF(A144>$C$3,"_",$C$8-SUM($F$11:F144)) -> 92099.20788 | H144: =IF(A144>$C$3,"_",IFERROR(VLOOKUP(B144,BAZA_LIBOR_WIBOR_KURS!$C$2:$F$145,4,FALSE),H143)) -> 3.914 | I144: =IF(A144>$C$3,"_",IFERROR(VLOOKUP(B144,BAZA_LIBOR_WIBOR_KURS!$C$2:$F$145,3,FALSE),I143)) -> 0.0173 | J144: 0.02 | K144: 0 | L144: 998.83 | M144: -998.83 | N144: =IF(A144>$C$3,"_",$C$2-SUM($M$11:M144)) -> 322338.2757
A145: 135 | B145: 2018-10-01 | C145: =IF(A145>$C$3,"_",IFERROR(VLOOKUP(B145,BAZA_LIBOR_WIBOR_KURS!$C$2:$F$145,2,FALSE),C144)) -> -0.00732 | D145: 0.02 | E145: 97.31816299 | F145: 361.0086329 | G145: =IF(A145>$C$3,"_",$C$8-SUM($F$11:F145)) -> 91738.19925 | H145: =IF(A145>$C$3,"_",IFERROR(VLOOKUP(B145,BAZA_LIBOR_WIBOR_KURS!$C$2:$F$145,4,FALSE),H144)) -> 3.914 | I145: =IF(A145>$C$3,"_",IFERROR(VLOOKUP(B145,BAZA_LIBOR_WIBOR_KURS!$C$2:$F$145,3,FALSE),I144)) -> 0.0173 | J145: 0.02 | K145: 0 | L145: 1001.93 | M145: -1001.93 | N145: =IF(A145>$C$3,"_",$C$2-SUM($M$11:M145)) -> 323340.2057
A146: 136 | B146: 2018-11-01 | C146: =IF(A146>$C$3,"_",IFERROR(VLOOKUP(B146,BAZA_LIBOR_WIBOR_KURS!$C$2:$F$145,2,FALSE),C145)) -> -0.00732 | D146: 0.02 | E146: 96.9366972 | F146: 361.3900986 | G146: =IF(A146>$C$3,"_",$C$8-SUM($F$11:F146)) -> 91376.80915 | H146: =IF(A146>$C$3,"_",IFERROR(VLOOKUP(B146,BAZA_LIBOR_WIBOR_KURS!$C$2:$F$145,4,FALSE),H145)) -> 3.914 | I146: =IF(A146>$C$3,"_",IFERROR(VLOOKUP(B146,BAZA_LIBOR_WIBOR_KURS!$C$2:$F$145,3,FALSE),I145)) -> 0.0173 | J146: 0.02 | K146: 0 | L146: 1005.05 | M146: -1005.05 | N146: =IF(A146>$C$3,"_",$C$2-SUM($M$11:M146)) -> 324345.2557
A147: 137 | B147: 2018-12-01 | C147: =IF(A147>$C$3,"_",IFERROR(VLOOKUP(B147,BAZA_LIBOR_WIBOR_KURS!$C$2:$F$145,2,FALSE),C146)) -> -0.00732 | D147: 0.02 | E147: 96.55482833 | F147: 361.7719675 | G147: =IF(A147>$C$3,"_",$C$8-SUM($F$11:F147)) -> 91015.03718 | H147: =IF(A147>$C$3,"_",IFERROR(VLOOKUP(B147,BAZA_LIBOR_WIBOR_KURS!$C$2:$F$145,4,FALSE),H146)) -> 3.914 | I147: =IF(A147>$C$3,"_",IFERROR(VLOOKUP(B147,BAZA_LIBOR_WIBOR_KURS!$C$2:$F$145,3,FALSE),I146)) -> 0.0173 | J147: 0.02 | K147: 0 | L147: 1008.17 | M147: -1008.17 | N147: =IF(A147>$C$3,"_",$C$2-SUM($M$11:M147)) -> 325353.4257
A148: 138 | B148: 2019-01-01 | C148: =IF(A148>$C$3,"_",IFERROR(VLOOKUP(B148,BAZA_LIBOR_WIBOR_KURS!$C$2:$F$145,2,FALSE),C147)) -> -0.00732 | D148: 0.02 | E148: 96.17255595 | F148: 362.1542399 | G148: =IF(A148>$C$3,"_",$C$8-SUM($F$11:F148)) -> 90652.88294 | H148: =IF(A148>$C$3,"_",IFERROR(VLOOKUP(B148,BAZA_LIBOR_WIBOR_KURS!$C$2:$F$145,4,FALSE),H147)) -> 3.914 | I148: =IF(A148>$C$3,"_",IFERROR(VLOOKUP(B148,BAZA_LIBOR_WIBOR_KURS!$C$2:$F$145,3,FALSE),I147)) -> 0.0173 | J148: 0.02 | K148: 0 | L148: 1011.31 | M148: -1011.31 | N148: =IF(A148>$C$3,"_",$C$2-SUM($M$11:M148)) -> 326364.7357
A149: 139 | B149: 2019-02-01 | C149: =IF(A149>$C$3,"_",IFERROR(VLOOKUP(B149,BAZA_LIBOR_WIBOR_KURS!$C$2:$F$145,2,FALSE),C148)) -> -0.00732 | D149: 0.02 | E149: 95.78987964 | F149: 362.5369162 | G149: =IF(A149>$C$3,"_",$C$8-SUM($F$11:F149)) -> 90290.34602 | H149: =IF(A149>$C$3,"_",IFERROR(VLOOKUP(B149,BAZA_LIBOR_WIBOR_KURS!$C$2:$F$145,4,FALSE),H148)) -> 3.914 | I149: =IF(A149>$C$3,"_",IFERROR(VLOOKUP(B149,BAZA_LIBOR_WIBOR_KURS!$C$2:$F$145,3,FALSE),I148)) -> 0.0173 | J149: 0.02 | K149: 0 | L149: 1014.45 | M149: -1014.45 | N149: =IF(A149>$C$3,"_",$C$2-SUM($M$11:M149)) -> 327379.1857
A150: 140 | B150: 2019-03-01 | C150: =IF(A150>$C$3,"_",IFERROR(VLOOKUP(B150,BAZA_LIBOR_WIBOR_KURS!$C$2:$F$145,2,FALSE),C149)) -> -0.00732 | D150: 0.02 | E150: 95.40679897 | F150: 362.9199969 | G150: =IF(A150>$C$3,"_",$C$8-SUM($F$11:F150)) -> 89927.42603 | H150: =IF(A150>$C$3,"_",IFERROR(VLOOKUP(B150,BAZA_LIBOR_WIBOR_KURS!$C$2:$F$145,4,FALSE),H149)) -> 3.914 | I150: =IF(A150>$C$3,"_",IFERROR(VLOOKUP(B150,BAZA_LIBOR_WIBOR_KURS!$C$2:$F$145,3,FALSE),I149)) -> 0.0173 | J150: 0.02 | K150: 0 | L150: 1017.6 | M150: -1017.6 | N150: =IF(A150>$C$3,"_",$C$2-SUM($M$11:M150)) -> 328396.7857
A151: 141 | B151: 2019-04-01 | C151: =IF(A151>$C$3,"_",IFERROR(VLOOKUP(B151,BAZA_LIBOR_WIBOR_KURS!$C$2:$F$145,2,FALSE),C150)) -> -0.00732 | D151: 0.02 | E151: 95.0233135 | F151: 363.3034823 | G151: =IF(A151>$C$3,"_",$C$8-SUM($F$11:F151)) -> 89564.12254 | H151: =IF(A151>$C$3,"_",IFERROR(VLOOKUP(B151,BAZA_LIBOR_WIBOR_KURS!$C$2:$F$145,4,FALSE),H150)) -> 3.914 | I151: =IF(A151>$C$3,"_",IFERROR(VLOOKUP(B151,BAZA_LIBOR_WIBOR_KURS!$C$2:$F$145,3,FALSE),I150)) -> 0.0173 | J151: 0.02 | K151: 0 | L151: 1020.77 | M151: -1020.77 | N151: =IF(A151>$C$3,"_",$C$2-SUM($M$11:M151)) -> 329417.5557
A152: 142 | B152: 2019-05-01 | C152: =IF(A152>$C$3,"_",IFERROR(VLOOKUP(B152,BAZA_LIBOR_WIBOR_KURS!$C$2:$F$145,2,FALSE),C151)) -> -0.00732 | D152: 0.02 | E152: 94.63942282 | F152: 363.687373 | G152: =IF(A152>$C$3,"_",$C$8-SUM($F$11:F152)) -> 89200.43517 | H152: =IF(A152>$C$3,"_",IFERROR(VLOOKUP(B152,BAZA_LIBOR_WIBOR_KURS!$C$2:$F$145,4,FALSE),H151)) -> 3.914 | I152: =IF(A152>$C$3,"_",IFERROR(VLOOKUP(B152,BAZA_LIBOR_WIBOR_KURS!$C$2:$F$145,3,FALSE),I151)) -> 0.0173 | J152: 0.02 | K152: 0 | L152: 1023.94 | M152: -1023.94 | N152: =IF(A152>$C$3,"_",$C$2-SUM($M$11:M152)) -> 330441.4957
A153: 143 | B153: 2019-06-01 | C153: =IF(A153>$C$3,"_",IFERROR(VLOOKUP(B153,BAZA_LIBOR_WIBOR_KURS!$C$2:$F$145,2,FALSE),C152)) -> -0.00732 | D153: 0.02 | E153: 94.2551265 | F153: 364.0716693 | G153: =IF(A153>$C$3,"_",$C$8-SUM($F$11:F153)) -> 88836.3635 | H153: =IF(A153>$C$3,"_",IFERROR(VLOOKUP(B153,BAZA_LIBOR_WIBOR_KURS!$C$2:$F$145,4,FALSE),H152)) -> 3.914 | I153: =IF(A153>$C$3,"_",IFERROR(VLOOKUP(B153,BAZA_LIBOR_WIBOR_KURS!$C$2:$F$145,3,FALSE),I152)) -> 0.0173 | J153: 0.02 | K153: 0 | L153: 1027.12 | M153: -1027.12 | N153: =IF(A153>$C$3,"_",$C$2-SUM($M$11:M153)) -> 331468.6157
A154: 144 | B154: 2019-07-01 | C154: =IF(A154>$C$3,"_",IFERROR(VLOOKUP(B154,BAZA_LIBOR_WIBOR_KURS!$C$2:$F$145,2,FALSE),C153)) -> -0.00732 | D154: 0.02 | E154: 93.8704241 | F154: 364.4563717 | G154: =IF(A154>$C$3,"_",$C$8-SUM($F$11:F154)) -> 88471.90713 | H154: =IF(A154>$C$3,"_",IFERROR(VLOOKUP(B154,BAZA_LIBOR_WIBOR_KURS!$C$2:$F$145,4,FALSE),H153)) -> 3.914 | I154: =IF(A154>$C$3,"_",IFERROR(VLOOKUP(B154,BAZA_LIBOR_WIBOR_KURS!$C$2:$F$145,3,FALSE),I153)) -> 0.0173 | J154: 0.02 | K154: 0 | L154: 1030.31 | M154: -1030.31 | N154: =IF(A154>$C$3,"_",$C$2-SUM($M$11:M154)) -> 332498.9257
A155: 145 | B155: 2019-08-01 | C155: =IF(A155>$C$3,"_",IFERROR(VLOOKUP(B155,BAZA_LIBOR_WIBOR_KURS!$C$2:$F$145,2,FALSE),C154)) -> -0.00732 | D155: 0.02 | E155: 93.4853152 | F155: 364.8414806 | G155: =IF(A155>$C$3,"_",$C$8-SUM($F$11:F155)) -> 88107.06565 | H155: =IF(A155>$C$3,"_",IFERROR(VLOOKUP(B155,BAZA_LIBOR_WIBOR_KURS!$C$2:$F$145,4,FALSE),H154)) -> 3.914 | I155: =IF(A155>$C$3,"_",IFERROR(VLOOKUP(B155,BAZA_LIBOR_WIBOR_KURS!$C$2:$F$145,3,FALSE),I154)) -> 0.0173 | J155: 0.02 | K155: 0 | L155: 1033.52 | M155: -1033.52 | N155: =IF(A155>$C$3,"_",$C$2-SUM($M$11:M155)) -> 333532.4457
A156: 146 | B156: 2019-09-01 | C156: =IF(A156>$C$3,"_",IFERROR(VLOOKUP(B156,BAZA_LIBOR_WIBOR_KURS!$C$2:$F$145,2,FALSE),C155)) -> -0.00732 | D156: 0.02 | E156: 93.09979937 | F156: 365.2269965 | G156: =IF(A156>$C$3,"_",$C$8-SUM($F$11:F156)) -> 87741.83865 | H156: =IF(A156>$C$3,"_",IFERROR(VLOOKUP(B156,BAZA_LIBOR_WIBOR_KURS!$C$2:$F$145,4,FALSE),H155)) -> 3.914 | I156: =IF(A156>$C$3,"_",IFERROR(VLOOKUP(B156,BAZA_LIBOR_WIBOR_KURS!$C$2:$F$145,3,FALSE),I155)) -> 0.0173 | J156: 0.02 | K156: 0 | L156: 1036.73 | M156: -1036.73 | N156: =IF(A156>$C$3,"_",$C$2-SUM($M$11:M156)) -> 334569.1757
A157: 147 | B157: 2019-10-01 | C157: =IF(A157>$C$3,"_",IFERROR(VLOOKUP(B157,BAZA_LIBOR_WIBOR_KURS!$C$2:$F$145,2,FALSE),C156)) -> -0.00732 | D157: 0.02 | E157: 92.71387618 | F157: 365.6129197 | G157: =IF(A157>$C$3,"_",$C$8-SUM($F$11:F157)) -> 87376.22573 | H157: =IF(A157>$C$3,"_",IFERROR(VLOOKUP(B157,BAZA_LIBOR_WIBOR_KURS!$C$2:$F$145,4,FALSE),H156)) -> 3.914 | I157: =IF(A157>$C$3,"_",IFERROR(VLOOKUP(B157,BAZA_LIBOR_WIBOR_KURS!$C$2:$F$145,3,FALSE),I156)) -> 0.0173 | J157: 0.02 | K157: 0 | L157: 1039.95 | M157: -1039.95 | N157: =IF(A157>$C$3,"_",$C$2-SUM($M$11:M157)) -> 335609.1257
A158: 148 | B158: 2019-11-01 | C158: =IF(A158>$C$3,"_",IFERROR(VLOOKUP(B158,BAZA_LIBOR_WIBOR_KURS!$C$2:$F$145,2,FALSE),C157)) -> -0.00732 | D158: 0.02 | E158: 92.32754519 | F158: 365.9992507 | G158: =IF(A158>$C$3,"_",$C$8-SUM($F$11:F158)) -> 87010.22648 | H158: =IF(A158>$C$3,"_",IFERROR(VLOOKUP(B158,BAZA_LIBOR_WIBOR_KURS!$C$2:$F$145,4,FALSE),H157)) -> 3.914 | I158: =IF(A158>$C$3,"_",IFERROR(VLOOKUP(B158,BAZA_LIBOR_WIBOR_KURS!$C$2:$F$145,3,FALSE),I157)) -> 0.0173 | J158: 0.02 | K158: 0 | L158: 1043.19 | M158: -1043.19 | N158: =IF(A158>$C$3,"_",$C$2-SUM($M$11:M158)) -> 336652.3157
A159: 149 | B159: 2019-12-01 | C159: =IF(A159>$C$3,"_",IFERROR(VLOOKUP(B159,BAZA_LIBOR_WIBOR_KURS!$C$2:$F$145,2,FALSE),C158)) -> -0.00732 | D159: 0.02 | E159: 91.94080598 | F159: 366.3859899 | G159: =IF(A159>$C$3,"_",$C$8-SUM($F$11:F159)) -> 86643.84049 | H159: =IF(A159>$C$3,"_",IFERROR(VLOOKUP(B159,BAZA_LIBOR_WIBOR_KURS!$C$2:$F$145,4,FALSE),H158)) -> 3.914 | I159: =IF(A159>$C$3,"_",IFERROR(VLOOKUP(B159,BAZA_LIBOR_WIBOR_KURS!$C$2:$F$145,3,FALSE),I158)) -> 0.0173 | J159: 0.02 | K159: 0 | L159: 1046.43 | M159: -1046.43 | N159: =IF(A159>$C$3,"_",$C$2-SUM($M$11:M159)) -> 337698.7457
A160: 150 | B160: 2020-01-01 | C160: =IF(A160>$C$3,"_",IFERROR(VLOOKUP(B160,BAZA_LIBOR_WIBOR_KURS!$C$2:$F$145,2,FALSE),C159)) -> -0.00732 | D160: 0.02 | E160: 91.55365812 | F160: 366.7731377 | G160: =IF(A160>$C$3,"_",$C$8-SUM($F$11:F160)) -> 86277.06736 | H160: =IF(A160>$C$3,"_",IFERROR(VLOOKUP(B160,BAZA_LIBOR_WIBOR_KURS!$C$2:$F$145,4,FALSE),H159)) -> 3.914 | I160: =IF(A160>$C$3,"_",IFERROR(VLOOKUP(B160,BAZA_LIBOR_WIBOR_KURS!$C$2:$F$145,3,FALSE),I159)) -> 0.0173 | J160: 0.02 | K160: 0 | L160: 1049.68 | M160: -1049.68 | N160: =IF(A160>$C$3,"_",$C$2-SUM($M$11:M160)) -> 338748.4257
A161: 151 | B161: 2020-02-01 | C161: =IF(A161>$C$3,"_",IFERROR(VLOOKUP(B161,BAZA_LIBOR_WIBOR_KURS!$C$2:$F$145,2,FALSE),C160)) -> -0.00732 | D161: 0.02 | E161: 91.16610117 | F161: 367.1606947 | G161: =IF(A161>$C$3,"_",$C$8-SUM($F$11:F161)) -> 85909.90666 | H161: =IF(A161>$C$3,"_",IFERROR(VLOOKUP(B161,BAZA_LIBOR_WIBOR_KURS!$C$2:$F$145,4,FALSE),H160)) -> 3.914 | I161: =IF(A161>$C$3,"_",IFERROR(VLOOKUP(B161,BAZA_LIBOR_WIBOR_KURS!$C$2:$F$145,3,FALSE),I160)) -> 0.0173 | J161: 0.02 | K161: 0 | L161: 1052.94 | M161: -1052.94 | N161: =IF(A161>$C$3,"_",$C$2-SUM($M$11:M161)) -> 339801.3657
A162: 152 | B162: 2020-03-01 | C162: =IF(A162>$C$3,"_",IFERROR(VLOOKUP(B162,BAZA_LIBOR_WIBOR_KURS!$C$2:$F$145,2,FALSE),C161)) -> -0.00732 | D162: 0.02 | E162: 90.7781347 | F162: 367.5486611 | G162: =IF(A162>$C$3,"_",$C$8-SUM($F$11:F162)) -> 85542.358 | H162: =IF(A162>$C$3,"_",IFERROR(VLOOKUP(B162,BAZA_LIBOR_WIBOR_KURS!$C$2:$F$145,4,FALSE),H161)) -> 3.914 | I162: =IF(A162>$C$3,"_",IFERROR(VLOOKUP(B162,BAZA_LIBOR_WIBOR_KURS!$C$2:$F$145,3,FALSE),I161)) -> 0.0173 | J162: 0.02 | K162: 0 | L162: 1056.22 | M162: -1056.22 | N162: =IF(A162>$C$3,"_",$C$2-SUM($M$11:M162)) -> 340857.5857
A163: 153 | B163: 2020-04-01 | C163: =IF(A163>$C$3,"_",IFERROR(VLOOKUP(B163,BAZA_LIBOR_WIBOR_KURS!$C$2:$F$145,2,FALSE),C162)) -> -0.00732 | D163: 0.02 | E163: 90.38975829 | F163: 367.9370376 | G163: =IF(A163>$C$3,"_",$C$8-SUM($F$11:F163)) -> 85174.42096 | H163: =IF(A163>$C$3,"_",IFERROR(VLOOKUP(B163,BAZA_LIBOR_WIBOR_KURS!$C$2:$F$145,4,FALSE),H162)) -> 3.914 | I163: =IF(A163>$C$3,"_",IFERROR(VLOOKUP(B163,BAZA_LIBOR_WIBOR_KURS!$C$2:$F$145,3,FALSE),I162)) -> 0.0173 | J163: 0.02 | K163: 0 | L163: 1059.5 | M163: -1059.5 | N163: =IF(A163>$C$3,"_",$C$2-SUM($M$11:M163)) -> 341917.0857
A164: 154 | B164: 2020-05-01 | C164: =IF(A164>$C$3,"_",IFERROR(VLOOKUP(B164,BAZA_LIBOR_WIBOR_KURS!$C$2:$F$145,2,FALSE),C163)) -> -0.00732 | D164: 0.02 | E164: 90.00097148 | F164: 368.3258244 | G164: =IF(A164>$C$3,"_",$C$8-SUM($F$11:F164)) -> 84806.09514 | H164: =IF(A164>$C$3,"_",IFERROR(VLOOKUP(B164,BAZA_LIBOR_WIBOR_KURS!$C$2:$F$145,4,FALSE),H163)) -> 3.914 | I164: =IF(A164>$C$3,"_",IFERROR(VLOOKUP(B164,BAZA_LIBOR_WIBOR_KURS!$C$2:$F$145,3,FALSE),I163)) -> 0.0173 | J164: 0.02 | K164: 0 | L164: 1062.79 | M164: -1062.79 | N164: =IF(A164>$C$3,"_",$C$2-SUM($M$11:M164)) -> 342979.8757
A165: 155 | B165: 2020-06-01 | C165: =IF(A165>$C$3,"_",IFERROR(VLOOKUP(B165,BAZA_LIBOR_WIBOR_KURS!$C$2:$F$145,2,FALSE),C164)) -> -0.00732 | D165: 0.02 | E165: 89.61177386 | F165: 368.715022 | G165: =IF(A165>$C$3,"_",$C$8-SUM($F$11:F165)) -> 84437.38012 | H165: =IF(A165>$C$3,"_",IFERROR(VLOOKUP(B165,BAZA_LIBOR_WIBOR_KURS!$C$2:$F$145,4,FALSE),H164)) -> 3.914 | I165: =IF(A165>$C$3,"_",IFERROR(VLOOKUP(B165,BAZA_LIBOR_WIBOR_KURS!$C$2:$F$145,3,FALSE),I164)) -> 0.0173 | J165: 0.02 | K165: 0 | L165: 1066.1 | M165: -1066.1 | N165: =IF(A165>$C$3,"_",$C$2-SUM($M$11:M165)) -> 344045.9757
A166: 156 | B166: 2020-07-01 | C166: =IF(A166>$C$3,"_",IFERROR(VLOOKUP(B166,BAZA_LIBOR_WIBOR_KURS!$C$2:$F$145,2,FALSE),C165)) -> -0.00732 | D166: 0.02 | E166: 89.22216499 | F166: 369.1046309 | G166: =IF(A166>$C$3,"_",$C$8-SUM($F$11:F166)) -> 84068.27548 | H166: =IF(A166>$C$3,"_",IFERROR(VLOOKUP(B166,BAZA_LIBOR_WIBOR_KURS!$C$2:$F$145,4,FALSE),H165)) -> 3.914 | I166: =IF(A166>$C$3,"_",IFERROR(VLOOKUP(B166,BAZA_LIBOR_WIBOR_KURS!$C$2:$F$145,3,FALSE),I165)) -> 0.0173 | J166: 0.02 | K166: 0 | L166: 1069.41 | M166: -1069.41 | N166: =IF(A166>$C$3,"_",$C$2-SUM($M$11:M166)) -> 345115.3857
A167: 157 | B167: 2020-08-01 | C167: =IF(A167>$C$3,"_",IFERROR(VLOOKUP(B167,BAZA_LIBOR_WIBOR_KURS!$C$2:$F$145,2,FALSE),C166)) -> -0.00732 | D167: 0.02 | E167: 88.83214443 | F167: 369.4946514 | G167: =IF(A167>$C$3,"_",$C$8-SUM($F$11:F167)) -> 83698.78083 | H167: =IF(A167>$C$3,"_",IFERROR(VLOOKUP(B167,BAZA_LIBOR_WIBOR_KURS!$C$2:$F$145,4,FALSE),H166)) -> 3.914 | I167: =IF(A167>$C$3,"_",IFERROR(VLOOKUP(B167,BAZA_LIBOR_WIBOR_KURS!$C$2:$F$145,3,FALSE),I166)) -> 0.0173 | J167: 0.02 | K167: 0 | L167: 1072.73 | M167: -1072.73 | N167: =IF(A167>$C$3,"_",$C$2-SUM($M$11:M167)) -> 346188.1157
A168: 158 | B168: 2020-09-01 | C168: =IF(A168>$C$3,"_",IFERROR(VLOOKUP(B168,BAZA_LIBOR_WIBOR_KURS!$C$2:$F$145,2,FALSE),C167)) -> -0.00732 | D168: 0.02 | E168: 88.44171175 | F168: 369.8850841 | G168: =IF(A168>$C$3,"_",$C$8-SUM($F$11:F168)) -> 83328.89575 | H168: =IF(A168>$C$3,"_",IFERROR(VLOOKUP(B168,BAZA_LIBOR_WIBOR_KURS!$C$2:$F$145,4,FALSE),H167)) -> 3.914 | I168: =IF(A168>$C$3,"_",IFERROR(VLOOKUP(B168,BAZA_LIBOR_WIBOR_KURS!$C$2:$F$145,3,FALSE),I167)) -> 0.0173 | J168: 0.02 | K168: 0 | L168: 1076.07 | M168: -1076.07 | N168: =IF(A168>$C$3,"_",$C$2-SUM($M$11:M168)) -> 347264.1857
A169: 159 | B169: 2020-10-01 | C169: =IF(A169>$C$3,"_",IFERROR(VLOOKUP(B169,BAZA_LIBOR_WIBOR_KURS!$C$2:$F$145,2,FALSE),C168)) -> -0.00732 | D169: 0.02 | E169: 88.05086651 | F169: 370.2759293 | G169: =IF(A169>$C$3,"_",$C$8-SUM($F$11:F169)) -> 82958.61982 | H169: =IF(A169>$C$3,"_",IFERROR(VLOOKUP(B169,BAZA_LIBOR_WIBOR_KURS!$C$2:$F$145,4,FALSE),H168)) -> 3.914 | I169: =IF(A169>$C$3,"_",IFERROR(VLOOKUP(B169,BAZA_LIBOR_WIBOR_KURS!$C$2:$F$145,3,FALSE),I168)) -> 0.0173 | J169: 0.02 | K169: 0 | L169: 1079.41 | M169: -1079.41 | N169: =IF(A169>$C$3,"_",$C$2-SUM($M$11:M169)) -> 348343.5957
A170: 160 | B170: 2020-11-01 | C170: =IF(A170>$C$3,"_",IFERROR(VLOOKUP(B170,BAZA_LIBOR_WIBOR_KURS!$C$2:$F$145,2,FALSE),C169)) -> -0.00732 | D170: 0.02 | E170: 87.65960828 | F170: 370.6671876 | G170: =IF(A170>$C$3,"_",$C$8-SUM($F$11:F170)) -> 82587.95263 | H170: =IF(A170>$C$3,"_",IFERROR(VLOOKUP(B170,BAZA_LIBOR_WIBOR_KURS!$C$2:$F$145,4,FALSE),H169)) -> 3.914 | I170: =IF(A170>$C$3,"_",IFERROR(VLOOKUP(B170,BAZA_LIBOR_WIBOR_KURS!$C$2:$F$145,3,FALSE),I169)) -> 0.0173 | J170: 0.02 | K170: 0 | L170: 1082.77 | M170: -1082.77 | N170: =IF(A170>$C$3,"_",$C$2-SUM($M$11:M170)) -> 349426.3657
A171: 161 | B171: 2020-12-01 | C171: =IF(A171>$C$3,"_",IFERROR(VLOOKUP(B171,BAZA_LIBOR_WIBOR_KURS!$C$2:$F$145,2,FALSE),C170)) -> -0.00732 | D171: 0.02 | E171: 87.26793661 | F171: 371.0588592 | G171: =IF(A171>$C$3,"_",$C$8-SUM($F$11:F171)) -> 82216.89377 | H171: =IF(A171>$C$3,"_",IFERROR(VLOOKUP(B171,BAZA_LIBOR_WIBOR_KURS!$C$2:$F$145,4,FALSE),H170)) -> 3.914 | I171: =IF(A171>$C$3,"_",IFERROR(VLOOKUP(B171,BAZA_LIBOR_WIBOR_KURS!$C$2:$F$145,3,FALSE),I170)) -> 0.0173 | J171: 0.02 | K171: 0 | L171: 1086.13 | M171: -1086.13 | N171: =IF(A171>$C$3,"_",$C$2-SUM($M$11:M171)) -> 350512.4957
A172: 162 | B172: 2021-01-01 | C172: =IF(A172>$C$3,"_",IFERROR(VLOOKUP(B172,BAZA_LIBOR_WIBOR_KURS!$C$2:$F$145,2,FALSE),C171)) -> -0.00732 | D172: 0.02 | E172: 86.87585109 | F172: 371.4509448 | G172: =IF(A172>$C$3,"_",$C$8-SUM($F$11:F172)) -> 81845.44283 | H172: =IF(A172>$C$3,"_",IFERROR(VLOOKUP(B172,BAZA_LIBOR_WIBOR_KURS!$C$2:$F$145,4,FALSE),H171)) -> 3.914 | I172: =IF(A172>$C$3,"_",IFERROR(VLOOKUP(B172,BAZA_LIBOR_WIBOR_KURS!$C$2:$F$145,3,FALSE),I171)) -> 0.0173 | J172: 0.02 | K172: 0 | L172: 1089.51 | M172: -1089.51 | N172: =IF(A172>$C$3,"_",$C$2-SUM($M$11:M172)) -> 351602.0057
A173: 163 | B173: 2021-02-01 | C173: =IF(A173>$C$3,"_",IFERROR(VLOOKUP(B173,BAZA_LIBOR_WIBOR_KURS!$C$2:$F$145,2,FALSE),C172)) -> -0.00732 | D173: 0.02 | E173: 86.48335126 | F173: 371.8434446 | G173: =IF(A173>$C$3,"_",$C$8-SUM($F$11:F173)) -> 81473.59938 | H173: =IF(A173>$C$3,"_",IFERROR(VLOOKUP(B173,BAZA_LIBOR_WIBOR_KURS!$C$2:$F$145,4,FALSE),H172)) -> 3.914 | I173: =IF(A173>$C$3,"_",IFERROR(VLOOKUP(B173,BAZA_LIBOR_WIBOR_KURS!$C$2:$F$145,3,FALSE),I172)) -> 0.0173 | J173: 0.02 | K173: 0 | L173: 1092.9 | M173: -1092.9 | N173: =IF(A173>$C$3,"_",$C$2-SUM($M$11:M173)) -> 352694.9057
A174: 164 | B174: 2021-03-01 | C174: =IF(A174>$C$3,"_",IFERROR(VLOOKUP(B174,BAZA_LIBOR_WIBOR_KURS!$C$2:$F$145,2,FALSE),C173)) -> -0.00732 | D174: 0.02 | E174: 86.09043668 | F174: 372.2363592 | G174: =IF(A174>$C$3,"_",$C$8-SUM($F$11:F174)) -> 81101.36302 | H174: =IF(A174>$C$3,"_",IFERROR(VLOOKUP(B174,BAZA_LIBOR_WIBOR_KURS!$C$2:$F$145,4,FALSE),H173)) -> 3.914 | I174: =IF(A174>$C$3,"_",IFERROR(VLOOKUP(B174,BAZA_LIBOR_WIBOR_KURS!$C$2:$F$145,3,FALSE),I173)) -> 0.0173 | J174: 0.02 | K174: 0 | L174: 1096.29 | M174: -1096.29 | N174: =IF(A174>$C$3,"_",$C$2-SUM($M$11:M174)) -> 353791.1957
A175: 165 | B175: 2021-04-01 | C175: =IF(A175>$C$3,"_",IFERROR(VLOOKUP(B175,BAZA_LIBOR_WIBOR_KURS!$C$2:$F$145,2,FALSE),C174)) -> -0.00732 | D175: 0.02 | E175: 85.69710693 | F175: 372.6296889 | G175: =IF(A175>$C$3,"_",$C$8-SUM($F$11:F175)) -> 80728.73334 | H175: =IF(A175>$C$3,"_",IFERROR(VLOOKUP(B175,BAZA_LIBOR_WIBOR_KURS!$C$2:$F$145,4,FALSE),H174)) -> 3.914 | I175: =IF(A175>$C$3,"_",IFERROR(VLOOKUP(B175,BAZA_LIBOR_WIBOR_KURS!$C$2:$F$145,3,FALSE),I174)) -> 0.0173 | J175: 0.02 | K175: 0 | L175: 1099.7 | M175: -1099.7 | N175: =IF(A175>$C$3,"_",$C$2-SUM($M$11:M175)) -> 354890.8957
A176: 166 | B176: 2021-05-01 | C176: =IF(A176>$C$3,"_",IFERROR(VLOOKUP(B176,BAZA_LIBOR_WIBOR_KURS!$C$2:$F$145,2,FALSE),C175)) -> -0.00732 | D176: 0.02 | E176: 85.30336156 | F176: 373.0234343 | G176: =IF(A176>$C$3,"_",$C$8-SUM($F$11:F176)) -> 80355.7099 | H176: =IF(A176>$C$3,"_",IFERROR(VLOOKUP(B176,BAZA_LIBOR_WIBOR_KURS!$C$2:$F$145,4,FALSE),H175)) -> 3.914 | I176: =IF(A176>$C$3,"_",IFERROR(VLOOKUP(B176,BAZA_LIBOR_WIBOR_KURS!$C$2:$F$145,3,FALSE),I175)) -> 0.0173 | J176: 0.02 | K176: 0 | L176: 1103.12 | M176: -1103.12 | N176: =IF(A176>$C$3,"_",$C$2-SUM($M$11:M176)) -> 355994.0157
A177: 167 | B177: 2021-06-01 | C177: =IF(A177>$C$3,"_",IFERROR(VLOOKUP(B177,BAZA_LIBOR_WIBOR_KURS!$C$2:$F$145,2,FALSE),C176)) -> -0.00732 | D177: 0.02 | E177: 84.90920013 | F177: 373.4175957 | G177: =IF(A177>$C$3,"_",$C$8-SUM($F$11:F177)) -> 79982.29231 | H177: =IF(A177>$C$3,"_",IFERROR(VLOOKUP(B177,BAZA_LIBOR_WIBOR_KURS!$C$2:$F$145,4,FALSE),H176)) -> 3.914 | I177: =IF(A177>$C$3,"_",IFERROR(VLOOKUP(B177,BAZA_LIBOR_WIBOR_KURS!$C$2:$F$145,3,FALSE),I176)) -> 0.0173 | J177: 0.02 | K177: 0 | L177: 1106.55 | M177: -1106.55 | N177: =IF(A177>$C$3,"_",$C$2-SUM($M$11:M177)) -> 357100.5657
A178: 168 | B178: 2021-07-01 | C178: =IF(A178>$C$3,"_",IFERROR(VLOOKUP(B178,BAZA_LIBOR_WIBOR_KURS!$C$2:$F$145,2,FALSE),C177)) -> -0.00732 | D178: 0.02 | E178: 84.5146222 | F178: 373.8121736 | G178: =IF(A178>$C$3,"_",$C$8-SUM($F$11:F178)) -> 79608.48013 | H178: =IF(A178>$C$3,"_",IFERROR(VLOOKUP(B178,BAZA_LIBOR_WIBOR_KURS!$C$2:$F$145,4,FALSE),H177)) -> 3.914 | I178: =IF(A178>$C$3,"_",IFERROR(VLOOKUP(B178,BAZA_LIBOR_WIBOR_KURS!$C$2:$F$145,3,FALSE),I177)) -> 0.0173 | J178: 0.02 | K178: 0 | L178: 1109.99 | M178: -1109.99 | N178: =IF(A178>$C$3,"_",$C$2-SUM($M$11:M178)) -> 358210.5557
A179: 169 | B179: 2021-08-01 | C179: =IF(A179>$C$3,"_",IFERROR(VLOOKUP(B179,BAZA_LIBOR_WIBOR_KURS!$C$2:$F$145,2,FALSE),C178)) -> -0.00732 | D179: 0.02 | E179: 84.11962734 | F179: 374.2071685 | G179: =IF(A179>$C$3,"_",$C$8-SUM($F$11:F179)) -> 79234.27296 | H179: =IF(A179>$C$3,"_",IFERROR(VLOOKUP(B179,BAZA_LIBOR_WIBOR_KURS!$C$2:$F$145,4,FALSE),H178)) -> 3.914 | I179: =IF(A179>$C$3,"_",IFERROR(VLOOKUP(B179,BAZA_LIBOR_WIBOR_KURS!$C$2:$F$145,3,FALSE),I178)) -> 0.0173 | J179: 0.02 | K179: 0 | L179: 1113.44 | M179: -1113.44 | N179: =IF(A179>$C$3,"_",$C$2-SUM($M$11:M179)) -> 359323.9957
A180: 170 | B180: 2021-09-01 | C180: =IF(A180>$C$3,"_",IFERROR(VLOOKUP(B180,BAZA_LIBOR_WIBOR_KURS!$C$2:$F$145,2,FALSE),C179)) -> -0.00732 | D180: 0.02 | E180: 83.7242151 | F180: 374.6025807 | G180: =IF(A180>$C$3,"_",$C$8-SUM($F$11:F180)) -> 78859.67038 | H180: =IF(A180>$C$3,"_",IFERROR(VLOOKUP(B180,BAZA_LIBOR_WIBOR_KURS!$C$2:$F$145,4,FALSE),H179)) -> 3.914 | I180: =IF(A180>$C$3,"_",IFERROR(VLOOKUP(B180,BAZA_LIBOR_WIBOR_KURS!$C$2:$F$145,3,FALSE),I179)) -> 0.0173 | J180: 0.02 | K180: 0 | L180: 1116.9 | M180: -1116.9 | N180: =IF(A180>$C$3,"_",$C$2-SUM($M$11:M180)) -> 360440.8957
A181: 171 | B181: 2021-10-01 | C181: =IF(A181>$C$3,"_",IFERROR(VLOOKUP(B181,BAZA_LIBOR_WIBOR_KURS!$C$2:$F$145,2,FALSE),C180)) -> -0.00732 | D181: 0.02 | E181: 83.32838504 | F181: 374.9984108 | G181: =IF(A181>$C$3,"_",$C$8-SUM($F$11:F181)) -> 78484.67197 | H181: =IF(A181>$C$3,"_",IFERROR(VLOOKUP(B181,BAZA_LIBOR_WIBOR_KURS!$C$2:$F$145,4,FALSE),H180)) -> 3.914 | I181: =IF(A181>$C$3,"_",IFERROR(VLOOKUP(B181,BAZA_LIBOR_WIBOR_KURS!$C$2:$F$145,3,FALSE),I180)) -> 0.0173 | J181: 0.02 | K181: 0 | L181: 1120.37 | M181: -1120.37 | N181: =IF(A181>$C$3,"_",$C$2-SUM($M$11:M181)) -> 361561.2657
A182: 172 | B182: 2021-11-01 | C182: =IF(A182>$C$3,"_",IFERROR(VLOOKUP(B182,BAZA_LIBOR_WIBOR_KURS!$C$2:$F$145,2,FALSE),C181)) -> -0.00732 | D182: 0.02 | E182: 82.93213672 | F182: 375.3946591 | G182: =IF(A182>$C$3,"_",$C$8-SUM($F$11:F182)) -> 78109.27731 | H182: =IF(A182>$C$3,"_",IFERROR(VLOOKUP(B182,BAZA_LIBOR_WIBOR_KURS!$C$2:$F$145,4,FALSE),H181)) -> 3.914 | I182: =IF(A182>$C$3,"_",IFERROR(VLOOKUP(B182,BAZA_LIBOR_WIBOR_KURS!$C$2:$F$145,3,FALSE),I181)) -> 0.0173 | J182: 0.02 | K182: 0 | L182: 1123.85 | M182: -1123.85 | N182: =IF(A182>$C$3,"_",$C$2-SUM($M$11:M182)) -> 362685.1157
A183: 173 | B183: 2021-12-01 | C183: =IF(A183>$C$3,"_",IFERROR(VLOOKUP(B183,BAZA_LIBOR_WIBOR_KURS!$C$2:$F$145,2,FALSE),C182)) -> -0.00732 | D183: 0.02 | E183: 82.53546969 | F183: 375.7913261 | G183: =IF(A183>$C$3,"_",$C$8-SUM($F$11:F183)) -> 77733.48599 | H183: =IF(A183>$C$3,"_",IFERROR(VLOOKUP(B183,BAZA_LIBOR_WIBOR_KURS!$C$2:$F$145,4,FALSE),H182)) -> 3.914 | I183: =IF(A183>$C$3,"_",IFERROR(VLOOKUP(B183,BAZA_LIBOR_WIBOR_KURS!$C$2:$F$145,3,FALSE),I182)) -> 0.0173 | J183: 0.02 | K183: 0 | L183: 1127.35 | M183: -1127.35 | N183: =IF(A183>$C$3,"_",$C$2-SUM($M$11:M183)) -> 363812.4657
A184: 174 | B184: 2022-01-01 | C184: =IF(A184>$C$3,"_",IFERROR(VLOOKUP(B184,BAZA_LIBOR_WIBOR_KURS!$C$2:$F$145,2,FALSE),C183)) -> -0.00732 | D184: 0.02 | E184: 82.13838353 | F184: 376.1884123 | G184: =IF(A184>$C$3,"_",$C$8-SUM($F$11:F184)) -> 77357.29757 | H184: =IF(A184>$C$3,"_",IFERROR(VLOOKUP(B184,BAZA_LIBOR_WIBOR_KURS!$C$2:$F$145,4,FALSE),H183)) -> 3.914 | I184: =IF(A184>$C$3,"_",IFERROR(VLOOKUP(B184,BAZA_LIBOR_WIBOR_KURS!$C$2:$F$145,3,FALSE),I183)) -> 0.0173 | J184: 0.02 | K184: 0 | L184: 1130.85 | M184: -1130.85 | N184: =IF(A184>$C$3,"_",$C$2-SUM($M$11:M184)) -> 364943.3157
A185: 175 | B185: 2022-02-01 | C185: =IF(A185>$C$3,"_",IFERROR(VLOOKUP(B185,BAZA_LIBOR_WIBOR_KURS!$C$2:$F$145,2,FALSE),C184)) -> -0.00732 | D185: 0.02 | E185: 81.74087777 | F185: 376.5859181 | G185: =IF(A185>$C$3,"_",$C$8-SUM($F$11:F185)) -> 76980.71166 | H185: =IF(A185>$C$3,"_",IFERROR(VLOOKUP(B185,BAZA_LIBOR_WIBOR_KURS!$C$2:$F$145,4,FALSE),H184)) -> 3.914 | I185: =IF(A185>$C$3,"_",IFERROR(VLOOKUP(B185,BAZA_LIBOR_WIBOR_KURS!$C$2:$F$145,3,FALSE),I184)) -> 0.0173 | J185: 0.02 | K185: 0 | L185: 1134.37 | M185: -1134.37 | N185: =IF(A185>$C$3,"_",$C$2-SUM($M$11:M185)) -> 366077.6857
A186: 176 | B186: 2022-03-01 | C186: =IF(A186>$C$3,"_",IFERROR(VLOOKUP(B186,BAZA_LIBOR_WIBOR_KURS!$C$2:$F$145,2,FALSE),C185)) -> -0.00732 | D186: 0.02 | E186: 81.34295198 | F186: 376.9838439 | G186: =IF(A186>$C$3,"_",$C$8-SUM($F$11:F186)) -> 76603.72781 | H186: =IF(A186>$C$3,"_",IFERROR(VLOOKUP(B186,BAZA_LIBOR_WIBOR_KURS!$C$2:$F$145,4,FALSE),H185)) -> 3.914 | I186: =IF(A186>$C$3,"_",IFERROR(VLOOKUP(B186,BAZA_LIBOR_WIBOR_KURS!$C$2:$F$145,3,FALSE),I185)) -> 0.0173 | J186: 0.02 | K186: 0 | L186: 1137.89 | M186: -1137.89 | N186: =IF(A186>$C$3,"_",$C$2-SUM($M$11:M186)) -> 367215.5757
A187: 177 | B187: 2022-04-01 | C187: =IF(A187>$C$3,"_",IFERROR(VLOOKUP(B187,BAZA_LIBOR_WIBOR_KURS!$C$2:$F$145,2,FALSE),C186)) -> -0.00732 | D187: 0.02 | E187: 80.94460572 | F187: 377.3821901 | G187: =IF(A187>$C$3,"_",$C$8-SUM($F$11:F187)) -> 76226.34562 | H187: =IF(A187>$C$3,"_",IFERROR(VLOOKUP(B187,BAZA_LIBOR_WIBOR_KURS!$C$2:$F$145,4,FALSE),H186)) -> 3.914 | I187: =IF(A187>$C$3,"_",IFERROR(VLOOKUP(B187,BAZA_LIBOR_WIBOR_KURS!$C$2:$F$145,3,FALSE),I186)) -> 0.0173 | J187: 0.02 | K187: 0 | L187: 1141.43 | M187: -1141.43 | N187: =IF(A187>$C$3,"_",$C$2-SUM($M$11:M187)) -> 368357.0057
A188: 178 | B188: 2022-05-01 | C188: =IF(A188>$C$3,"_",IFERROR(VLOOKUP(B188,BAZA_LIBOR_WIBOR_KURS!$C$2:$F$145,2,FALSE),C187)) -> -0.00732 | D188: 0.02 | E188: 80.54583854 | F188: 377.7809573 | G188: =IF(A188>$C$3,"_",$C$8-SUM($F$11:F188)) -> 75848.56467 | H188: =IF(A188>$C$3,"_",IFERROR(VLOOKUP(B188,BAZA_LIBOR_WIBOR_KURS!$C$2:$F$145,4,FALSE),H187)) -> 3.914 | I188: =IF(A188>$C$3,"_",IFERROR(VLOOKUP(B188,BAZA_LIBOR_WIBOR_KURS!$C$2:$F$145,3,FALSE),I187)) -> 0.0173 | J188: 0.02 | K188: 0 | L188: 1144.98 | M188: -1144.98 | N188: =IF(A188>$C$3,"_",$C$2-SUM($M$11:M188)) -> 369501.9857
A189: 179 | B189: 2022-06-01 | C189: =IF(A189>$C$3,"_",IFERROR(VLOOKUP(B189,BAZA_LIBOR_WIBOR_KURS!$C$2:$F$145,2,FALSE),C188)) -> -0.00732 | D189: 0.02 | E189: 80.14665 | F189: 378.1801458 | G189: =IF(A189>$C$3,"_",$C$8-SUM($F$11:F189)) -> 75470.38452 | H189: =IF(A189>$C$3,"_",IFERROR(VLOOKUP(B189,BAZA_LIBOR_WIBOR_KURS!$C$2:$F$145,4,FALSE),H188)) -> 3.914 | I189: =IF(A189>$C$3,"_",IFERROR(VLOOKUP(B189,BAZA_LIBOR_WIBOR_KURS!$C$2:$F$145,3,FALSE),I188)) -> 0.0173 | J189: 0.02 | K189: 0 | L189: 1148.54 | M189: -1148.54 | N189: =IF(A189>$C$3,"_",$C$2-SUM($M$11:M189)) -> 370650.5257
A190: 180 | B190: 2022-07-01 | C190: =IF(A190>$C$3,"_",IFERROR(VLOOKUP(B190,BAZA_LIBOR_WIBOR_KURS!$C$2:$F$145,2,FALSE),C189)) -> -0.00732 | D190: 0.02 | E190: 79.74703964 | F190: 378.5797562 | G190: =IF(A190>$C$3,"_",$C$8-SUM($F$11:F190)) -> 75091.80476 | H190: =IF(A190>$C$3,"_",IFERROR(VLOOKUP(B190,BAZA_LIBOR_WIBOR_KURS!$C$2:$F$145,4,FALSE),H189)) -> 3.914 | I190: =IF(A190>$C$3,"_",IFERROR(VLOOKUP(B190,BAZA_LIBOR_WIBOR_KURS!$C$2:$F$145,3,FALSE),I189)) -> 0.0173 | J190: 0.02 | K190: 0 | L190: 1152.11 | M190: -1152.11 | N190: =IF(A190>$C$3,"_",$C$2-SUM($M$11:M190)) -> 371802.6357
A191: 181 | B191: 2022-08-01 | C191: =IF(A191>$C$3,"_",IFERROR(VLOOKUP(B191,BAZA_LIBOR_WIBOR_KURS!$C$2:$F$145,2,FALSE),C190)) -> -0.00732 | D191: 0.02 | E191: 79.34700703 | F191: 378.9797888 | G191: =IF(A191>$C$3,"_",$C$8-SUM($F$11:F191)) -> 74712.82497 | H191: =IF(A191>$C$3,"_",IFERROR(VLOOKUP(B191,BAZA_LIBOR_WIBOR_KURS!$C$2:$F$145,4,FALSE),H190)) -> 3.914 | I191: =IF(A191>$C$3,"_",IFERROR(VLOOKUP(B191,BAZA_LIBOR_WIBOR_KURS!$C$2:$F$145,3,FALSE),I190)) -> 0.0173 | J191: 0.02 | K191: 0 | L191: 1155.69 | M191: -1155.69 | N191: =IF(A191>$C$3,"_",$C$2-SUM($M$11:M191)) -> 372958.3257
A192: 182 | B192: 2022-09-01 | C192: =IF(A192>$C$3,"_",IFERROR(VLOOKUP(B192,BAZA_LIBOR_WIBOR_KURS!$C$2:$F$145,2,FALSE),C191)) -> -0.00732 | D192: 0.02 | E192: 78.94655172 | F192: 379.3802441 | G192: =IF(A192>$C$3,"_",$C$8-SUM($F$11:F192)) -> 74333.44473 | H192: =IF(A192>$C$3,"_",IFERROR(VLOOKUP(B192,BAZA_LIBOR_WIBOR_KURS!$C$2:$F$145,4,FALSE),H191)) -> 3.914 | I192: =IF(A192>$C$3,"_",IFERROR(VLOOKUP(B192,BAZA_LIBOR_WIBOR_KURS!$C$2:$F$145,3,FALSE),I191)) -> 0.0173 | J192: 0.02 | K192: 0 | L192: 1159.28 | M192: -1159.28 | N192: =IF(A192>$C$3,"_",$C$2-SUM($M$11:M192)) -> 374117.6057
A193: 183 | B193: 2022-10-01 | C193: =IF(A193>$C$3,"_",IFERROR(VLOOKUP(B193,BAZA_LIBOR_WIBOR_KURS!$C$2:$F$145,2,FALSE),C192)) -> -0.00732 | D193: 0.02 | E193: 78.54567326 | F193: 379.7811226 | G193: =IF(A193>$C$3,"_",$C$8-SUM($F$11:F193)) -> 73953.66361 | H193: =IF(A193>$C$3,"_",IFERROR(VLOOKUP(B193,BAZA_LIBOR_WIBOR_KURS!$C$2:$F$145,4,FALSE),H192)) -> 3.914 | I193: =IF(A193>$C$3,"_",IFERROR(VLOOKUP(B193,BAZA_LIBOR_WIBOR_KURS!$C$2:$F$145,3,FALSE),I192)) -> 0.0173 | J193: 0.02 | K193: 0 | L193: 1162.88 | M193: -1162.88 | N193: =IF(A193>$C$3,"_",$C$2-SUM($M$11:M193)) -> 375280.4857
A194: 184 | B194: 2022-11-01 | C194: =IF(A194>$C$3,"_",IFERROR(VLOOKUP(B194,BAZA_LIBOR_WIBOR_KURS!$C$2:$F$145,2,FALSE),C193)) -> -0.00732 | D194: 0.02 | E194: 78.14437121 | F194: 380.1824246 | G194: =IF(A194>$C$3,"_",$C$8-SUM($F$11:F194)) -> 73573.48118 | H194: =IF(A194>$C$3,"_",IFERROR(VLOOKUP(B194,BAZA_LIBOR_WIBOR_KURS!$C$2:$F$145,4,FALSE),H193)) -> 3.914 | I194: =IF(A194>$C$3,"_",IFERROR(VLOOKUP(B194,BAZA_LIBOR_WIBOR_KURS!$C$2:$F$145,3,FALSE),I193)) -> 0.0173 | J194: 0.02 | K194: 0 | L194: 1166.5 | M194: -1166.5 | N194: =IF(A194>$C$3,"_",$C$2-SUM($M$11:M194)) -> 376446.9857
A195: 185 | B195: 2022-12-01 | C195: =IF(A195>$C$3,"_",IFERROR(VLOOKUP(B195,BAZA_LIBOR_WIBOR_KURS!$C$2:$F$145,2,FALSE),C194)) -> -0.00732 | D195: 0.02 | E195: 77.74264512 | F195: 380.5841507 | G195: =IF(A195>$C$3,"_",$C$8-SUM($F$11:F195)) -> 73192.89703 | H195: =IF(A195>$C$3,"_",IFERROR(VLOOKUP(B195,BAZA_LIBOR_WIBOR_KURS!$C$2:$F$145,4,FALSE),H194)) -> 3.914 | I195: =IF(A195>$C$3,"_",IFERROR(VLOOKUP(B195,BAZA_LIBOR_WIBOR_KURS!$C$2:$F$145,3,FALSE),I194)) -> 0.0173 | J195: 0.02 | K195: 0 | L195: 1170.12 | M195: -1170.12 | N195: =IF(A195>$C$3,"_",$C$2-SUM($M$11:M195)) -> 377617.1057
A196: 186 | B196: 2023-01-01 | C196: =IF(A196>$C$3,"_",IFERROR(VLOOKUP(B196,BAZA_LIBOR_WIBOR_KURS!$C$2:$F$145,2,FALSE),C195)) -> -0.00732 | D196: 0.02 | E196: 77.34049453 | F196: 380.9863013 | G196: =IF(A196>$C$3,"_",$C$8-SUM($F$11:F196)) -> 72811.91073 | H196: =IF(A196>$C$3,"_",IFERROR(VLOOKUP(B196,BAZA_LIBOR_WIBOR_KURS!$C$2:$F$145,4,FALSE),H195)) -> 3.914 | I196: =IF(A196>$C$3,"_",IFERROR(VLOOKUP(B196,BAZA_LIBOR_WIBOR_KURS!$C$2:$F$145,3,FALSE),I195)) -> 0.0173 | J196: 0.02 | K196: 0 | L196: 1173.76 | M196: -1173.76 | N196: =IF(A196>$C$3,"_",$C$2-SUM($M$11:M196)) -> 378790.8657
A197: 187 | B197: 2023-02-01 | C197: =IF(A197>$C$3,"_",IFERROR(VLOOKUP(B197,BAZA_LIBOR_WIBOR_KURS!$C$2:$F$145,2,FALSE),C196)) -> -0.00732 | D197: 0.02 | E197: 76.93791901 | F197: 381.3888768 | G197: =IF(A197>$C$3,"_",$C$8-SUM($F$11:F197)) -> 72430.52185 | H197: =IF(A197>$C$3,"_",IFERROR(VLOOKUP(B197,BAZA_LIBOR_WIBOR_KURS!$C$2:$F$145,4,FALSE),H196)) -> 3.914 | I197: =IF(A197>$C$3,"_",IFERROR(VLOOKUP(B197,BAZA_LIBOR_WIBOR_KURS!$C$2:$F$145,3,FALSE),I196)) -> 0.0173 | J197: 0.02 | K197: 0 | L197: 1177.41 | M197: -1177.41 | N197: =IF(A197>$C$3,"_",$C$2-SUM($M$11:M197)) -> 379968.2757
A198: 188 | B198: 2023-03-01 | C198: =IF(A198>$C$3,"_",IFERROR(VLOOKUP(B198,BAZA_LIBOR_WIBOR_KURS!$C$2:$F$145,2,FALSE),C197)) -> -0.00732 | D198: 0.02 | E198: 76.53491809 | F198: 381.7918778 | G198: =IF(A198>$C$3,"_",$C$8-SUM($F$11:F198)) -> 72048.72998 | H198: =IF(A198>$C$3,"_",IFERROR(VLOOKUP(B198,BAZA_LIBOR_WIBOR_KURS!$C$2:$F$145,4,FALSE),H197)) -> 3.914 | I198: =IF(A198>$C$3,"_",IFERROR(VLOOKUP(B198,BAZA_LIBOR_WIBOR_KURS!$C$2:$F$145,3,FALSE),I197)) -> 0.0173 | J198: 0.02 | K198: 0 | L198: 1181.07 | M198: -1181.07 | N198: =IF(A198>$C$3,"_",$C$2-SUM($M$11:M198)) -> 381149.3457
A199: 189 | B199: 2023-04-01 | C199: =IF(A199>$C$3,"_",IFERROR(VLOOKUP(B199,BAZA_LIBOR_WIBOR_KURS!$C$2:$F$145,2,FALSE),C198)) -> -0.00732 | D199: 0.02 | E199: 76.13149134 | F199: 382.1953045 | G199: =IF(A199>$C$3,"_",$C$8-SUM($F$11:F199)) -> 71666.53467 | H199: =IF(A199>$C$3,"_",IFERROR(VLOOKUP(B199,BAZA_LIBOR_WIBOR_KURS!$C$2:$F$145,4,FALSE),H198)) -> 3.914 | I199: =IF(A199>$C$3,"_",IFERROR(VLOOKUP(B199,BAZA_LIBOR_WIBOR_KURS!$C$2:$F$145,3,FALSE),I198)) -> 0.0173 | J199: 0.02 | K199: 0 | L199: 1184.74 | M199: -1184.74 | N199: =IF(A199>$C$3,"_",$C$2-SUM($M$11:M199)) -> 382334.0857
A200: 190 | B200: 2023-05-01 | C200: =IF(A200>$C$3,"_",IFERROR(VLOOKUP(B200,BAZA_LIBOR_WIBOR_KURS!$C$2:$F$145,2,FALSE),C199)) -> -0.00732 | D200: 0.02 | E200: 75.7276383 | F200: 382.5991575 | G200: =IF(A200>$C$3,"_",$C$8-SUM($F$11:F200)) -> 71283.93551 | H200: =IF(A200>$C$3,"_",IFERROR(VLOOKUP(B200,BAZA_LIBOR_WIBOR_KURS!$C$2:$F$145,4,FALSE),H199)) -> 3.914 | I200: =IF(A200>$C$3,"_",IFERROR(VLOOKUP(B200,BAZA_LIBOR_WIBOR_KURS!$C$2:$F$145,3,FALSE),I199)) -> 0.0173 | J200: 0.02 | K200: 0 | L200: 1188.42 | M200: -1188.42 | N200: =IF(A200>$C$3,"_",$C$2-SUM($M$11:M200)) -> 383522.5057
A201: 191 | B201: 2023-06-01 | C201: =IF(A201>$C$3,"_",IFERROR(VLOOKUP(B201,BAZA_LIBOR_WIBOR_KURS!$C$2:$F$145,2,FALSE),C200)) -> -0.00732 | D201: 0.02 | E201: 75.32335853 | F201: 383.0034373 | G201: =IF(A201>$C$3,"_",$C$8-SUM($F$11:F201)) -> 70900.93208 | H201: =IF(A201>$C$3,"_",IFERROR(VLOOKUP(B201,BAZA_LIBOR_WIBOR_KURS!$C$2:$F$145,4,FALSE),H200)) -> 3.914 | I201: =IF(A201>$C$3,"_",IFERROR(VLOOKUP(B201,BAZA_LIBOR_WIBOR_KURS!$C$2:$F$145,3,FALSE),I200)) -> 0.0173 | J201: 0.02 | K201: 0 | L201: 1192.12 | M201: -1192.12 | N201: =IF(A201>$C$3,"_",$C$2-SUM($M$11:M201)) -> 384714.6257
... 289 more rows

Sheet BAZA_LIBOR_WIBOR_KURS
A1: Rok | B1: miesiąc | C1: Data | D1: LIBOR_3M_CHF | E1: WIBOR_3M | F1: Kurs PLN/CHF
A2: 2005 | B2: 1 | C2: =DATE(A2,B2,1) -> 2005-01-01 | D2: 0.00739 | E2: 0.06631428571 | F2: 2.638757143 | H2: 2005 | I2: styczeń | J2: 1
A3: 2005 | B3: 2 | C3: 2005-02-01 | D3: 0.00752 | E3: 0.06541 | F3: 2.57103 | H3: 2006 | I3: luty | J3: 2
A4: 2005 | B4: 3 | C4: 2005-03-01 | D4: 0.00754 | E4: 0.06154545455 | F4: 2.593322727 | H4: 2007 | I4: marzec | J4: 3
A5: 2005 | B5: 4 | C5: 2005-04-01 | D5: 0.00765 | E5: 0.057765 | F5: 2.686135 | H5: 2008 | I5: kwiecień | J5: 4
A6: 2005 | B6: 5 | C6: 2005-05-01 | D6: 0.00755 | E6: 0.054815 | F6: 2.705275 | H6: 2009 | I6: maj | J6: 5
A7: 2005 | B7: 6 | C7: 2005-06-01 | D7: 0.00749 | E7: 0.05218181818 | F7: 2.639331818 | H7: 2010 | I7: czerwiec | J7: 6
A8: 2005 | B8: 7 | C8: 2005-07-01 | D8: 0.00749 | E8: 0.04680952381 | F8: 2.630995238 | H8: 2011 | I8: lipiec | J8: 7
A9: 2005 | B9: 8 | C9: 2005-08-01 | D9: 0.00759 | E9: 0.04674090909 | F9: 2.604363636 | H9: 2012 | I9: sierpień | J9: 8
A10: 2005 | B10: 9 | C10: 2005-09-01 | D10: 0.00762 | E10: 0.04513181818 | F10: 2.531318182 | H10: 2013 | I10: wrzesień | J10: 9
A11: 2005 | B11: 10 | C11: 2005-10-01 | D11: 0.00812 | E11: 0.04545238095 | F11: 2.5312 | H11: 2014 | I11: październik | J11: 10
A12: 2005 | B12: 11 | C12: 2005-11-01 | D12: 0.00953 | E12: 0.046385 | F12: 2.56726 | H12: 2015 | I12: listopad | J12: 11
A13: 2005 | B13: 12 | C13: 2005-12-01 | D13: 0.01023 | E13: 0.04616666667 | F13: 2.489185714 | H13: 2016 | I13: grudzień | J13: 12
A14: 2006 | B14: 1 | C14: 2006-01-01 | D14: 0.01008 | E14: 0.04486363636 | F14: 2.466881818
A15: 2006 | B15: 2 | C15: 2006-02-01 | D15: 0.01089 | E15: 0.042615 | F15: 2.435605
A16: 2006 | B16: 3 | C16: 2006-03-01 | D16: 0.01211 | E16: 0.04121304348 | F16: 2.473434783
A17: 2006 | B17: 4 | C17: 2006-04-01 | D17: 0.01281 | E17: 0.0414 | F17: 2.488457895
A18: 2006 | B18: 5 | C18: 2006-05-01 | D18: 0.01406 | E18: 0.04153809524 | F18: 2.505366667
A19: 2006 | B19: 6 | C19: 2006-06-01 | D19: 0.01481 | E19: 0.04174761905 | F19: 2.576752381
A20: 2006 | B20: 7 | C20: 2006-07-01 | D20: 0.0153 | E20: 0.04193333333 | F20: 2.547895238
A21: 2006 | B21: 8 | C21: 2006-08-01 | D21: 0.01611 | E21: 0.04194090909 | F21: 2.475327273
A22: 2006 | B22: 9 | C22: 2006-09-01 | D22: 0.01737 | E22: 0.04209047619 | F22: 2.506128571
A23: 2006 | B23: 10 | C23: 2006-10-01 | D23: 0.01845 | E23: 0.04216818182 | F23: 2.45505
A24: 2006 | B24: 11 | C24: 2006-11-01 | D24: 0.01901 | E24: 0.04197142857 | F24: 2.4018
A25: 2006 | B25: 12 | C25: 2006-12-01 | D25: 0.02017 | E25: 0.04199473684 | F25: 2.386968421
A26: 2007 | B26: 1 | C26: 2007-01-01 | D26: 0.02149 | E26: 0.04197272727 | F26: 2.400327273
A27: 2007 | B27: 2 | C27: 2007-02-01 | D27: 0.02212 | E27: 0.04198 | F27: 2.402145
A28: 2007 | B28: 3 | C28: 2007-03-01 | D28: 0.02259 | E28: 0.04217272727 | F28: 2.410077273
A29: 2007 | B29: 4 | C29: 2007-04-01 | D29: 0.02319 | E29: 0.043165 | F29: 2.33176
A30: 2007 | B30: 5 | C30: 2007-05-01 | D30: 0.02411 | E30: 0.04439047619 | F30: 2.29187619
A31: 2007 | B31: 6 | C31: 2007-06-01 | D31: 0.02546 | E31: 0.04515 | F31: 2.300335
A32: 2007 | B32: 7 | C32: 2007-07-01 | D32: 0.02716 | E32: 0.04780454545 | F32: 2.274031818
A33: 2007 | B33: 8 | C33: 2007-08-01 | D33: 0.02796 | E33: 0.04908636364 | F33: 2.327372727
A34: 2007 | B34: 9 | C34: =DATE(A34,B34,1) -> 2007-09-01 | D34: 0.02824 | E34: 0.05091 | F34: 2.299725
A35: 2007 | B35: 10 | C35: 2007-10-01 | D35: 0.02787 | E35: 0.05128695652 | F35: 2.218986957
A36: 2007 | B36: 11 | C36: 2007-11-01 | D36: 0.02751 | E36: 0.05363809524 | F36: 2.220052381
A37: 2007 | B37: 12 | C37: 2007-12-01 | D37: 0.02774 | E37: 0.05666842105 | F37: 2.171289474
A38: 2008 | B38: 1 | C38: 2008-01-01 | D38: 0.02696 | E38: 0.05642727273 | F38: 2.2278
A39: 2008 | B39: 2 | C39: 2008-02-01 | D39: 0.02745 | E39: 0.05742857143 | F39: 2.224019048
A40: 2008 | B40: 3 | C40: 2008-03-01 | D40: 0.02829 | E40: 0.060265 | F40: 2.25202
A41: 2008 | B41: 4 | C41: 2008-04-01 | D41: 0.02848 | E41: 0.06291363636 | F41: 2.159181818
A42: 2008 | B42: 5 | C42: 2008-05-01 | D42: 0.02782 | E42: 0.064145 | F42: 2.09523
A43: 2008 | B43: 6 | C43: 2008-06-01 | D43: 0.02837 | E43: 0.06575714286 | F43: 2.090790476
A44: 2008 | B44: 7 | C44: 2008-07-01 | D44: 0.02786 | E44: 0.0662 | F44: 2.014873913
A45: 2008 | B45: 8 | C45: 2008-08-01 | D45: 0.02748 | E45: 0.06521 | F45: 2.027765
A46: 2008 | B46: 9 | C46: 2008-09-01 | D46: 0.02779 | E46: 0.06558181818 | F46: 2.115818182
A47: 2008 | B47: 10 | C47: 2008-10-01 | D47: 0.02998 | E47: 0.06796956522 | F47: 2.355926087
A48: 2008 | B48: 11 | C48: 2008-11-01 | D48: 0.01967 | E48: 0.06739473684 | F48: 2.459
A49: 2008 | B49: 12 | C49: 2008-12-01 | D49: 0.00913 | E49: 0.06378571429 | F49: 2.605928571
A50: 2009 | B50: 1 | C50: 2009-01-01 | D50: 0.00569 | E50: 0.05506190476 | F50: 2.82552381
A51: 2009 | B51: 2 | C51: 2009-02-01 | D51: 0.00506 | E51: 0.046875 | F51: 3.119175
A52: 2009 | B52: 3 | C52: 2009-03-01 | D52: 0.00436 | E52: 0.04299090909 | F52: 3.071522727
A53: 2009 | B53: 4 | C53: 2009-04-01 | D53: 0.00401 | E53: 0.04204761905 | F53: 2.923585714
A54: 2009 | B54: 5 | C54: 2009-05-01 | D54: 0.00402 | E54: 0.045155 | F54: 2.9162
A55: 2009 | B55: 6 | C55: 2009-06-01 | D55: 0.00395 | E55: 0.04598095238 | F55: 2.976942857
A56: 2009 | B56: 7 | C56: 2009-07-01 | D56: 0.00373 | E56: 0.0425826087 | F56: 2.828847826
A57: 2009 | B57: 8 | C57: 2009-08-01 | D57: 0.00343 | E57: 0.04159047619 | F57: 2.710380952
A58: 2009 | B58: 9 | C58: 2009-09-01 | D58: 0.00301 | E58: 0.04177272727 | F58: 2.748009091
A59: 2009 | B59: 10 | C59: 2009-10-01 | D59: 0.00273 | E59: 0.04183636364 | F59: 2.782645455
A60: 2009 | B60: 11 | C60: 2009-11-01 | D60: 0.00255 | E60: 0.041915 | F60: 2.76002
A61: 2009 | B61: 12 | C61: 2009-12-01 | D61: 0.00252 | E61: 0.04232272727 | F61: 2.756163636
A62: 2010 | B62: 1 | C62: 2010-01-01 | D62: 0.0025 | E62: 0.04237 | F62: 2.754515
A63: 2010 | B63: 2 | C63: 2010-02-01 | D63: 0.00249 | E63: 0.041725 | F63: 2.73548
A64: 2010 | B64: 3 | C64: 2010-03-01 | D64: 0.00249 | E64: 0.04129130435 | F64: 2.6885
A65: 2010 | B65: 4 | C65: 2010-04-01 | D65: 0.00244 | E65: 0.03921904762 | F65: 2.702438095
A66: 2010 | B66: 5 | C66: =DATE(A66,B66,1) -> 2010-05-01 | D66: 0.00194 | E66: 0.03854 | F66: 2.8604
A67: 2010 | B67: 6 | C67: 2010-06-01 | D67: 0.00097 | E67: 0.03855238095 | F67: 2.983728571
A68: 2010 | B68: 7 | C68: 2010-07-01 | D68: 0.00132 | E68: 0.03835454545 | F68: 3.028795455
A69: 2010 | B69: 8 | C69: 2010-08-01 | D69: 0.00164 | E69: 0.03812272727 | F69: 2.971559091
A70: 2010 | B70: 9 | C70: 2010-09-01 | D70: 0.00175 | E70: 0.03821363636 | F70: 3.022336364
A71: 2010 | B71: 10 | C71: 2010-10-01 | D71: 0.00174 | E71: 0.03832380952 | F71: 2.937495238
A72: 2010 | B72: 11 | C72: 2010-11-01 | D72: 0.00169 | E72: 0.03855 | F72: 2.943415
A73: 2010 | B73: 12 | C73: 2010-12-01 | D73: 0.0017 | E73: 0.03915217391 | F73: 3.120078261
A74: 2011 | B74: 1 | C74: 2011-01-01 | D74: 0.00169 | E74: 0.040105 | F74: 3.045505
A75: 2011 | B75: 2 | C75: 2011-02-01 | D75: 0.0017 | E75: 0.04114 | F75: 3.028785
A76: 2011 | B76: 3 | C76: 2011-03-01 | D76: 0.00178 | E76: 0.04178695652 | F76: 3.116013043
A77: 2011 | B77: 4 | C77: 2011-04-01 | D77: 0.00184 | E77: 0.042705 | F77: 3.06101
A78: 2011 | B78: 5 | C78: 2011-05-01 | D78: 0.00179 | E78: 0.044 | F78: 3.144947619
A79: 2011 | B79: 6 | C79: 2011-06-01 | D79: 0.00175 | E79: 0.04610952381 | F79: 3.279057143
A80: 2011 | B80: 7 | C80: 2011-07-01 | D80: 0.00175 | E80: 0.04700952381 | F80: 3.391385714
A81: 2011 | B81: 8 | C81: 2011-08-01 | D81: 0.00058 | E81: 0.04716363636 | F81: 3.677213636
A82: 2011 | B82: 9 | C82: 2011-09-01 | D82: 9e-05 | E82: 0.04745909091 | F82: 3.610309091
A83: 2011 | B83: 10 | C83: 2011-10-01 | D83: 0.00037 | E83: 0.04802380952 | F83: 3.541433333
A84: 2011 | B84: 11 | C84: 2011-11-01 | D84: 0.00047 | E84: 0.049395 | F84: 3.59795
A85: 2011 | B85: 12 | C85: 2011-12-01 | D85: 0.00052 | E85: 0.04982380952 | F85: 3.646366667
A86: 2012 | B86: 1 | C86: 2012-01-01 | D86: 0.0006 | E86: 0.04985714286 | F86: 3.611480952
A87: 2012 | B87: 2 | C87: 2012-02-01 | D87: 0.00082 | E87: 0.04974761905 | F87: 3.465052381
A88: 2012 | B88: 3 | C88: 2012-03-01 | D88: 0.001 | E88: 0.04947727273 | F88: 3.430236364
A89: 2012 | B89: 4 | C89: 2012-04-01 | D89: 0.00112 | E89: 0.049435 | F89: 3.47455
A90: 2012 | B90: 5 | C90: 2012-05-01 | D90: 0.00111 | E90: 0.05047142857 | F90: 3.580266667
A91: 2012 | B91: 6 | C91: 2012-06-01 | D91: 0.00093 | E91: 0.0512 | F91: 3.582365
A92: 2012 | B92: 7 | C92: 2012-07-01 | D92: 0.00073 | E92: 0.05126818182 | F92: 3.487627273
A93: 2012 | B93: 8 | C93: 2012-08-01 | D93: 0.00051 | E93: 0.05101818182 | F93: 3.408086364
A94: 2012 | B94: 9 | C94: 2012-09-01 | D94: 0.00046 | E94: 0.04951 | F94: 3.420915
A95: 2012 | B95: 10 | C95: 2012-10-01 | D95: 0.00037 | E95: 0.04823043478 | F95: 3.396634783
A96: 2012 | B96: 11 | C96: 2012-11-01 | D96: 0.00031 | E96: 0.0461952381 | F96: 3.430614286
A97: 2012 | B97: 12 | C97: 2012-12-01 | D97: 0.00015 | E97: 0.04257894737 | F97: 3.387452632
A98: 2013 | B98: 1 | C98: =DATE(A98,B98,1) -> 2013-01-01 | D98: 0.00017 | E98: 0.04029545455 | F98: 3.368563636
A99: 2013 | B99: 2 | C99: 2013-02-01 | D99: 0.00024 | E99: 0.03804761905 | F99: 3.39208
A100: 2013 | B100: 3 | C100: 2013-03-01 | D100: 0.00022 | E100: 0.03475238095 | F100: 3.388528571
A101: 2013 | B101: 4 | C101: 2013-04-01 | D101: 0.0002 | E101: 0.03285238095 | F101: 3.392185714
A102: 2013 | B102: 5 | C102: 2013-05-01 | D102: 0.00018 | E102: 0.02863 | F102: 3.36413
A103: 2013 | B103: 6 | C103: 2013-06-01 | D103: 0.00018 | E103: 0.027445 | F103: 3.474505
A104: 2013 | B104: 7 | C104: 2013-07-01 | D104: 0.0002 | E104: 0.02697391304 | F104: 3.458934783
A105: 2013 | B105: 8 | C105: 2013-08-01 | D105: 0.00018 | E105: 0.02701428571 | F105: 3.430614286
A106: 2013 | B106: 9 | C106: 2013-09-01 | D106: 0.0002 | E106: 0.02690952381 | F106: 3.433409524
A107: 2013 | B107: 10 | C107: 2013-10-01 | D107: 0.0002 | E107: 0.02670869565 | F107: 3.403413043
A108: 2013 | B108: 11 | C108: 2013-11-01 | D108: 0.0002 | E108: 0.02653684211 | F108: 3.400884211
A109: 2013 | B109: 12 | C109: 2013-12-01 | D109: 0.0002 | E109: 0.02671 | F109: 3.41053
A110: 2014 | B110: 1 | C110: 2014-01-01 | D110: 0.00022 | E110: 0.0270047619 | F110: 3.394814286
A111: 2014 | B111: 2 | C111: 2014-02-01 | D111: 0.00018 | E111: 0.0271 | F111: 3.418755
A112: 2014 | B112: 3 | C112: 2014-03-01 | D112: 0.00021 | E112: 0.0271 | F112: 3.449533333
A113: 2014 | B113: 4 | C113: 2014-04-01 | D113: 0.00017 | E113: 0.02719047619 | F113: 3.43292381
A114: 2014 | B114: 5 | C114: 2014-05-01 | D114: 0.00016 | E114: 0.0272 | F114: 3.424142857
A115: 2014 | B115: 6 | C115: 2014-06-01 | D115: 0.00012 | E115: 0.02688 | F115: 3.39526
A116: 2014 | B116: 7 | C116: 2014-07-01 | D116: 0.00013 | E116: 0.02676956522 | F116: 3.411265217
A117: 2014 | B117: 8 | C117: 2014-08-01 | D117: 0.00021 | E117: 0.02649 | F117: 3.45886
A118: 2014 | B118: 9 | C118: 2014-09-01 | D118: 8e-05 | E118: 0.02448181818 | F118: 3.470031818
A119: 2014 | B119: 10 | C119: 2014-10-01 | D119: 8e-05 | E119: 0.02072608696 | F119: 3.482269565
A120: 2014 | B120: 11 | C120: 2014-11-01 | D120: 6e-05 | E120: 0.02033684211 | F120: 3.502352632
A121: 2014 | B121: 12 | C121: 2014-12-01 | D121: -0.0002 | E121: 0.0206 | F121: 3.503809524
A122: 2015 | B122: 1 | C122: 2015-01-01 | D122: -0.00466 | E122: 0.020305 | F122: 3.95756
A123: 2015 | B123: 2 | C123: 2015-02-01 | D123: -0.00889 | E123: 0.01917 | F123: 3.932525
A124: 2015 | B124: 3 | C124: 2015-03-01 | D124: -0.00802 | E124: 0.01671818182 | F124: 3.890177273
A125: 2015 | B125: 4 | C125: 2015-04-01 | D125: -0.00812 | E125: 0.0165 | F125: 3.877147619
A126: 2015 | B126: 5 | C126: 2015-05-01 | D126: -0.00791 | E126: 0.0167 | F126: 3.927305
A127: 2015 | B127: 6 | C127: 2015-06-01 | D127: -0.00782 | E127: 0.01704761905 | F127: 3.983695238
A128: 2015 | B128: 7 | C128: 2015-07-01 | D128: -0.00762 | E128: 0.0172 | F128: 3.961795652
A129: 2015 | B129: 8 | C129: 2015-08-01 | D129: -0.00729 | E129: 0.0172 | F129: 3.890952381
A130: 2015 | B130: 9 | C130: =DATE(A130,B130,1) -> 2015-09-01 | D130: -0.00729 | E130: 0.01721363636 | F130: 3.863313636
A131: 2015 | B131: 10 | C131: 2015-10-01 | D131: -0.00728 | E131: 0.0173 | F131: 3.905540909
A132: 2015 | B132: 11 | C132: 2015-11-01 | D132: -0.00732 | E132: 0.0173 | F132: 3.914
A133: 2015 | B133: 12 | C133: 2015-12-01 | D133: =D132 -> -0.00732 | E133: =E132 -> 0.0173 | F133: 3.914
A134: 2016 | B134: 1 | C134: 2016-01-01 | D134: =D133 -> -0.00732 | E134: 0.0173 | F134: 3.914
A135: 2016 | B135: 2 | C135: 2016-02-01 | D135: -0.00732 | E135: 0.0173 | F135: 3.914
A136: 2016 | B136: 3 | C136: 2016-03-01 | D136: -0.00732 | E136: 0.0173 | F136: 3.914
A137: 2016 | B137: 4 | C137: 2016-04-01 | D137: -0.00732 | E137: 0.0173 | F137: 3.914
A138: 2016 | B138: 5 | C138: 2016-05-01 | D138: -0.00732 | E138: 0.0173 | F138: 3.914
A139: 2016 | B139: 6 | C139: 2016-06-01 | D139: -0.00732 | E139: 0.0173 | F139: 3.914
A140: 2016 | B140: 7 | C140: 2016-07-01 | D140: -0.00732 | E140: 0.0173 | F140: 3.914
A141: 2016 | B141: 8 | C141: 2016-08-01 | D141: -0.00732 | E141: 0.0173 | F141: 3.914
A142: 2016 | B142: 9 | C142: 2016-09-01 | D142: -0.00732 | E142: 0.0173 | F142: 3.914
A143: 2016 | B143: 10 | C143: 2016-10-01 | D143: -0.00732 | E143: 0.0173 | F143: 3.914
A144: 2016 | B144: 11 | C144: 2016-11-01 | D144: -0.00732 | E144: 0.0173 | F144: 3.914
A145: 2016 | B145: 12 | C145: 2016-12-01 | D145: -0.00732 | E145: 0.0173 | F145: 3.914
